Service Area,Service Division,Expense Type,Expense Code,Detailed Expense Type,Payment Date,Transaction Number,Amount Exc Vat,Supplier Name,
Neighbourhood Services,Culture & Sport,Supplies and Services,338099,Services,21-Jan-2015,237616,580.24,ATHOL HOLMES.,
Neighbourhood Services,EnvironmentHealth & Consumer Protection,Supplies and Services,304259,Equipment and Materials,28-Jan-2015,237771,613.19,BLYTHMAN & PARTNERS LTD.,
Neighbourhood Services,Culture & Sport,Supplies and Services,384199,Miscellaneous Expenses,28-Jan-2015,237911,700.00,RICHARD WARD..,
Neighbourhood Services,Culture & Sport,Supplies and Services,384700,Miscellaneous Expenses,05-Jan-2015,2841950,"1,450.00",DURHAM INDOOR BOWLING COMMUNITY ASSOCIATION LTD.,
Neighbourhood Services,Culture & Sport,Supplies and Services,384700,Miscellaneous Expenses,05-Jan-2015,2842137,577.00,SACRISTON TABLE TENNIS CLUB.,
Resources,Corporate Services Financing,Debtors,930031,Debtor-outstand insur claims,06-Jan-2015,2843018,"2,464.00",KENNEDYS LAW LLP.,
Regeneration & Economic Development,Spatial Policy Planning Assets & Environment,Supplies and Services,338027,Services,06-Jan-2015,2843057,"5,000.00",MISS SARAH REID.,
Neighbourhood Services,Projects and Business services,Third Party Payments,430103,Rendered by Private Contractors,07-Jan-2015,2843232,586.41,BRITISH HEART FOUNDATION.,
Neighbourhood Services,Culture & Sport,Supplies and Services,384700,Miscellaneous Expenses,07-Jan-2015,2843264,"1,530.00",CO DURHAM & DARLINGTON NHS FOUNDATION TRUST.,
RED HRA,Housing Revenue Account,Supplies and Services,338066,Services,08-Jan-2015,2843719,"87,350.96",NEPRO LTD.,
Neighbourhood Services,Technical Services,Construction Work,908105,Construction work,12-Jan-2015,2845020,"6,852.29",NORTHUMBRIAN WATER LTD.,
Neighbourhood Services,Projects and Business services,Third Party Payments,430103,Rendered by Private Contractors,13-Jan-2015,2845860,"1,135.41",BUTTERWICK HOSPICE RETAIL LTD.,
Regeneration & Economic Development,Economic Development and Housing,Construction Work,908105,Construction work,13-Jan-2015,2846121,"231,855.08",WILLMOTT DIXON CONSTRUCTION LTD.,
Neighbourhood Services,Culture & Sport,Premises,120021,Energy Costs,15-Jan-2015,2847062,711.44,NORTHERN PROPERTY (UK) LTD.,
Children and Adult Services,Education,Transfer Payments,510026,School Children,16-Jan-2015,2847472,580.44,HIPPITOTS LTD.,
Regeneration & Economic Development,Transport and Contracted Services,Third Party Payments,430106,Rendered by Private Contractors,16-Jan-2015,2847612,"1,531.56",TONYS TAXIS (A BIRCH).,
Neighbourhood Services,Technical Services,Income,720115,Fees and Charges,19-Jan-2015,2847665,"9,750.59",BELMONT PARISH COUNCIL.,
Regeneration & Economic Development,Spatial Policy Planning Assets & Environment,Construction Work,908105,Construction work,19-Jan-2015,2847671,"31,686.08",BRITISH GAS ENERGY PERFORMANCE.,
Neighbourhood Services,Culture & Sport,Supplies and Services,384700,Miscellaneous Expenses,19-Jan-2015,2847697,780.00,CO DURHAM & DARLINGTON NHS FOUNDATION TRUST.,
Neighbourhood Services,Culture & Sport,Supplies and Services,384700,Miscellaneous Expenses,19-Jan-2015,2847723,"1,337.50",DURHAM PALATINATES NETBALL CLUB.,
Children and Adult Services,Education,Supplies and Services,338027,Services,19-Jan-2015,2847837,650.00,REDACTED - PAYMENT TO INDIVIDUAL,
Regeneration & Economic Development,Strategy Programmes and Performance,Supplies and Services,384899,Miscellaneous Expenses,20-Jan-2015,2848961,"2,824.00",MWA ARBORICULTURE LTD.,
RED HRA,Housing Revenue Account,Supplies and Services,338066,Services,20-Jan-2015,2848967,"44,495.11",NEPRO LTD.,
Neighbourhood Services,Culture & Sport,Income,715699,Sales,21-Jan-2015,2849234,585.20,ALZHEIMERS SOCIETY..,
Neighbourhood Services,Culture & Sport,Supplies and Services,338047,Services,21-Jan-2015,2849303,"7,526.42",DURHAM STUDENTS UNION.,
Neighbourhood Services,Culture & Sport,Supplies and Services,384237,Miscellaneous Expenses,21-Jan-2015,2849474,"1,000.00",SUNDERLAND GATEWAY.,
Children and Adult Services,Childrens Services,Third Party Payments,486023,Service Level Agreements,22-Jan-2015,2849585,"1,000.00",BOWBURN YOUTH PROJECT.,
Resources,I.C.T. Services,Supplies and Services,338099,Services,22-Jan-2015,2849593,"16,297.77",BRITISH TELECOMMUNICATIONS PLC.,
Children and Adult Services,Childrens Services,Supplies and Services,384491,Miscellaneous Expenses,22-Jan-2015,2849632,684.00,CLEVER CLOGS DAY NURSERIES LTD.,
Neighbourhood Services,Neighbourhood central costs,Debtors,930017,Debtor-gas contract holding account,22-Jan-2015,2849651,"342,126.19",CORONA ENERGY RETAIL 2 LTD.,
Neighbourhood Services,Culture & Sport,Supplies and Services,338047,Services,22-Jan-2015,2849695,"14,339.71",DURHAM CATHEDRAL LTD.,
Neighbourhood Services,Culture & Sport,Creditors,952029,Creditor-returnable bonds,23-Jan-2015,2850195,"2,740.42",BISHOP CATERING LTD.,
Resources,I.C.T. Services,Debtors,930167,Debtor-Telephone Holding Account,26-Jan-2015,2850460,"121,063.67",BRITISH TELECOMMUNICATIONS PLC.,
Regeneration & Economic Development,Transport and Contracted Services,Third Party Payments,430100,Rendered by Private Contractors,28-Jan-2015,2852212,"2,608.00",DURHAM COMMUNICARE LTD.,
RED HRA,Housing Revenue Account,Supplies and Services,338066,Services,29-Jan-2015,2854348,"147,130.13",NEPRO LTD.,
Regeneration & Economic Development,Spatial Policy Planning Assets & Environment,Supplies and Services,338099,Services,30-Jan-2015,2854888,"4,738.00",TELFORDS COUNTRYSIDE & LANDSCAPE CONTRACTORS.,
Neighbourhood Services,Direct Services,Supplies and Services,338066,Services,07-Jan-2015,237288-NEI-INC-12-2014-025,515.00,REDACTED - PAYMENT TO INDIVIDUAL,
Neighbourhood Services,Culture & Sport,Supplies and Services,384199,Miscellaneous Expenses,07-Jan-2015,237289-101YEARTO15BP,789.76,BAD PENNY TOURING.,
Children and Adult Services,Head of Adults,Third Party Payments,474101,Purchase of Care,07-Jan-2015,237293-2206692,"2,694.00",CARELINE LIFESTYLES LTD.,
Children and Adult Services,Head of Adults,Third Party Payments,470101,Purchase of Care,07-Jan-2015,237293-2206694,"2,500.00",CARELINE LIFESTYLES LTD.,
Children and Adult Services,Head of Adults,Third Party Payments,470101,Purchase of Care,07-Jan-2015,237293-2206695,"2,016.00",CARELINE LIFESTYLES LTD.,
Neighbourhood Services,Technical Services,Supplies and Services,304358,Equipment and Materials,07-Jan-2015,237295-1613,"12,357.47",CG SIMPSON & SON.,
Children and Adult Services,Public Health,Third Party Payments,460803,Contract Payments,07-Jan-2015,237326-TUN04334,"5,892.86",HUNTERCOMBE CENTRE.,
Neighbourhood Services,Culture & Sport,Construction Work,908113,Capital - Landscaping,07-Jan-2015,237330-469,800.00,REDACTED - PAYMENT TO INDIVIDUAL,
Regeneration & Economic Development,Spatial Policy Planning Assets & Environment,Supplies and Services,338045,Services,07-Jan-2015,237337-345428/22SEPT2014,"2,520.00",MISS RUTH STOCKLEY.,
Children and Adult Services,Head of Adults,Third Party Payments,478101,Purchase of Care,07-Jan-2015,237375-2205345,"1,301.00",REDACTED - PAYMENT TO INDIVIDUAL,
Regeneration & Economic Development,Economic Development and Housing,Cap Exp on Grants & Other Financial Assistance (REFCUS),918401,Capital grants,07-Jan-2015,237389-RED-12-2014-158,979.31,REDACTED - PAYMENT TO INDIVIDUAL,
Neighbourhood Services,Culture & Sport,Supplies and Services,312013,Newspapers Books and Periodicals,07-Jan-2015,237392-NCBF14/019,585.95,NORTHERN CHILDRENS BOOK FESTIVAL.,
Neighbourhood Services,Technical Services,Third Party Payments,460502,Contract Payments,07-Jan-2015,237430-20102530,"28,045.00",VAISALA LTD.,
Resources,Human Resources,Supplies and Services,384199,Miscellaneous Expenses,07-Jan-2015,237432-12664,"3,252.04",WEALDEN COMPUTING SERVICES LTD.,
Regeneration & Economic Development,Economic Development and Housing,Supplies and Services,384700,Miscellaneous Expenses,07-Jan-2015,237434-RED-12-2014-202,"1,000.00",WORLD OF RIDES.,
Children and Adult Services,Childrens Services,Third Party Payments,440001,Other Third Party Payments,13-Jan-2015,237436-1001115,592.62,REDACTED - PAYMENT TO INDIVIDUAL,
Children and Adult Services,Childrens Services,Third Party Payments,440001,Other Third Party Payments,13-Jan-2015,237437-1001137,880.00,REDACTED - PAYMENT TO INDIVIDUAL,
Children and Adult Services,Childrens Services,Third Party Payments,440001,Other Third Party Payments,13-Jan-2015,237437-1001138,766.00,REDACTED - PAYMENT TO INDIVIDUAL,
Children and Adult Services,Childrens Services,Third Party Payments,440001,Other Third Party Payments,13-Jan-2015,237437-1001139,766.00,REDACTED - PAYMENT TO INDIVIDUAL,
Regeneration & Economic Development,Economic Development and Housing,Supplies and Services,384999,Miscellaneous Expenses,14-Jan-2015,237458-LT74ALBE,550.00,ANDREW MARSHALL RESIDENTIAL PROPERTIES LTD T/A AMRP.,
Neighbourhood Services,Culture & Sport,Supplies and Services,384237,Miscellaneous Expenses,14-Jan-2015,237459-INV32997,583.33,BADMINTON ENGLAND.,
RED HRA,Housing Revenue Account,Supplies and Services,338027,Services,14-Jan-2015,237462-INV439345,"15,018.00",BOTTOMLINE TECHNOLOGIES LTD.,
Neighbourhood Services,Culture & Sport,Income,715699,Sales,14-Jan-2015,237463-NEI-EXP-01-2015-024,"2,544.28",BRADLEY LOWERY`S FIGHT.,
Dedicated Schools Grant,Dedicated Schools Grant,Transfer Payments,510034,School Children,14-Jan-2015,237464-RES-01-2015-025,"3,870.00",BROWNEY PRIMARY ACADEMY.,
Children and Adult Services,Education,Transport,230008,Contract Hire,14-Jan-2015,237469-1014137,"1,224.00",COLLINS TAXIS.,
Children and Adult Services,Education,Transport,230008,Contract Hire,14-Jan-2015,237469-914137,"1,006.40",COLLINS TAXIS.,
Children and Adult Services,Education,Transport,230008,Contract Hire,14-Jan-2015,237484-14/0012,"1,050.00",EDDIE BURROWS.,
Regeneration & Economic Development,Economic Development and Housing,Cap Exp on Grants & Other Financial Assistance (REFCUS),918401,Capital grants,14-Jan-2015,237490-RED-01-2015-046,520.00,REDACTED - PAYMENT TO INDIVIDUAL,
Children and Adult Services,Education,Transport,230006,Contract Hire,14-Jan-2015,237513-0018,"1,491.00",MICHAEL CONNOR.,
Children and Adult Services,Education,Transport,230008,Contract Hire,14-Jan-2015,237514-01/014-17/12/2014,700.00,MICHAEL PUNTON.,
RED HRA,HRA Centrally Managed,Supplies and Services,384999,Miscellaneous Expenses,14-Jan-2015,237544-10201956,"2,281.50",REDACTED - PAYMENT TO INDIVIDUAL,
Neighbourhood Services,Culture & Sport,Supplies and Services,384700,Miscellaneous Expenses,14-Jan-2015,237569-NEI-EXP-01-2015-019,795.00,PAUL LYSAGHT.,
RED HRA,HRA Capital,Construction Work,908105,Construction work,14-Jan-2015,237579-0146,"2,574.00",SCHAIP LTD,
Children and Adult Services,Childrens Services,Supplies and Services,312009,Newspapers Books and Periodicals,14-Jan-2015,237587-2288,"1,370.00",THE MINISTRY OF PARENTING.,
Neighbourhood Services,Direct Services,Premises,106082,Centrally Controlled Rep and Maint,21-Jan-2015,237615-4470,"1,330.00",ASPECT FIRE SOLUTIONS LTD.,
Dedicated Schools Grant,Dedicated Schools Grant,Transfer Payments,510034,School Children,21-Jan-2015,237619-RES-01-2015-030,"1,290.00",BILL QUAY PRIMARY SCHOOL.,
Children and Adult Services,Education,Transport,230008,Contract Hire,21-Jan-2015,237623-MO47/15,"1,050.00",C STEWART.,
Children and Adult Services,Education,Transport,230008,Contract Hire,21-Jan-2015,237628-11/14137,"1,400.00",COLLINS TAXIS.,
Children and Adult Services,Education,Transport,230008,Contract Hire,21-Jan-2015,237628-11/1487,"2,375.00",COLLINS TAXIS.,
Children and Adult Services,Education,Transport,230008,Contract Hire,21-Jan-2015,237628-11/1490,"2,187.50",COLLINS TAXIS.,
Children and Adult Services,Education,Transport,230008,Contract Hire,21-Jan-2015,237628-12/14137,"1,050.00",COLLINS TAXIS.,
Children and Adult Services,Education,Transport,230008,Contract Hire,21-Jan-2015,237628-12/1487,"1,875.00",COLLINS TAXIS.,
Children and Adult Services,Education,Transport,230008,Contract Hire,21-Jan-2015,237628-WO90,"1,875.00",COLLINS TAXIS.,
Neighbourhood Services,Technical Services,Supplies and Services,342053,Computers and Communications,21-Jan-2015,237629-02889,"9,000.00",CONCERTO SUPPORT SERVICES.,
Regeneration & Economic Development,Transport and Contracted Services,Third Party Payments,430100,Rendered by Private Contractors,21-Jan-2015,237630-CONCFARE-JAN15,787.50,CUMBRIA CLASSIC COACHES.,
Children and Adult Services,Childrens Services,Third Party Payments,486023,Service Level Agreements,21-Jan-2015,237639-100A,"1,000.00",DURHAM CITY CENTRE YOUTH PROJECT.,
Regeneration & Economic Development,Transport and Contracted Services,Supplies and Services,344014,Telephones,21-Jan-2015,237642-01158146508,"1,013.95",EE LTD.,
Dedicated Schools Grant,Dedicated Schools Grant,Transfer Payments,510034,School Children,21-Jan-2015,237643-RES-01-2015-037,"2,410.00",ELDON GROVE SCHOOL.,
Neighbourhood Services,Direct Services,Transport,230005,Contract Hire,21-Jan-2015,237649-070436,800.00,FIVEWAYS MUNICIPAL VEHICLE HIRE LTD.,
Neighbourhood Services,Direct Services,Transport,230005,Contract Hire,21-Jan-2015,237649-070574,800.00,FIVEWAYS MUNICIPAL VEHICLE HIRE LTD.,
Neighbourhood Services,Direct Services,Transport,230005,Contract Hire,21-Jan-2015,237649-070719,800.00,FIVEWAYS MUNICIPAL VEHICLE HIRE LTD.,
Assistant Chief Executive,Partnerships & Community Engagement Div.,Supplies and Services,384085,Miscellaneous Expenses,21-Jan-2015,237650-NOCH10-14PEMT06-14,500.00,FOUNDATION OF LIGHT.,
Dedicated Schools Grant,Dedicated Schools Grant,Transfer Payments,510034,School Children,21-Jan-2015,237657-RES-01-2015-038,"5,080.00",HEWORTH GRANGE COMPREHENSIVE SCHOOL.,
RED HRA,HRA Centrally Managed,Creditors,952191,Creditor-HRA-rents-refunds,21-Jan-2015,237681-DVHR00170,"1,215.94",REDACTED - PAYMENT TO INDIVIDUAL,
RED HRA,HRA Capital,Other Expenses,914001,Other capital expenses,21-Jan-2015,237686-RED-01-2015-100,"4,000.00",REDACTED - PAYMENT TO INDIVIDUAL,
Children and Adult Services,Public Health,Premises,145009,Cleaning and Domestic Supplies,21-Jan-2015,237711-15278,540.00,QUALITY CLEANING SERVICES (NORTHERN) LTD.,
Neighbourhood Services,Technical Services,Third Party Payments,460350,Contract Payments,21-Jan-2015,237713-3,938.50,RE SHANN.,
Dedicated Schools Grant,Dedicated Schools Grant,Transfer Payments,510034,School Children,21-Jan-2015,237723-RES-01-2015-060,"1,900.00",ST HELEN`S PRIMARY SCHOOL.,
Neighbourhood Services,Direct Services,Premises,115125,Repairs to Grounds,21-Jan-2015,237724-6972,"1,600.00",STACKRIGHT.,
Neighbourhood Services,Technical Services,Third Party Payments,460350,Contract Payments,21-Jan-2015,237738-20102667,680.00,VAISALA LTD.,
Regeneration & Economic Development,Spatial Policy Planning Assets & Environment,Third Party Payments,430100,Rendered by Private Contractors,28-Jan-2015,237768-4427,"12,500.00",BARKER & BLAND.,
Children and Adult Services,Head of Adults,Transport,230005,Contract Hire,28-Jan-2015,237769-011214-191214,600.00,BENNETTS TAXIS.,
Regeneration & Economic Development,Spatial Policy Planning Assets & Environment,Vehicles Equipment Furniture and Fittings,912701,Computer equipment,28-Jan-2015,237770-14972,"3,236.96",BEST PRACTICE GROUP PLC.,
Regeneration & Economic Development,Spatial Policy Planning Assets & Environment,Vehicles Equipment Furniture and Fittings,912701,Computer equipment,28-Jan-2015,237770-14973,726.47,BEST PRACTICE GROUP PLC.,
Neighbourhood Services,Culture & Sport,Vehicles Equipment Furniture and Fittings,912521,Purchase-furniture and fittings,28-Jan-2015,237774-MS1500188,878.75,BRITISH THORNTON ESF LTD.,
Children and Adult Services,Head of Adults,Third Party Payments,474101,Purchase of Care,28-Jan-2015,237776-2211504,"2,694.00",CARELINE LIFESTYLES LTD.,
Children and Adult Services,Head of Adults,Third Party Payments,470101,Purchase of Care,28-Jan-2015,237776-2211506,"2,500.00",CARELINE LIFESTYLES LTD.,
Children and Adult Services,Head of Adults,Third Party Payments,470101,Purchase of Care,28-Jan-2015,237776-2211507,"2,016.00",CARELINE LIFESTYLES LTD.,
Neighbourhood Services,Technical Services,Supplies and Services,304358,Equipment and Materials,28-Jan-2015,237777-1615,"13,324.18",CG SIMPSON & SON.,
Children and Adult Services,Education,Supplies and Services,352001,Conference Expenses,28-Jan-2015,237778-0168,500.00,CHAPTER HOUSE CHILDCARE ASSOCIATES LTD.,
Regeneration & Economic Development,Economic Development and Housing,Cap Exp on Grants & Other Financial Assistance (REFCUS),918401,Capital grants,28-Jan-2015,237785-RED-01-2015-166,"5,000.00",REDACTED - PAYMENT TO INDIVIDUAL,
Assistant Chief Executive,Partnerships & Community Engagement Div.,Transfer Payments,525030,Other,28-Jan-2015,237789-VOUCHER14AB-STAN004/14ABDVLY007,"16,980.00",DERWENTSIDE TRUST.,
Regeneration & Economic Development,Economic Development and Housing,Supplies and Services,384700,Miscellaneous Expenses,28-Jan-2015,237799-RED-01-2015-173,"1,000.00",DURHAM CLIMBING CENTRE.,
Regeneration & Economic Development,RED Departmental Support Costs,Supplies and Services,338027,Services,28-Jan-2015,237808-0257,"1,050.00",EMBRACE MANAGEMENT SERVICES.,
Dedicated Schools Grant,Dedicated Schools Grant,Transfer Payments,510034,School Children,28-Jan-2015,237814-RES-01-2015-120,"6,360.00",HETTON COMPREHENSIVE SCHOOL.,
Neighbourhood Services,Technical Services,Third Party Payments,460350,Contract Payments,28-Jan-2015,237829-5751,"20,691.00",JR TIPLADY.,
Children and Adult Services,Childrens Services,Supplies and Services,338043,Services,28-Jan-2015,237834-14378,500.00,KIRKUP LASCELLES & CREED.,
Regeneration & Economic Development,Economic Development and Housing,Cap Exp on Grants & Other Financial Assistance (REFCUS),918401,Capital grants,28-Jan-2015,237839-RED-01-2015-154,675.00,REDACTED - PAYMENT TO INDIVIDUAL,
Children and Adult Services,Head of Adults,Third Party Payments,478101,Purchase of Care,28-Jan-2015,237874-2210119,"1,301.00",REDACTED - PAYMENT TO INDIVIDUAL,
Regeneration & Economic Development,Economic Development and Housing,Premises,120009,Energy Costs,28-Jan-2015,237901-NNO7M792,995.03,NPOWER.,
Regeneration & Economic Development,Economic Development and Housing,Premises,120009,Energy Costs,28-Jan-2015,237901-NNO7M793,"1,215.85",NPOWER.,
Regeneration & Economic Development,Economic Development and Housing,Premises,120009,Energy Costs,28-Jan-2015,237901-NNO7M79S,888.17,NPOWER.,
Regeneration & Economic Development,Economic Development and Housing,Premises,120009,Energy Costs,28-Jan-2015,237901-NNO7M79T,774.12,NPOWER.,
Regeneration & Economic Development,Economic Development and Housing,Premises,120009,Energy Costs,28-Jan-2015,237901-NNO7M79V,779.14,NPOWER.,
Regeneration & Economic Development,Economic Development and Housing,Premises,120009,Energy Costs,28-Jan-2015,237901-NNO7M79W,805.45,NPOWER.,
Regeneration & Economic Development,Economic Development and Housing,Premises,120009,Energy Costs,28-Jan-2015,237901-NNO7M79X,752.51,NPOWER.,
Regeneration & Economic Development,Economic Development and Housing,Premises,120009,Energy Costs,28-Jan-2015,237901-NNO7M8BL,"1,443.85",NPOWER.,
Dedicated Schools Grant,Dedicated Schools Grant,Transfer Payments,510034,School Children,28-Jan-2015,237902-RES-01-2015-122,"1,280.00",OXCLOSE COMMUNITY ACADEMY.,
Neighbourhood Services,Direct Services,Transport,210057,Repair and Maintenance of Vehicles,28-Jan-2015,237905-938205,767.24,PETERLEE GLASS CO LTD.,
Regeneration & Economic Development,Economic Development and Housing,Supplies and Services,384700,Miscellaneous Expenses,28-Jan-2015,237907-RED-01-2015-161,"1,000.00",REAL CARE LTD.,
Dedicated Schools Grant,Dedicated Schools Grant,Transfer Payments,510034,School Children,28-Jan-2015,237920-RES-01-2015-119,"1,320.00",SOUTH WELLFIELD FIRST SCHOOL.,
Neighbourhood Services,Culture & Sport,Supplies and Services,384199,Miscellaneous Expenses,28-Jan-2015,237925-5285,500.00,STOCKTON ARTS CENTRE LTD.,
Assistant Chief Executive,Partnerships & Community Engagement Div.,Supplies and Services,384085,Miscellaneous Expenses,28-Jan-2015,237928-BENH07-14,800.00,THE GOOD COMPANIONS CLUB.,
Children and Adult Services,Head of Adults,Third Party Payments,478101,Purchase of Care,28-Jan-2015,237929-117770,"12,740.42",THE HOME FARM TRUST LTD (HFT).,
Neighbourhood Services,EnvironmentHealth & Consumer Protection,Supplies and Services,332047,Printing Stationery and Gen Off Exps,28-Jan-2015,237937-16552,500.30,VIP SYSTEM LTD.,
Regeneration & Economic Development,Economic Development and Housing,Cap Exp on Grants & Other Financial Assistance (REFCUS),918401,Capital grants,28-Jan-2015,237939-RED-01-2015-131,"8,391.53",WENTWORTH CONSTRUCTION (NE) LTD.,
Regeneration & Economic Development,Economic Development and Housing,Supplies and Services,342053,Computers and Communications,05-Jan-2015,2841833-4847,"7,760.00",ABRITAS LTD.,
Regeneration & Economic Development,Economic Development and Housing,Supplies and Services,342053,Computers and Communications,05-Jan-2015,2841833-4850,"25,036.00",ABRITAS LTD.,
Children and Adult Services,Childrens Services,Supplies and Services,338027,Services,05-Jan-2015,2841835-DRAFTINGANNUALREPORT,"1,350.00",AD HALLIDAY T/A HALLIDAYS CONSULTING.,
Neighbourhood Services,Technical Services,Supplies and Services,304221,Equipment and Materials,05-Jan-2015,2841837-20606523,"4,907.92",AGGREGATE INDUSTRIES UK LTD.,
Neighbourhood Services,Technical Services,Supplies and Services,304221,Equipment and Materials,05-Jan-2015,2841837-20785722,985.76,AGGREGATE INDUSTRIES UK LTD.,
Neighbourhood Services,Technical Services,Supplies and Services,304221,Equipment and Materials,05-Jan-2015,2841837-20794505,"4,137.94",AGGREGATE INDUSTRIES UK LTD.,
Neighbourhood Services,Technical Services,Supplies and Services,304221,Equipment and Materials,05-Jan-2015,2841837-20794506,"1,095.56",AGGREGATE INDUSTRIES UK LTD.,
Neighbourhood Services,Technical Services,Supplies and Services,304221,Equipment and Materials,05-Jan-2015,2841837-20800387,"1,227.60",AGGREGATE INDUSTRIES UK LTD.,
Neighbourhood Services,Technical Services,Supplies and Services,304221,Equipment and Materials,05-Jan-2015,2841837-20800390,700.63,AGGREGATE INDUSTRIES UK LTD.,
Neighbourhood Services,Technical Services,Supplies and Services,304221,Equipment and Materials,05-Jan-2015,2841837-20818583,588.08,AGGREGATE INDUSTRIES UK LTD.,
Neighbourhood Services,Technical Services,Supplies and Services,304221,Equipment and Materials,05-Jan-2015,2841837-20818584,864.70,AGGREGATE INDUSTRIES UK LTD.,
Neighbourhood Services,Direct Services,Third Party Payments,430100,Rendered by Private Contractors,05-Jan-2015,2841845-98286,752.50,AQUEOUS 1ST KWIK FLOW.,
Neighbourhood Services,Technical Services,Stock,926900,Stock in hand-Inventory system,05-Jan-2015,2841847-923530090,919.48,ARCO LTD.,
Resources,Human Resources,Employees,040149,Recruitment Instruction and Training,05-Jan-2015,2841854-CMX15/01234,"4,156.00",AT WORK PARTNERSHIP LTD.,
Regeneration & Economic Development,Economic Development and Housing,Fees,901002,Professional fees,05-Jan-2015,2841856-14039731,"3,654.00",ATKINS GLOBAL.,
Neighbourhood Services,Projects and Business services,Third Party Payments,430121,Rendered by Private Contractors,05-Jan-2015,2841857-511552,853.88,ATLAS COPCO LTD T/A ATLAS COPCO COMPRESSORS.,
Neighbourhood Services,Direct Services,Third Party Payments,430100,Rendered by Private Contractors,05-Jan-2015,2841859-4906,"7,400.00",ATLAS WASHROOM SYSTEMS LTD.,
Neighbourhood Services,Technical Services,Stock,926900,Stock in hand-Inventory system,05-Jan-2015,2841861-INV093717,"4,894.00",AZTEC CHEMICALS LTD.,
Neighbourhood Services,Direct Services,Vehicles Equipment Furniture and Fittings,912541,Purchase-vehicles,05-Jan-2015,2841864-112815,"49,418.84",BELL TRUCK SALES LTD.,
Neighbourhood Services,Direct Services,Third Party Payments,430100,Rendered by Private Contractors,05-Jan-2015,2841864-26086737,849.66,BELL TRUCK SALES LTD.,
Neighbourhood Services,Culture & Sport,Supplies and Services,384199,Miscellaneous Expenses,05-Jan-2015,2841869-00042,"10,619.48",BISHOP CATERING LTD.,
Neighbourhood Services,Technical Services,Stock,926900,Stock in hand-Inventory system,05-Jan-2015,2841871-8349449,578.50,BOLD NU TEC INSULATION PRODUCTS & SERVICES LTD.,
Children and Adult Services,Public Health,Third Party Payments,460802,Contract Payments,05-Jan-2015,2841873-FD330/NOV2014/EOHC,522.94,BOOTS THE CHEMISTS LTD.,
Children and Adult Services,Public Health,Third Party Payments,460803,Contract Payments,05-Jan-2015,2841877-FGR42/NOV/14,504.00,BOOTS THE CHEMISTS LTD.,
Children and Adult Services,Public Health,Third Party Payments,460802,Contract Payments,05-Jan-2015,2841879-FKP88/NOV2014/EOHC,713.10,BOOTS THE CHEMISTS LTD.,
Neighbourhood Services,Direct Services,Third Party Payments,430100,Rendered by Private Contractors,05-Jan-2015,2841886-82570924,769.20,BRISTOL STREET MOTORS.,
Neighbourhood Services,Direct Services,Supplies and Services,304221,Equipment and Materials,05-Jan-2015,2841889-1660/0148481,"1,364.31",BSS GROUP PLC.,
Neighbourhood Services,Direct Services,Supplies and Services,304221,Equipment and Materials,05-Jan-2015,2841890-1660/0179180,635.37,BSS GROUP PLC.,
Regeneration & Economic Development,Transport and Contracted Services,Supplies and Services,304245,Equipment and Materials,05-Jan-2015,2841891-021942,"1,440.00",BUDDI.,
Regeneration & Economic Development,Economic Development and Housing,Supplies and Services,342051,Computers and Communications,05-Jan-2015,2841894-400147,725.04,BYTES SOFTWARE SERVICES LTD.,
Neighbourhood Services,Projects and Business services,Third Party Payments,430100,Rendered by Private Contractors,05-Jan-2015,2841897-INV-21408,700.00,CAPITA CONFERENCES.,
Neighbourhood Services,Technical Services,Stock,926900,Stock in hand-Inventory system,05-Jan-2015,2841899-851403561,"2,616.00",CARLISLE CONSTRUCTION MATERIALS LTD.,
Neighbourhood Services,Direct Services,Third Party Payments,430100,Rendered by Private Contractors,05-Jan-2015,2841901-453955,"2,215.87",CARRS BILLINGTON AGRICULTURE.,
Neighbourhood Services,Direct Services,Third Party Payments,430100,Rendered by Private Contractors,05-Jan-2015,2841904-087,"12,717.40",CEILINGS DIRECT LTD.,
Neighbourhood Services,Direct Services,Third Party Payments,430100,Rendered by Private Contractors,05-Jan-2015,2841904-088,"1,760.00",CEILINGS DIRECT LTD.,
Neighbourhood Services,Direct Services,Third Party Payments,430100,Rendered by Private Contractors,05-Jan-2015,2841904-089,"3,265.68",CEILINGS DIRECT LTD.,
Resources,Centrally Administered Costs,Third Party Payments,440999,Other Third Party Payments,05-Jan-2015,2841911-RES-01-2015-001,"84,000.00",CIVICA UK LTD.,
Neighbourhood Services,Direct Services,Third Party Payments,430100,Rendered by Private Contractors,05-Jan-2015,2841914-8116787,915.73,CLOVER CONTROLS LTD.,
Children and Adult Services,Head of Adults,Supplies and Services,308013,Furniture,05-Jan-2015,2841915-3913,971.16,CM FLOORING LTD.,
Resources,Legal & Democratic Services,Supplies and Services,338057,Services,05-Jan-2015,2841916-3910005844,"28,267.47",CO DURHAM & DARLINGTON NHS FOUNDATION TRUST.,
Regeneration & Economic Development,Spatial Policy Planning Assets & Environment,Transport,240001,Car Allowances,05-Jan-2015,2841917-1462,730.80,CO WHEELS CAR CLUB CIC.,
Children and Adult Services,Public Health,Third Party Payments,460803,Contract Payments,05-Jan-2015,2841919-FVF01/NOV/14,644.00,CO-OPERATIVE PHARMACY.,
Neighbourhood Services,Technical Services,Third Party Payments,430100,Rendered by Private Contractors,05-Jan-2015,2841920-3692,"3,279.31",COLORADO CONSTRUCTION & ENGINEERING LTD,
Children and Adult Services,Childrens Services,Supplies and Services,384491,Miscellaneous Expenses,05-Jan-2015,2841926-17223,864.00,CORECARE LTD..,
Children and Adult Services,Childrens Services,Employees,080025,Agency Staff,05-Jan-2015,2841933-324284,"42,396.66",DE POEL MANAGED SERVICES LTD.,
Resources,I.C.T. Services,Stock,926900,Stock in hand-Inventory system,05-Jan-2015,2841934-7402171965,"1,931.25",DELL COMPUTER CORPORATION LTD.,
Neighbourhood Services,Direct Services,Transport,210057,Repair and Maintenance of Vehicles,05-Jan-2015,2841935-DE10833608,"1,496.64",DENNIS EAGLE LTD.,
Resources,I.C.T. Services,Stock,926900,Stock in hand-Inventory system,05-Jan-2015,2841937-146936110,688.99,DIVERSEY LTD.,
Regeneration & Economic Development,Transport and Contracted Services,Supplies and Services,384540,Miscellaneous Expenses,05-Jan-2015,2841939-103138,510.00,DODWELL BROS LTD.,
Neighbourhood Services,Direct Services,Third Party Payments,430100,Rendered by Private Contractors,05-Jan-2015,2841941-2039,"1,498.00",DPC SCREEDING LTD.,
Resources,Legal & Democratic Services,Supplies and Services,338057,Services,05-Jan-2015,2841942-CPDMHNOV,"1,051.30",DR C PATEL.,
Resources,Legal & Democratic Services,Supplies and Services,338057,Services,05-Jan-2015,2841942-CPUHNDNOV,"1,244.90",DR C PATEL.,
Resources,Legal & Democratic Services,Supplies and Services,338057,Services,05-Jan-2015,2841944-PB49,774.40,DR PAUL BARRETT.,
Children and Adult Services,Public Health,Third Party Payments,460802,Contract Payments,05-Jan-2015,2841945-A83018/NOV2014HC,610.00,DR YOUNG & PARTNERS.,
Regeneration & Economic Development,Transport and Contracted Services,Third Party Payments,440999,Other Third Party Payments,05-Jan-2015,2841946-5595-24,"1,666.67",DTA CONSULTING ENGINEERS.,
Children and Adult Services,Childrens Services,Supplies and Services,384199,Miscellaneous Expenses,05-Jan-2015,2841951-6761,"2,520.00",EAST DURHAM BUSINESS SERVICE.,
RED HRA,Housing Revenue Account,Third Party Payments,430100,Rendered by Private Contractors,05-Jan-2015,2841953-SINV/00003530,"940,417.00",EAST DURHAM HOMES.,
RED HRA,HRA Capital,Fees,901001,Internal fees,05-Jan-2015,2841953-SINV/00003531,"112,500.00",EAST DURHAM HOMES.,
Neighbourhood Services,Direct Services,Transport,210057,Repair and Maintenance of Vehicles,05-Jan-2015,2841955-S187024,779.87,ECON ENGINEERING LTD.,
Neighbourhood Services,Technical Services,Stock,926900,Stock in hand-Inventory system,05-Jan-2015,2841956-059-154349,568.25,EDMUNDSON ELECTRICAL LTD.,
Neighbourhood Services,Technical Services,Supplies and Services,389001,Inventory Related,05-Jan-2015,2841956-059-155647,"1,634.93",EDMUNDSON ELECTRICAL LTD.,
Neighbourhood Services,Technical Services,Stock,926900,Stock in hand-Inventory system,05-Jan-2015,2841956-059-155858,700.00,EDMUNDSON ELECTRICAL LTD.,
Neighbourhood Services,Direct Services,Supplies and Services,304221,Equipment and Materials,05-Jan-2015,2841956-059-156364,534.00,EDMUNDSON ELECTRICAL LTD.,
Neighbourhood Services,Projects and Business services,Supplies and Services,338027,Services,05-Jan-2015,2841960-MI46615,600.00,FCC RECYCLING (UK)  LTD.,
Neighbourhood Services,Projects and Business services,Third Party Payments,430120,Rendered by Private Contractors,05-Jan-2015,2841962-CTIN06433563,"2,912.42",FINNING (UK) LTD.,
Neighbourhood Services,Projects and Business services,Third Party Payments,430120,Rendered by Private Contractors,05-Jan-2015,2841962-CTIN06433564,"2,549.61",FINNING (UK) LTD.,
Neighbourhood Services,Projects and Business services,Third Party Payments,430120,Rendered by Private Contractors,05-Jan-2015,2841962-CTIN06433565,"3,449.18",FINNING (UK) LTD.,
Neighbourhood Services,Projects and Business services,Third Party Payments,430120,Rendered by Private Contractors,05-Jan-2015,2841962-CTIN06436005,"2,798.11",FINNING (UK) LTD.,
Neighbourhood Services,Projects and Business services,Third Party Payments,430120,Rendered by Private Contractors,05-Jan-2015,2841962-CTIN06436006,"3,389.54",FINNING (UK) LTD.,
Neighbourhood Services,Projects and Business services,Third Party Payments,430120,Rendered by Private Contractors,05-Jan-2015,2841962-CTIN06436007,"3,628.10",FINNING (UK) LTD.,
Neighbourhood Services,Projects and Business services,Third Party Payments,430120,Rendered by Private Contractors,05-Jan-2015,2841962-S1NV8661464,"2,990.54",FINNING (UK) LTD.,
Neighbourhood Services,Projects and Business services,Third Party Payments,430120,Rendered by Private Contractors,05-Jan-2015,2841962-SINV8612874,714.74,FINNING (UK) LTD.,
Neighbourhood Services,Projects and Business services,Third Party Payments,430120,Rendered by Private Contractors,05-Jan-2015,2841962-SINV8612875,"1,836.51",FINNING (UK) LTD.,
Neighbourhood Services,Projects and Business services,Third Party Payments,430120,Rendered by Private Contractors,05-Jan-2015,2841962-SINV8661463,"2,005.49",FINNING (UK) LTD.,
Neighbourhood Services,Projects and Business services,Third Party Payments,430120,Rendered by Private Contractors,05-Jan-2015,2841962-SINV8661465,"2,867.98",FINNING (UK) LTD.,
Resources,I.C.T. Services,Employees,040149,Recruitment Instruction and Training,05-Jan-2015,2841966-16630,695.00,FOCUS ON TRAINING.,
Regeneration & Economic Development,Transport and Contracted Services,Supplies and Services,304245,Equipment and Materials,05-Jan-2015,2841967-SITRH/0006555,"3,120.83",FOUR HOUSING GROUP.,
Neighbourhood Services,Direct Services,Stock,926004,Stock,05-Jan-2015,2841970-216273024,"2,250.00",FUCHS LUBRICANTS (UK) PLC.,
Neighbourhood Services,Direct Services,Supplies and Services,352001,Conference Expenses,05-Jan-2015,2841971-INV-0049,"1,775.00",FUTURE ENERGY SOLUTIONS LTD.,
Neighbourhood Services,Direct Services,Supplies and Services,352001,Conference Expenses,05-Jan-2015,2841971-INV-0050,"1,775.00",FUTURE ENERGY SOLUTIONS LTD.,
Neighbourhood Services,Direct Services,Supplies and Services,352001,Conference Expenses,05-Jan-2015,2841971-INV-0051,"1,775.00",FUTURE ENERGY SOLUTIONS LTD.,
Neighbourhood Services,Direct Services,Supplies and Services,352001,Conference Expenses,05-Jan-2015,2841971-INV-0052,"1,775.00",FUTURE ENERGY SOLUTIONS LTD.,
Neighbourhood Services,Direct Services,Supplies and Services,352001,Conference Expenses,05-Jan-2015,2841971-INV-0053,"1,775.00",FUTURE ENERGY SOLUTIONS LTD.,
Neighbourhood Services,Direct Services,Supplies and Services,352001,Conference Expenses,05-Jan-2015,2841971-INV-0054,"1,775.00",FUTURE ENERGY SOLUTIONS LTD.,
Neighbourhood Services,Direct Services,Supplies and Services,304999,Equipment and Materials,05-Jan-2015,2841979-364058,"3,157.00",GEMCO EQUIPMENT LTD.,
Neighbourhood Services,Direct Services,Supplies and Services,304252,Equipment and Materials,05-Jan-2015,2841979-364111,"2,061.60",GEMCO EQUIPMENT LTD.,
Resources,I.C.T. Services,Supplies and Services,304303,Equipment and Materials,05-Jan-2015,2841989-INV0156790,"7,500.00",GV MULTI MEDIA LTD.,
Neighbourhood Services,Direct Services,Supplies and Services,304221,Equipment and Materials,05-Jan-2015,2841992-SI-2423,552.75,HARELAW SAWMILL LTD.,
Neighbourhood Services,Culture & Sport,Supplies and Services,338047,Services,05-Jan-2015,2841993-HTSS-397,"1,775.00",HARROGATE THEATRE SCENIC SERVICES.,
Neighbourhood Services,Direct Services,Stock,926004,Stock,05-Jan-2015,2841994-512757A,"15,445.73",HARVEST ENERGY LTD.,
Neighbourhood Services,Direct Services,Stock,926004,Stock,05-Jan-2015,2841994-513102,"18,802.10",HARVEST ENERGY LTD.,
Neighbourhood Services,Direct Services,Stock,926004,Stock,05-Jan-2015,2841994-513104,"1,473.84",HARVEST ENERGY LTD.,
Neighbourhood Services,Direct Services,Stock,926004,Stock,05-Jan-2015,2841994-513978,"33,676.27",HARVEST ENERGY LTD.,
Neighbourhood Services,Direct Services,Stock,926004,Stock,05-Jan-2015,2841994-514009,"18,680.36",HARVEST ENERGY LTD.,
Assistant Chief Executive,Partnerships & Community Engagement Div.,Premises,125009,Rents,05-Jan-2015,2841995-ACE-12-2014-011,640.00,HAWTHORN & DISTRICT COMMUNITY ASSOCIATION.,
Assistant Chief Executive,Partnerships & Community Engagement Div.,Premises,125009,Rents,05-Jan-2015,2841996-ACE-12-2014-012,640.00,HENKNOWLE COMMUNITY ASSOCIATION.,
Neighbourhood Services,Direct Services,Third Party Payments,430101,Rendered by Private Contractors,05-Jan-2015,2841998-5067284142,571.66,HI Q TYRESERVICES.,
Neighbourhood Services,Direct Services,Third Party Payments,430101,Rendered by Private Contractors,05-Jan-2015,2841998-5067284143,633.80,HI Q TYRESERVICES.,
Resources,I.C.T. Services,Supplies and Services,304303,Equipment and Materials,05-Jan-2015,2841999-1060234,803.02,HIGHLANDER COMPUTING SOLUTIONS LTD.,
Resources,I.C.T. Services,Supplies and Services,304303,Equipment and Materials,05-Jan-2015,2841999-1061156,"9,537.71",HIGHLANDER COMPUTING SOLUTIONS LTD.,
Neighbourhood Services,Culture & Sport,Supplies and Services,304221,Equipment and Materials,05-Jan-2015,2842007-102358,716.67,INDOOR SPORTS SERVICES LTD.,
Resources,I.C.T. Services,Supplies and Services,304639,Equipment and Materials,05-Jan-2015,2842009-2018779,809.67,INSIGHT DIRECT (UK) LTD.,
Resources,I.C.T. Services,Stock,926900,Stock in hand-Inventory system,05-Jan-2015,2842009-2127780,"2,276.79",INSIGHT DIRECT (UK) LTD.,
Children and Adult Services,Education,Construction Work,908105,Construction work,05-Jan-2015,2842010-DURH/0580,"127,626.70",INSPIREDSPACES DURHAM LTD.,
Children and Adult Services,Education,Construction Work,908105,Construction work,05-Jan-2015,2842010-DURH/0583,"282,678.37",INSPIREDSPACES DURHAM LTD.,
Neighbourhood Services,Technical Services,Stock,926900,Stock in hand-Inventory system,05-Jan-2015,2842011-473335,915.60,INSTARMAC GROUP PLC.,
Neighbourhood Services,Technical Services,Third Party Payments,460053,Contract Payments,05-Jan-2015,2842015-10914,"1,255.72",JACK COUPE & SONS LTD T/A COUPE LINE.,
Neighbourhood Services,Technical Services,Third Party Payments,460053,Contract Payments,05-Jan-2015,2842015-10922,707.75,JACK COUPE & SONS LTD T/A COUPE LINE.,
Neighbourhood Services,Technical Services,Supplies and Services,304221,Equipment and Materials,05-Jan-2015,2842019-3307/0175791,740.16,JEWSON LTD.,
RED HRA,HRA Capital,Construction Work,908105,Construction work,05-Jan-2015,2842028-212928,"1,420.13",JOINERY & TIMBER CREATIONS (65) LTD.,
Neighbourhood Services,Direct Services,Supplies and Services,304221,Equipment and Materials,05-Jan-2015,2842030-BII151085,671.33,JT DOVE LTD.,
Neighbourhood Services,Direct Services,Supplies and Services,304221,Equipment and Materials,05-Jan-2015,2842030-STI413118,"1,305.01",JT DOVE LTD.,
Neighbourhood Services,Technical Services,Supplies and Services,304358,Equipment and Materials,05-Jan-2015,2842034-1023,981.75,KEVIN SNOWDON GROUNDWORKS LTD.,
Neighbourhood Services,Technical Services,Supplies and Services,304358,Equipment and Materials,05-Jan-2015,2842034-1030,548.00,KEVIN SNOWDON GROUNDWORKS LTD.,
Neighbourhood Services,Technical Services,Supplies and Services,342051,Computers and Communications,05-Jan-2015,2842035-2015200,"2,511.00",KEYSOFT SOLUTIONS LTD.,
Neighbourhood Services,Culture & Sport,Supplies and Services,384540,Miscellaneous Expenses,05-Jan-2015,2842036-5435,"1,600.00",KINGFISHER MEDIA LTD.,
Neighbourhood Services,Technical Services,Supplies and Services,304221,Equipment and Materials,05-Jan-2015,2842039-9032031080,647.63,LAFARGE TARMAC TRADING LTD.,
Neighbourhood Services,Technical Services,Supplies and Services,304221,Equipment and Materials,05-Jan-2015,2842039-9032031459,676.45,LAFARGE TARMAC TRADING LTD.,
Neighbourhood Services,Technical Services,Supplies and Services,304221,Equipment and Materials,05-Jan-2015,2842039-9032042644,667.43,LAFARGE TARMAC TRADING LTD.,
Neighbourhood Services,Technical Services,Supplies and Services,304221,Equipment and Materials,05-Jan-2015,2842039-9032056950,"8,713.81",LAFARGE TARMAC TRADING LTD.,
Children and Adult Services,Education,Third Party Payments,440999,Other Third Party Payments,05-Jan-2015,2842041-SIN000613,"3,851.40",LEARNING CURVE (JAA) LTD.,
Assistant Chief Executive,Policy & Communications Division,Supplies and Services,384999,Miscellaneous Expenses,05-Jan-2015,2842042-00965,660.00,LEE DOBSON PHOTOGRAPHY.,
Children and Adult Services,Head of Adults,Supplies and Services,338365,Services,05-Jan-2015,2842049-34740,"2,183.00",LOCKWISE LTD.,
Neighbourhood Services,Projects and Business services,Supplies and Services,304357,Equipment and Materials,05-Jan-2015,2842054-14-4/11/14,"1,200.00",M & E & MR WALTON.,
Neighbourhood Services,Projects and Business services,Supplies and Services,304357,Equipment and Materials,05-Jan-2015,2842054-18,960.00,M & E & MR WALTON.,
Neighbourhood Services,Technical Services,Supplies and Services,304221,Equipment and Materials,05-Jan-2015,2842057-33377,608.16,MAY GURNEY LTD.,
Neighbourhood Services,Technical Services,Supplies and Services,304221,Equipment and Materials,05-Jan-2015,2842057-33441,964.26,MAY GURNEY LTD.,
Resources,Centrally Administered Costs,Supplies and Services,338013,Services,05-Jan-2015,2842058-1005461,"6,995.00",MAZARS LLP.,
Resources,Centrally Administered Costs,Supplies and Services,338013,Services,05-Jan-2015,2842058-1012817,"33,318.00",MAZARS LLP.,
Neighbourhood Services,Projects and Business services,Construction Work,908105,Construction work,05-Jan-2015,2842064-2135,"5,392.99",MOULDING CONTRACTS LTD.,
Resources,Legal & Democratic Services,Supplies and Services,352001,Conference Expenses,05-Jan-2015,2842070-NATAGM6,700.00,NATIONAL ASSOCIATION OF COUNCILLORS.,
Resources,Financial Services,Supplies and Services,312010,Newspapers Books and Periodicals,05-Jan-2015,2842071-281806/0,"12,596.50",NATIONAL LEAFLET CO LTD.,
Neighbourhood Services,Direct Services,Stock,926004,Stock,05-Jan-2015,2842072-INVDUR00311843,805.00,NE TRUCK SPARES LTD.,
Dedicated Schools Grant,Dedicated Schools Grant,Central Support and Capital,689997,Unclassified,05-Jan-2015,2842075-CAS-12-2014-108,"1,541.83",NEW COLLEGE ACADEMIES TRUST - CONSETT ACADEMY.,
Neighbourhood Services,Direct Services,Supplies and Services,304083,Equipment and Materials,05-Jan-2015,2842076-10407386,919.96,NISBETS PLC.,
Dedicated Schools Grant,Dedicated Schools Grant,Third Party Payments,440080,Other Third Party Payments,05-Jan-2015,2842078-0000019747,"7,029.75",NORTH EAST AUTISM SOCIETY.,
Dedicated Schools Grant,Dedicated Schools Grant,Third Party Payments,440080,Other Third Party Payments,05-Jan-2015,2842078-0000019754,"10,219.25",NORTH EAST AUTISM SOCIETY.,
Dedicated Schools Grant,Dedicated Schools Grant,Third Party Payments,440080,Other Third Party Payments,05-Jan-2015,2842078-0000019756,"13,415.00",NORTH EAST AUTISM SOCIETY.,
Dedicated Schools Grant,Dedicated Schools Grant,Third Party Payments,440080,Other Third Party Payments,05-Jan-2015,2842078-0000019767,"7,029.75",NORTH EAST AUTISM SOCIETY.,
Dedicated Schools Grant,Dedicated Schools Grant,Third Party Payments,440080,Other Third Party Payments,05-Jan-2015,2842078-0000019769,"7,761.00",NORTH EAST AUTISM SOCIETY.,
Dedicated Schools Grant,Dedicated Schools Grant,Third Party Payments,425005,Rendered by Voluntary Organisations,05-Jan-2015,2842078-0000019775,"13,942.39",NORTH EAST AUTISM SOCIETY.,
Dedicated Schools Grant,Dedicated Schools Grant,Third Party Payments,440080,Other Third Party Payments,05-Jan-2015,2842079-0000019889,"1,056.04",NORTH EAST AUTISM SOCIETY.,
RED HRA,Housing Revenue Account,Supplies and Services,342053,Computers and Communications,05-Jan-2015,2842083-91326739,"6,000.00",NORTHGATE INFORMATION SOLUTIONS UK LTD.,
Regeneration & Economic Development,Economic Development and Housing,Premises,135005,Water Services,05-Jan-2015,2842085-306808140016051,793.67,NORTHUMBRIAN WATER LTD.,
Neighbourhood Services,Projects and Business services,Third Party Payments,430100,Rendered by Private Contractors,05-Jan-2015,2842092-CN18879340,728.00,OCS GROUP UK LTD T/A CANNON HYGIENE.,
Neighbourhood Services,Direct Services,Supplies and Services,304221,Equipment and Materials,05-Jan-2015,2842096-BR511790,"1,430.00",PARK ELECTRICAL DISTRIBUTORS LTD.,
Neighbourhood Services,Direct Services,Supplies and Services,304221,Equipment and Materials,05-Jan-2015,2842096-BR513423,"2,025.47",PARK ELECTRICAL DISTRIBUTORS LTD.,
Neighbourhood Services,Direct Services,Supplies and Services,304221,Equipment and Materials,05-Jan-2015,2842096-XL131075,"2,872.40",PARK ELECTRICAL DISTRIBUTORS LTD.,
Neighbourhood Services,Technical Services,Stock,926900,Stock in hand-Inventory system,05-Jan-2015,2842096-XL131236,"1,535.07",PARK ELECTRICAL DISTRIBUTORS LTD.,
Neighbourhood Services,Technical Services,Stock,926900,Stock in hand-Inventory system,05-Jan-2015,2842096-XL131257,"4,975.20",PARK ELECTRICAL DISTRIBUTORS LTD.,
Neighbourhood Services,Direct Services,Supplies and Services,304221,Equipment and Materials,05-Jan-2015,2842096-XL131310,"1,650.20",PARK ELECTRICAL DISTRIBUTORS LTD.,
Neighbourhood Services,Technical Services,Stock,926900,Stock in hand-Inventory system,05-Jan-2015,2842096-XL131492,"1,032.37",PARK ELECTRICAL DISTRIBUTORS LTD.,
Neighbourhood Services,Technical Services,Stock,926900,Stock in hand-Inventory system,05-Jan-2015,2842096-XL131638,"3,846.62",PARK ELECTRICAL DISTRIBUTORS LTD.,
Neighbourhood Services,Technical Services,Stock,926900,Stock in hand-Inventory system,05-Jan-2015,2842097-344081291,"8,485.20",PARKER MERCHANTING LTD.,
Dedicated Schools Grant,Dedicated Schools Grant,Third Party Payments,425005,Rendered by Voluntary Organisations,05-Jan-2015,2842099-21631,"18,581.41",PERCY HEDLEY FOUNDATION.,
Neighbourhood Services,Direct Services,Supplies and Services,304221,Equipment and Materials,05-Jan-2015,2842102-212437,"1,449.20",PLUMBING TRADE SUPPLIES LTD.,
Neighbourhood Services,Direct Services,Supplies and Services,304221,Equipment and Materials,05-Jan-2015,2842102-212440,847.06,PLUMBING TRADE SUPPLIES LTD.,
Resources,I.C.T. Services,Supplies and Services,332029,Printing Stationery and Gen Off Exps,05-Jan-2015,2842104-611363,688.00,POTTS PRINTERS LTD.,
Neighbourhood Services,Projects and Business services,Third Party Payments,430116,Rendered by Private Contractors,05-Jan-2015,2842105-1174,"3,539.20",PPTEK LTD.,
Neighbourhood Services,Technical Services,Third Party Payments,430100,Rendered by Private Contractors,05-Jan-2015,2842108-79,945.00,PRM FABRICATIONS LTD.,
Neighbourhood Services,Technical Services,Third Party Payments,430100,Rendered by Private Contractors,05-Jan-2015,2842108-82,"1,550.00",PRM FABRICATIONS LTD.,
Neighbourhood Services,Culture & Sport,Supplies and Services,304252,Equipment and Materials,05-Jan-2015,2842113-25245,"1,520.00",QUANTUM PURSUITS UK LTD T/A VEQTOR.,
Regeneration & Economic Development,Transport and Contracted Services,Third Party Payments,440999,Other Third Party Payments,05-Jan-2015,2842115-4571,572.15,QW SECURITY LTD.,
Neighbourhood Services,Technical Services,Supplies and Services,304358,Equipment and Materials,05-Jan-2015,2842118-9092,"1,363.00",RD KEARTON & SONS LTD.,
Neighbourhood Services,Technical Services,Supplies and Services,304358,Equipment and Materials,05-Jan-2015,2842118-9122,928.00,RD KEARTON & SONS LTD.,
Neighbourhood Services,Culture & Sport,Supplies and Services,324117,Provisions,05-Jan-2015,2842124-INV55802,531.19,RINGTONS LTD.,
Resources,Legal & Democratic Services,Premises,125009,Rents,05-Jan-2015,2842127-6583,571.28,RIVERGREEN DEVELOPMENTS PLC.,
Resources,Legal & Democratic Services,Supplies and Services,340001,Postages,05-Jan-2015,2842130-9048680714,"1,124.55",ROYAL MAIL GROUP PLC.,
Neighbourhood Services,Direct Services,Third Party Payments,430100,Rendered by Private Contractors,05-Jan-2015,2842133-SLINV/00086388,956.00,RTR RIVERSIDE TRUCK RENTAL LTD.,
Neighbourhood Services,Direct Services,Third Party Payments,430100,Rendered by Private Contractors,05-Jan-2015,2842133-SLINV/00086398,"4,958.24",RTR RIVERSIDE TRUCK RENTAL LTD.,
Neighbourhood Services,Direct Services,Transport,210057,Repair and Maintenance of Vehicles,05-Jan-2015,2842136-404484,"1,010.85",S JENNINGS LTD.,
Neighbourhood Services,Technical Services,Supplies and Services,304358,Equipment and Materials,05-Jan-2015,2842141-2014073,709.50,SHIREHAVEN LTD.,
Neighbourhood Services,Technical Services,Supplies and Services,304358,Equipment and Materials,05-Jan-2015,2842141-2014074,539.50,SHIREHAVEN LTD.,
Regeneration & Economic Development,Transport and Contracted Services,Supplies and Services,342053,Computers and Communications,05-Jan-2015,2842143-1020931710,"2,700.00",SIEMENS PLC.,
Regeneration & Economic Development,Transport and Contracted Services,Supplies and Services,342053,Computers and Communications,05-Jan-2015,2842143-1020931711,"1,200.00",SIEMENS PLC.,
Neighbourhood Services,Technical Services,Supplies and Services,304221,Equipment and Materials,05-Jan-2015,2842144-714517568583,566.50,SIG TRADING LTD.,
Neighbourhood Services,Technical Services,Supplies and Services,304221,Equipment and Materials,05-Jan-2015,2842144-714517609572,624.00,SIG TRADING LTD.,
Neighbourhood Services,Technical Services,Supplies and Services,304221,Equipment and Materials,05-Jan-2015,2842146-215794,765.12,SIGNPOST SOLUTIONS LTD.,
Regeneration & Economic Development,Economic Development and Housing,Supplies and Services,384700,Miscellaneous Expenses,05-Jan-2015,2842148-RED-12-2014-203,"2,000.00",SLAM COMMUNITY DEVELOPMENT TRUST (CDT).,
Neighbourhood Services,Culture & Sport,Supplies and Services,324117,Provisions,05-Jan-2015,2842150-11156,896.00,SNOWSHOCK LTD.,
Children and Adult Services,Childrens Services,Supplies and Services,384199,Miscellaneous Expenses,05-Jan-2015,2842151-01/10/2014,"1,666.67",SOUL PURPOSE LEARNING & LIFE MANAGEMENT LTD.,
Neighbourhood Services,Technical Services,Stock,926900,Stock in hand-Inventory system,05-Jan-2015,2842153-270067343,627.20,SOVEREIGN CHEMICALS LTD.,
Neighbourhood Services,Direct Services,Third Party Payments,430100,Rendered by Private Contractors,05-Jan-2015,2842155-4609,"4,287.00",ST ASTIER LTD.,
Dedicated Schools Grant,Dedicated Schools Grant,Central Support and Capital,689997,Unclassified,05-Jan-2015,2842157-CAS-12-2014-109,"3,496.47",STAINDROP SCHOOL.,
Resources,Financial Services,Supplies and Services,384199,Miscellaneous Expenses,05-Jan-2015,2842160-90449702,"2,661.00",STOCKPORT MBC.,
Neighbourhood Services,Technical Services,Stock,926900,Stock in hand-Inventory system,05-Jan-2015,2842162-7154476,"1,346.48",SUPPLIES TEAM LTD.,
Regeneration & Economic Development,Transport and Contracted Services,Supplies and Services,372009,Subscriptions,05-Jan-2015,2842166-95506,"1,110.00",TELECARE SERVICES ASSOCIATION.,
Children and Adult Services,Education,Employees,040001,Recruitment Instruction and Training,05-Jan-2015,2842167-TARINV/15337531,710.10,TES GLOBAL LTD.,
Children and Adult Services,Public Health,Third Party Payments,460803,Contract Payments,05-Jan-2015,2842168-FA121/NOV/14,887.00,TESCO PHARMACY.,
Children and Adult Services,Planning & Service Strategy,Supplies and Services,338094,Services,05-Jan-2015,2842169-2847,"1,872.90",THE DURHAM CENTRE LTD.,
Children and Adult Services,Public Health,Third Party Payments,460802,Contract Payments,05-Jan-2015,2842171-A83035/NOV2014HC,"1,075.00",THE WEARDALE PRACTICE.,
Neighbourhood Services,Technical Services,Stock,926900,Stock in hand-Inventory system,05-Jan-2015,2842172-N/IN136533,942.12,THOMAS OWEN & SONS (NEWCASTLE) LTD.,
Neighbourhood Services,Technical Services,Stock,926900,Stock in hand-Inventory system,05-Jan-2015,2842175-SIP-134099,"1,670.00",THYSSENKRUPP ENCASA A DIVISION OF THYSSENKRUPP ACCESS LTD.,
Neighbourhood Services,Direct Services,Supplies and Services,304221,Equipment and Materials,05-Jan-2015,2842179-29629,998.00,TOTAL PUMP SOLUTIONS LTD.,
Neighbourhood Services,Direct Services,Supplies and Services,304221,Equipment and Materials,05-Jan-2015,2842179-29647,758.00,TOTAL PUMP SOLUTIONS LTD.,
Dedicated Schools Grant,Dedicated Schools Grant,Transfer Payments,510032,School Children,05-Jan-2015,2842180-CAS-12-2014-151,"2,484.11",TOTS `R` US.,
Regeneration & Economic Development,Economic Development and Housing,Construction Work,908105,Construction work,05-Jan-2015,2842185-1907,"34,917.87",TURNEY WYLDE (CONSTRUCTION) LTD.,
Neighbourhood Services,Technical Services,Supplies and Services,304221,Equipment and Materials,05-Jan-2015,2842187-144284,"1,191.06",TYNEDALE ROADSTONE LTD.,
Children and Adult Services,Planning & Service Strategy,Supplies and Services,338091,Services,05-Jan-2015,2842190-102190999-006,"1,000.00",UNIVERSITY OF TEESSIDE.,
Neighbourhood Services,Technical Services,Supplies and Services,304358,Equipment and Materials,05-Jan-2015,2842193-38388,"1,572.00",W MARLEY AGRICULTURAL CONTRACTORS LTD.,
Neighbourhood Services,Technical Services,Supplies and Services,304358,Equipment and Materials,05-Jan-2015,2842193-38461,"1,558.50",W MARLEY AGRICULTURAL CONTRACTORS LTD.,
Neighbourhood Services,Technical Services,Supplies and Services,304358,Equipment and Materials,05-Jan-2015,2842193-38462,"1,466.00",W MARLEY AGRICULTURAL CONTRACTORS LTD.,
Neighbourhood Services,Technical Services,Third Party Payments,460350,Contract Payments,05-Jan-2015,2842193-38481,"2,530.50",W MARLEY AGRICULTURAL CONTRACTORS LTD.,
Neighbourhood Services,Technical Services,Supplies and Services,304221,Equipment and Materials,05-Jan-2015,2842194-17539,503.16,WARD TIMBER LTD.,
Children and Adult Services,Childrens Services,Premises,125009,Rents,05-Jan-2015,2842198-319367,612.00,WHITTLE JONES (GROUP) LTD.,
Children and Adult Services,Public Health,Third Party Payments,460802,Contract Payments,05-Jan-2015,2842201-A83003/NOV2014HC,"1,295.00",WILLINGTON MEDICAL GROUP.,
Neighbourhood Services,Technical Services,Stock,926900,Stock in hand-Inventory system,05-Jan-2015,2842203-18078145,"6,821.29",WOLSELEY UK LTD.,
Neighbourhood Services,Technical Services,Stock,926900,Stock in hand-Inventory system,05-Jan-2015,2842204-18077802,573.10,WOLSELEY UK LTD.,
Neighbourhood Services,Technical Services,Stock,926900,Stock in hand-Inventory system,05-Jan-2015,2842204-18136730,622.19,WOLSELEY UK LTD.,
Neighbourhood Services,Technical Services,Stock,926900,Stock in hand-Inventory system,05-Jan-2015,2842204-18160400,667.97,WOLSELEY UK LTD.,
Neighbourhood Services,Technical Services,Stock,926900,Stock in hand-Inventory system,05-Jan-2015,2842204-18160686,668.40,WOLSELEY UK LTD.,
Neighbourhood Services,Technical Services,Stock,926900,Stock in hand-Inventory system,05-Jan-2015,2842204-18160688,"3,517.13",WOLSELEY UK LTD.,
Neighbourhood Services,Technical Services,Stock,926900,Stock in hand-Inventory system,05-Jan-2015,2842204-18271787,"1,925.28",WOLSELEY UK LTD.,
Neighbourhood Services,Technical Services,Stock,926900,Stock in hand-Inventory system,05-Jan-2015,2842204-18331681,692.55,WOLSELEY UK LTD.,
Neighbourhood Services,Technical Services,Stock,926900,Stock in hand-Inventory system,05-Jan-2015,2842204-18445038,"1,127.16",WOLSELEY UK LTD.,
Children and Adult Services,Childrens Services,Third Party Payments,440005,Other Third Party Payments,06-Jan-2015,2842316-999809,647.15,REDACTED - PAYMENT TO INDIVIDUAL,
Children and Adult Services,Childrens Services,Third Party Payments,440028,Other Third Party Payments,06-Jan-2015,2842322-999239,605.34,REDACTED - PAYMENT TO INDIVIDUAL,
Children and Adult Services,Childrens Services,Third Party Payments,440027,Other Third Party Payments,06-Jan-2015,2842537-998916,874.38,REDACTED - PAYMENT TO INDIVIDUAL,
Children and Adult Services,Childrens Services,Third Party Payments,440001,Other Third Party Payments,06-Jan-2015,2842537-999355,697.20,REDACTED - PAYMENT TO INDIVIDUAL,
Children and Adult Services,Childrens Services,Third Party Payments,440005,Other Third Party Payments,06-Jan-2015,2842542-999477,"1,265.40",REDACTED - PAYMENT TO INDIVIDUAL,
Children and Adult Services,Childrens Services,Third Party Payments,440005,Other Third Party Payments,06-Jan-2015,2842542-999478,"1,203.30",REDACTED - PAYMENT TO INDIVIDUAL,
Children and Adult Services,Childrens Services,Third Party Payments,440005,Other Third Party Payments,06-Jan-2015,2842665-999810,764.36,REDACTED - PAYMENT TO INDIVIDUAL,
Children and Adult Services,Childrens Services,Third Party Payments,440027,Other Third Party Payments,06-Jan-2015,2842727-999212,638.97,REDACTED - PAYMENT TO INDIVIDUAL,
Children and Adult Services,Childrens Services,Third Party Payments,440001,Other Third Party Payments,06-Jan-2015,2842727-999595,575.19,REDACTED - PAYMENT TO INDIVIDUAL,
Neighbourhood Services,Technical Services,Third Party Payments,430100,Rendered by Private Contractors,06-Jan-2015,2842824-001386,"4,158.00",A PARRY MOBILE WELDING & FABRICATION.,
Neighbourhood Services,Technical Services,Third Party Payments,430100,Rendered by Private Contractors,06-Jan-2015,2842824-001387,684.60,A PARRY MOBILE WELDING & FABRICATION.,
Neighbourhood Services,Technical Services,Third Party Payments,430100,Rendered by Private Contractors,06-Jan-2015,2842824-001389,"3,780.00",A PARRY MOBILE WELDING & FABRICATION.,
Regeneration & Economic Development,Economic Development and Housing,Supplies and Services,342053,Computers and Communications,06-Jan-2015,2842827-4666,"4,261.66",ABRITAS LTD.,
Children and Adult Services,Childrens Services,Premises,108099,Service Repairs and Maintenance,06-Jan-2015,2842828-27904191-61,"8,949.33",ADT FIRE & SECURITY PLC.,
Assistant Chief Executive,Partnerships & Community Engagement Div.,Premises,106080,Centrally Controlled Rep and Maint,06-Jan-2015,2842828-28139063-61,"1,630.32",ADT FIRE & SECURITY PLC.,
Neighbourhood Services,Direct Services,Premises,106082,Centrally Controlled Rep and Maint,06-Jan-2015,2842828-28404890-61,594.48,ADT FIRE & SECURITY PLC.,
Neighbourhood Services,Technical Services,Supplies and Services,304221,Equipment and Materials,06-Jan-2015,2842831-20800389,668.00,AGGREGATE INDUSTRIES UK LTD.,
Neighbourhood Services,Technical Services,Supplies and Services,304221,Equipment and Materials,06-Jan-2015,2842831-20806526,"1,196.82",AGGREGATE INDUSTRIES UK LTD.,
Regeneration & Economic Development,Spatial Policy Planning Assets & Environment,Supplies and Services,338066,Services,06-Jan-2015,2842840-1848,760.00,AMR GEOMATICS LTD.,
Neighbourhood Services,Technical Services,Stock,926900,Stock in hand-Inventory system,06-Jan-2015,2842849-923573147,590.86,ARCO LTD.,
Neighbourhood Services,Technical Services,Supplies and Services,338027,Services,06-Jan-2015,2842852-14041047,"3,180.00",ATKINS GLOBAL.,
Children and Adult Services,Education,Third Party Payments,440999,Other Third Party Payments,06-Jan-2015,2842854-1728,"9,000.00",B SKILL LTD.,
Neighbourhood Services,Culture & Sport,Premises,106082,Centrally Controlled Rep and Maint,06-Jan-2015,2842855-26659,"1,027.00",BARR & WRAY LTD.,
Neighbourhood Services,Direct Services,Premises,106082,Centrally Controlled Rep and Maint,06-Jan-2015,2842855-26660,"1,027.00",BARR & WRAY LTD.,
Neighbourhood Services,Culture & Sport,Premises,106082,Centrally Controlled Rep and Maint,06-Jan-2015,2842855-26661,"2,054.00",BARR & WRAY LTD.,
Neighbourhood Services,Culture & Sport,Premises,106082,Centrally Controlled Rep and Maint,06-Jan-2015,2842855-26662,567.00,BARR & WRAY LTD.,
Neighbourhood Services,Direct Services,Premises,106082,Centrally Controlled Rep and Maint,06-Jan-2015,2842855-26663,"1,371.20",BARR & WRAY LTD.,
Neighbourhood Services,Culture & Sport,Premises,106082,Centrally Controlled Rep and Maint,06-Jan-2015,2842855-26899,"1,027.00",BARR & WRAY LTD.,
Neighbourhood Services,Direct Services,Premises,106082,Centrally Controlled Rep and Maint,06-Jan-2015,2842855-26901,915.84,BARR & WRAY LTD.,
Neighbourhood Services,Direct Services,Supplies and Services,304221,Equipment and Materials,06-Jan-2015,2842865-07122014,912.00,BRIAN YOUNGER T/A B & E YOUNGER FLOORING.,
Neighbourhood Services,Direct Services,Supplies and Services,304221,Equipment and Materials,06-Jan-2015,2842868-INV160166,949.00,BROXAP LTD.,
Neighbourhood Services,Direct Services,Premises,108099,Service Repairs and Maintenance,06-Jan-2015,2842882-16140,534.97,CATHEDRAL LOCK & SAFE SERVICES LTD.,
Neighbourhood Services,Direct Services,Third Party Payments,430100,Rendered by Private Contractors,06-Jan-2015,2842884-090,"17,622.70",CEILINGS DIRECT LTD.,
Neighbourhood Services,Direct Services,Supplies and Services,304358,Equipment and Materials,06-Jan-2015,2842885-118650,899.79,CG ROBINSON LTD.,
Neighbourhood Services,Direct Services,Supplies and Services,304358,Equipment and Materials,06-Jan-2015,2842885-118941,"1,104.60",CG ROBINSON LTD.,
Neighbourhood Services,Direct Services,Supplies and Services,304358,Equipment and Materials,06-Jan-2015,2842885-119082,"1,006.20",CG ROBINSON LTD.,
Neighbourhood Services,Direct Services,Supplies and Services,304358,Equipment and Materials,06-Jan-2015,2842885-119218,"1,004.61",CG ROBINSON LTD.,
Neighbourhood Services,Direct Services,Supplies and Services,304358,Equipment and Materials,06-Jan-2015,2842885-119437,"1,083.60",CG ROBINSON LTD.,
Neighbourhood Services,Direct Services,Supplies and Services,304358,Equipment and Materials,06-Jan-2015,2842885-119610,"1,104.60",CG ROBINSON LTD.,
Neighbourhood Services,Direct Services,Supplies and Services,304358,Equipment and Materials,06-Jan-2015,2842885-119801,"1,104.60",CG ROBINSON LTD.,
Children and Adult Services,Childrens Services,Third Party Payments,479101,Purchase of Care,06-Jan-2015,2842892-3980004676,"6,939.30",CO DURHAM & DARLINGTON NHS FOUNDATION TRUST.,
Neighbourhood Services,Culture & Sport,Supplies and Services,324001,Provisions,06-Jan-2015,2842893-9101963993,667.68,COCA COLA ENTERPRISES LTD.,
Children and Adult Services,Head of Adults,Supplies and Services,338365,Services,06-Jan-2015,2842899-SITRH/0006554,"20,266.81",COUNTY DURHAM HANDYPERSON SERVICE.,
Children and Adult Services,Head of Adults,Third Party Payments,478151,Purchase of Care,06-Jan-2015,2842902-0000164039,"1,470.00",CREATIVE SUPPORT LTD.,
Children and Adult Services,Education,Supplies and Services,342033,Computers and Communications,06-Jan-2015,2842914-7402173065,"1,076.90",DELL COMPUTER CORPORATION LTD.,
RED HRA,HRA Capital,Construction Work,908105,Construction work,06-Jan-2015,2842926-21384,"1,265.16",EASIBATHE LTD.,
Neighbourhood Services,Technical Services,Employees,040149,Recruitment Instruction and Training,06-Jan-2015,2842927-0000034941,"1,000.00",EAST DURHAM COLLEGE.,
Dedicated Schools Grant,Dedicated Schools Grant,Supplies and Services,338089,Services,06-Jan-2015,2842935-3479,"1,000.00",EXPERIENTIAL PLAY LTD.,
Children and Adult Services,Childrens Services,Supplies and Services,384871,Miscellaneous Expenses,06-Jan-2015,2842936-12169,995.50,FAMILY LINKS.,
Children and Adult Services,Education,Transport,230005,Contract Hire,06-Jan-2015,2842944-1555,"1,260.00",GEM TRAVEL.,
Neighbourhood Services,Technical Services,Supplies and Services,304358,Equipment and Materials,06-Jan-2015,2842945-9752,"1,450.00",GEORGE VARDY HAULAGE.,
Neighbourhood Services,Technical Services,Supplies and Services,304358,Equipment and Materials,06-Jan-2015,2842945-9866,"1,260.00",GEORGE VARDY HAULAGE.,
Neighbourhood Services,Technical Services,Supplies and Services,304358,Equipment and Materials,06-Jan-2015,2842945-9877,"1,439.50",GEORGE VARDY HAULAGE.,
Neighbourhood Services,Technical Services,Supplies and Services,304358,Equipment and Materials,06-Jan-2015,2842945-9882,685.00,GEORGE VARDY HAULAGE.,
Neighbourhood Services,Technical Services,Supplies and Services,304358,Equipment and Materials,06-Jan-2015,2842945-9883,730.00,GEORGE VARDY HAULAGE.,
Neighbourhood Services,Technical Services,Supplies and Services,304358,Equipment and Materials,06-Jan-2015,2842945-9887,"1,777.50",GEORGE VARDY HAULAGE.,
Neighbourhood Services,Technical Services,Supplies and Services,304358,Equipment and Materials,06-Jan-2015,2842945-9891,690.00,GEORGE VARDY HAULAGE.,
Neighbourhood Services,Technical Services,Supplies and Services,304358,Equipment and Materials,06-Jan-2015,2842945-9892,730.00,GEORGE VARDY HAULAGE.,
Neighbourhood Services,Technical Services,Supplies and Services,304358,Equipment and Materials,06-Jan-2015,2842945-9902,"1,439.50",GEORGE VARDY HAULAGE.,
Neighbourhood Services,Technical Services,Supplies and Services,304358,Equipment and Materials,06-Jan-2015,2842945-9904,730.00,GEORGE VARDY HAULAGE.,
Neighbourhood Services,Technical Services,Supplies and Services,304358,Equipment and Materials,06-Jan-2015,2842945-9906,"1,439.50",GEORGE VARDY HAULAGE.,
Neighbourhood Services,Technical Services,Supplies and Services,304358,Equipment and Materials,06-Jan-2015,2842945-9909,670.00,GEORGE VARDY HAULAGE.,
Neighbourhood Services,Technical Services,Supplies and Services,304358,Equipment and Materials,06-Jan-2015,2842945-9910,"1,570.00",GEORGE VARDY HAULAGE.,
Neighbourhood Services,Direct Services,Transport,230005,Contract Hire,06-Jan-2015,2842945-9911,"2,030.00",GEORGE VARDY HAULAGE.,
Neighbourhood Services,Technical Services,Supplies and Services,304358,Equipment and Materials,06-Jan-2015,2842945-9930,730.00,GEORGE VARDY HAULAGE.,
Neighbourhood Services,Technical Services,Supplies and Services,304358,Equipment and Materials,06-Jan-2015,2842945-9932,"1,439.50",GEORGE VARDY HAULAGE.,
Neighbourhood Services,Technical Services,Supplies and Services,304358,Equipment and Materials,06-Jan-2015,2842945-9938,"1,439.50",GEORGE VARDY HAULAGE.,
Neighbourhood Services,Technical Services,Stock,926900,Stock in hand-Inventory system,06-Jan-2015,2842954-06/536920,833.71,GREENHAM TRADING LTD.,
Neighbourhood Services,Technical Services,Stock,926900,Stock in hand-Inventory system,06-Jan-2015,2842954-06/537562,"1,571.84",GREENHAM TRADING LTD.,
Neighbourhood Services,Technical Services,Stock,926900,Stock in hand-Inventory system,06-Jan-2015,2842954-06/538299,"2,554.24",GREENHAM TRADING LTD.,
Neighbourhood Services,Technical Services,Stock,926900,Stock in hand-Inventory system,06-Jan-2015,2842954-06/539082,854.45,GREENHAM TRADING LTD.,
Children and Adult Services,Childrens Services,Transport,235073,Public Transport,06-Jan-2015,2842955-0000010111,540.00,GROUNDWORK NORTH EAST.,
Neighbourhood Services,Direct Services,Premises,115125,Repairs to Grounds,06-Jan-2015,2842956-0357/14,"1,080.00",H BRADLEY.,
Assistant Chief Executive,Policy & Communications Division,Employees,040149,Recruitment Instruction and Training,06-Jan-2015,2842962-0040148021,790.00,HARTLEPOOL BOROUGH COUNCIL.,
Neighbourhood Services,Technical Services,Third Party Payments,460350,Contract Payments,06-Jan-2015,2842970-2151,595.50,IAN C LIDDLE.,
Neighbourhood Services,Technical Services,Third Party Payments,460350,Contract Payments,06-Jan-2015,2842970-2153,597.00,IAN C LIDDLE.,
Neighbourhood Services,Technical Services,Third Party Payments,460350,Contract Payments,06-Jan-2015,2842970-2154,"1,297.50",IAN C LIDDLE.,
Regeneration & Economic Development,Spatial Policy Planning Assets & Environment,Vehicles Equipment Furniture and Fittings,912701,Computer equipment,06-Jan-2015,2842971-7003944,"10,220.00",IDOX SOFTWARE LTD.,
Neighbourhood Services,Culture & Sport,Supplies and Services,338099,Services,06-Jan-2015,2842972-4806787,"1,854.61",IMG UK LTD.,
Neighbourhood Services,Technical Services,Employees,040149,Recruitment Instruction and Training,06-Jan-2015,2842975-V12578,"1,275.00",INSTITUTION OF LIGHTING PROFESSIONALS (ILP).,
Children and Adult Services,Planning & Service Strategy,Supplies and Services,338089,Services,06-Jan-2015,2842977-DCC/012015/LF041,"2,800.00",IPLUS TRAINING & CONSULTANCY SOCIAL ENTERPRISE LTD.,
Neighbourhood Services,Technical Services,Third Party Payments,460350,Contract Payments,06-Jan-2015,2842978-0887,508.50,J & JG GILL & SONS LTD.,
Neighbourhood Services,Technical Services,Supplies and Services,304358,Equipment and Materials,06-Jan-2015,2842978-0905,760.00,J & JG GILL & SONS LTD.,
Neighbourhood Services,Technical Services,Third Party Payments,460350,Contract Payments,06-Jan-2015,2842978-0922,"1,951.00",J & JG GILL & SONS LTD.,
Neighbourhood Services,Technical Services,Third Party Payments,460350,Contract Payments,06-Jan-2015,2842978-0946,"2,991.00",J & JG GILL & SONS LTD.,
Neighbourhood Services,Technical Services,Third Party Payments,460350,Contract Payments,06-Jan-2015,2842979-5304802,593.00,JA GILSON (AGRICULTURAL CONTRACTORS) LTD.,
Neighbourhood Services,Technical Services,Supplies and Services,304358,Equipment and Materials,06-Jan-2015,2842979-5304803,"1,462.27",JA GILSON (AGRICULTURAL CONTRACTORS) LTD.,
Neighbourhood Services,Technical Services,Third Party Payments,460350,Contract Payments,06-Jan-2015,2842979-5304805,597.00,JA GILSON (AGRICULTURAL CONTRACTORS) LTD.,
Neighbourhood Services,Technical Services,Supplies and Services,304358,Equipment and Materials,06-Jan-2015,2842979-5304806,"1,462.27",JA GILSON (AGRICULTURAL CONTRACTORS) LTD.,
Neighbourhood Services,Technical Services,Supplies and Services,304358,Equipment and Materials,06-Jan-2015,2842979-5304808,"1,462.27",JA GILSON (AGRICULTURAL CONTRACTORS) LTD.,
Neighbourhood Services,Technical Services,Third Party Payments,460350,Contract Payments,06-Jan-2015,2842979-5304811,"2,021.25",JA GILSON (AGRICULTURAL CONTRACTORS) LTD.,
Neighbourhood Services,Direct Services,Third Party Payments,430100,Rendered by Private Contractors,06-Jan-2015,2842986-2621,"1,218.35",JAMES INGLEFORD SCAFFOLDING LTD.,
Neighbourhood Services,Direct Services,Third Party Payments,430100,Rendered by Private Contractors,06-Jan-2015,2842986-2648,522.15,JAMES INGLEFORD SCAFFOLDING LTD.,
Neighbourhood Services,Direct Services,Third Party Payments,430100,Rendered by Private Contractors,06-Jan-2015,2842986-2652,595.12,JAMES INGLEFORD SCAFFOLDING LTD.,
Neighbourhood Services,Direct Services,Third Party Payments,430100,Rendered by Private Contractors,06-Jan-2015,2842986-2658,655.84,JAMES INGLEFORD SCAFFOLDING LTD.,
Neighbourhood Services,Direct Services,Third Party Payments,430100,Rendered by Private Contractors,06-Jan-2015,2842986-2659,"2,322.86",JAMES INGLEFORD SCAFFOLDING LTD.,
Regeneration & Economic Development,Economic Development and Housing,Supplies and Services,384700,Miscellaneous Expenses,06-Jan-2015,2843009-RED-12-2014-175,"1,000.00",JW WOOD HOMEMOVE PROPERTY MANAGEMENT LTD.,
Regeneration & Economic Development,Economic Development and Housing,Other Expenses,914001,Other capital expenses,06-Jan-2015,2843010-RED-01-2015-036,"3,467.00",K HARRISON (BUILDER) NE LTD.,
Regeneration & Economic Development,Economic Development and Housing,Supplies and Services,384700,Miscellaneous Expenses,06-Jan-2015,2843012-RED-01-2015-039,"1,000.00",REDACTED - PAYMENT TO INDIVIDUAL,
Neighbourhood Services,Technical Services,Supplies and Services,304221,Equipment and Materials,06-Jan-2015,2843022-9031936980,738.80,LAFARGE TARMAC TRADING LTD.,
Neighbourhood Services,Technical Services,Stock,926900,Stock in hand-Inventory system,06-Jan-2015,2843022-9032026924,615.07,LAFARGE TARMAC TRADING LTD.,
Neighbourhood Services,Technical Services,Supplies and Services,304221,Equipment and Materials,06-Jan-2015,2843022-9032030364,738.80,LAFARGE TARMAC TRADING LTD.,
Neighbourhood Services,Technical Services,Supplies and Services,304221,Equipment and Materials,06-Jan-2015,2843022-9032042649,669.45,LAFARGE TARMAC TRADING LTD.,
Neighbourhood Services,Technical Services,Supplies and Services,304221,Equipment and Materials,06-Jan-2015,2843022-9032066451,"1,111.04",LAFARGE TARMAC TRADING LTD.,
Neighbourhood Services,Technical Services,Supplies and Services,304221,Equipment and Materials,06-Jan-2015,2843022-9032069412,566.72,LAFARGE TARMAC TRADING LTD.,
Neighbourhood Services,Technical Services,Supplies and Services,304221,Equipment and Materials,06-Jan-2015,2843022-9032069413,525.74,LAFARGE TARMAC TRADING LTD.,
Children and Adult Services,Education,Construction Work,908105,Construction work,06-Jan-2015,2843037-17823,720.00,LUCION ENVIRONMENTAL LLP LTD.,
Neighbourhood Services,Technical Services,Supplies and Services,304358,Equipment and Materials,06-Jan-2015,2843039-12A,"2,855.29",M & E & MR WALTON.,
Neighbourhood Services,Technical Services,Supplies and Services,304358,Equipment and Materials,06-Jan-2015,2843039-13A,"2,555.48",M & E & MR WALTON.,
Neighbourhood Services,Culture & Sport,Supplies and Services,324117,Provisions,06-Jan-2015,2843044-180347,524.08,MARK TONEY & CO LTD.,
Neighbourhood Services,Technical Services,Stock,926900,Stock in hand-Inventory system,06-Jan-2015,2843053-001/93473,"2,518.08",MH SOUTHERN & CO LTD.,
Neighbourhood Services,Technical Services,Third Party Payments,430100,Rendered by Private Contractors,06-Jan-2015,2843054-216,870.40,MICHAEL KELLY.,
Neighbourhood Services,Technical Services,Third Party Payments,430100,Rendered by Private Contractors,06-Jan-2015,2843054-217,998.40,MICHAEL KELLY.,
Regeneration & Economic Development,Spatial Policy Planning Assets & Environment,Premises,125009,Rents,06-Jan-2015,2843056-4828,"17,793.75",MINTON OLDBURY LTD.,
Regeneration & Economic Development,Transport and Contracted Services,Supplies and Services,384199,Miscellaneous Expenses,06-Jan-2015,2843058-DFTFUNDING001,"81,500.00",MODESHIFT.,
Children and Adult Services,Education,Construction Work,908105,Construction work,06-Jan-2015,2843067-2279,"1,250.00",MTL SCAFFOLDING LTD.,
Children and Adult Services,Childrens Services,Supplies and Services,304259,Equipment and Materials,06-Jan-2015,2843069-2014088407,680.18,NEOPOST FINANCE LTD.,
Children and Adult Services,Childrens Services,Supplies and Services,304259,Equipment and Materials,06-Jan-2015,2843069-444205,699.48,NEOPOST FINANCE LTD.,
Regeneration & Economic Development,Economic Development and Housing,Cap Exp on Grants & Other Financial Assistance (REFCUS),918401,Capital grants,06-Jan-2015,2843073-RED-01-2015-037,"4,262.87",REDACTED - PAYMENT TO INDIVIDUAL,
Dedicated Schools Grant,Dedicated Schools Grant,Third Party Payments,440080,Other Third Party Payments,06-Jan-2015,2843076-0000019972,765.99,NORTH EAST AUTISM SOCIETY.,
Dedicated Schools Grant,Dedicated Schools Grant,Third Party Payments,440080,Other Third Party Payments,06-Jan-2015,2843076-0000019990,"1,611.03",NORTH EAST AUTISM SOCIETY.,
Regeneration & Economic Development,Spatial Policy Planning Assets & Environment,Supplies and Services,338099,Services,06-Jan-2015,2843078-0079,"2,610.00",NORTHERN HABITAT LTD.,
Regeneration & Economic Development,Economic Development and Housing,Premises,120009,Energy Costs,06-Jan-2015,2843079-NNO7MTSG,"11,266.23",NPOWER.,
Neighbourhood Services,Technical Services,Employees,080025,Agency Staff,06-Jan-2015,2843081-1324,"2,600.00",OGI GROUNDWATER SPECIALISTS LTD.,
Neighbourhood Services,Technical Services,Supplies and Services,338027,Services,06-Jan-2015,2843086-190216,"7,846.64",PARSONS BRINCKERHOFF.,
Neighbourhood Services,Culture & Sport,Supplies and Services,384700,Miscellaneous Expenses,06-Jan-2015,2843090-12850/15,"6,250.00",PIONEERING CARE PARTNERSHIP.,
Neighbourhood Services,Direct Services,Supplies and Services,304221,Equipment and Materials,06-Jan-2015,2843092-212274.,"16,795.80",PLUMBING TRADE SUPPLIES LTD.,
Neighbourhood Services,Direct Services,Supplies and Services,304221,Equipment and Materials,06-Jan-2015,2843092-213131,681.34,PLUMBING TRADE SUPPLIES LTD.,
Neighbourhood Services,Direct Services,Third Party Payments,430100,Rendered by Private Contractors,06-Jan-2015,2843093-900690498,"2,045.34",PORTAKABIN LTD.,
Assistant Chief Executive,Partnerships & Community Engagement Div.,Transfer Payments,525030,Other,06-Jan-2015,2843095,"5,076.00",PRE SCHOOL LEARNING ALLIANCE.,
Neighbourhood Services,Technical Services,Stock,926900,Stock in hand-Inventory system,06-Jan-2015,2843096-38165,538.00,PREFORMED MARKINGS LTD.,
Neighbourhood Services,Direct Services,Supplies and Services,304221,Equipment and Materials,06-Jan-2015,2843098-11913,"1,447.20",PROBRUSH T/A NORTHERN MUNICIPAL SPARES LTD.,
Neighbourhood Services,EnvironmentHealth & Consumer Protection,Supplies and Services,384199,Miscellaneous Expenses,06-Jan-2015,2843100-IN-14-WP-000816,640.00,PUBLIC ANALYST SCIENTIFIC SERVICES LTD.,
Resources,I.C.T. Services,Construction Work,908105,Construction work,06-Jan-2015,2843105-INV-0319,"1,685.80",REDWOOD CABLE PROJECTS.,
Regeneration & Economic Development,Economic Development and Housing,Construction Work,908105,Construction work,06-Jan-2015,2843112-7351,"14,925.00",ROBERTSON SIMPSON LTD.,
Regeneration & Economic Development,Economic Development and Housing,Supplies and Services,368008,Incentives to Industrialists,06-Jan-2015,2843121-1407,700.00,SALLY ANN NORMAN PHOTOGRAPHY.,
Regeneration & Economic Development,Economic Development and Housing,Supplies and Services,384899,Miscellaneous Expenses,06-Jan-2015,2843123-013/456,725.00,SARAH PATRICK CONSULTING.,
Regeneration & Economic Development,Economic Development and Housing,Supplies and Services,384899,Miscellaneous Expenses,06-Jan-2015,2843123-013/457,"1,250.00",SARAH PATRICK CONSULTING.,
Resources,I.C.T. Services,Supplies and Services,332029,Printing Stationery and Gen Off Exps,06-Jan-2015,2843125-91989790,780.00,SERVICE POINT (UK) LTD.,
Neighbourhood Services,Culture & Sport,Supplies and Services,338099,Services,06-Jan-2015,2843129-109119,"4,600.00",SHOWSEC INTERNATIONAL LTD.,
Neighbourhood Services,Technical Services,Supplies and Services,304221,Equipment and Materials,06-Jan-2015,2843131-282038/120259,525.63,SIGNATURE LTD T/A POST & COLUMN CO LTD.,
Neighbourhood Services,Culture & Sport,Premises,145023,Cleaning and Domestic Supplies,06-Jan-2015,2843132-269574,976.30,SIS CHEMICALS.,
Neighbourhood Services,Culture & Sport,Third Party Payments,440999,Other Third Party Payments,06-Jan-2015,2843138-575JAN15,948.00,SOUTH DURHAM GYMNASTICS CLUB.,
Neighbourhood Services,Culture & Sport,Premises,106082,Centrally Controlled Rep and Maint,06-Jan-2015,2843139-4601,"12,361.00",ST ASTIER LTD.,
Resources,Financial Services,Supplies and Services,384199,Miscellaneous Expenses,06-Jan-2015,2843146-90449887,"2,261.85",STOCKPORT MBC.,
Neighbourhood Services,Technical Services,Stock,926900,Stock in hand-Inventory system,06-Jan-2015,2843147-INV123796,"1,195.02",STOCKSIGNS LTD.,
Children and Adult Services,Head of Adults,Employees,080025,Agency Staff,06-Jan-2015,2843156-4810004041,"3,876.42",TEES ESK & WEAR VALLEYS NHS FOUNDATION TRUST.,
Children and Adult Services,Education,Employees,040001,Recruitment Instruction and Training,06-Jan-2015,2843158-NUMBERTARINV/15338033,710.10,TES GLOBAL LTD.,
Children and Adult Services,Education,Employees,040001,Recruitment Instruction and Training,06-Jan-2015,2843158-TARINV/15338137,710.10,TES GLOBAL LTD.,
Children and Adult Services,Education,Premises,125009,Rents,06-Jan-2015,2843159-3364,"5,838.75",THE WORK PLACE (AYCLIFFE) LTD.,
Children and Adult Services,Education,Premises,125009,Rents,06-Jan-2015,2843159-3365,"1,233.60",THE WORK PLACE (AYCLIFFE) LTD.,
Neighbourhood Services,Direct Services,Premises,106082,Centrally Controlled Rep and Maint,06-Jan-2015,2843167-29598,"1,243.00",TOTAL PUMP SOLUTIONS LTD.,
Neighbourhood Services,Culture & Sport,Premises,106080,Centrally Controlled Rep and Maint,06-Jan-2015,2843172-2368,"1,096.50",WATERMAN ENVIRONMENTAL SERVICES.,
Neighbourhood Services,Culture & Sport,Premises,106083,Centrally Controlled Rep and Maint,06-Jan-2015,2843172-2370,"1,189.50",WATERMAN ENVIRONMENTAL SERVICES.,
Neighbourhood Services,Direct Services,Premises,106080,Centrally Controlled Rep and Maint,06-Jan-2015,2843172-2372,"17,975.28",WATERMAN ENVIRONMENTAL SERVICES.,
Neighbourhood Services,Technical Services,Supplies and Services,304221,Equipment and Materials,06-Jan-2015,2843177-37407,"1,457.07",WILLOWCRETE MFG CO LTD.,
Neighbourhood Services,Technical Services,Stock,926900,Stock in hand-Inventory system,06-Jan-2015,2843179-18445026,"6,052.12",WOLSELEY UK LTD.,
Neighbourhood Services,Technical Services,Stock,926900,Stock in hand-Inventory system,06-Jan-2015,2843179-18445027,864.10,WOLSELEY UK LTD.,
Neighbourhood Services,Technical Services,Stock,926900,Stock in hand-Inventory system,06-Jan-2015,2843179-18445030,"2,469.85",WOLSELEY UK LTD.,
Neighbourhood Services,Technical Services,Supplies and Services,384110,Miscellaneous Expenses,06-Jan-2015,2843180-14017164,"3,262.50",XP SOLUTIONS SOFTWARE LTD.,
Neighbourhood Services,Culture & Sport,Third Party Payments,430100,Rendered by Private Contractors,07-Jan-2015,2843181-LCPMF15736,"56,837.97",1LIFE MANAGEMENT SOLUTIONS LTD.,
Children and Adult Services,Education,Transport,230008,Contract Hire,07-Jan-2015,2843185-13,900.00,A & P TAXIS.,
Children and Adult Services,Education,Transport,230008,Contract Hire,07-Jan-2015,2843186-A23/SA,"1,776.00",AABAT TAXIS.,
Children and Adult Services,Childrens Services,Transport,230005,Contract Hire,07-Jan-2015,2843186-A28/SF,"1,195.00",AABAT TAXIS.,
Children and Adult Services,Education,Transport,230007,Contract Hire,07-Jan-2015,2843187-39,870.00,AALPHA TAXIS.,
Regeneration & Economic Development,Economic Development and Housing,Supplies and Services,342053,Computers and Communications,07-Jan-2015,2843189-4190,584.46,ABRITAS LTD.,
Regeneration & Economic Development,Economic Development and Housing,Supplies and Services,342053,Computers and Communications,07-Jan-2015,2843189-4881,"4,409.00",ABRITAS LTD.,
Neighbourhood Services,Culture & Sport,Supplies and Services,304259,Equipment and Materials,07-Jan-2015,2843190-116251441,"1,288.22",AC ENTERTAINMENT TECHNOLOGIES.,
Children and Adult Services,Education,Transport,230006,Contract Hire,07-Jan-2015,2843191-564,720.00,AC TAXIS.,
Resources,Legal & Democratic Services,Supplies and Services,340001,Postages,07-Jan-2015,2843194-IS1244793,"1,267.20",ADARE INSPIRED COMMUNICATIONS.,
Resources,Legal & Democratic Services,Supplies and Services,340001,Postages,07-Jan-2015,2843194-IS1244800,"1,087.20",ADARE INSPIRED COMMUNICATIONS.,
Resources,Legal & Democratic Services,Supplies and Services,340001,Postages,07-Jan-2015,2843194-IS1244886,"2,105.88",ADARE INSPIRED COMMUNICATIONS.,
Resources,Legal & Democratic Services,Supplies and Services,340001,Postages,07-Jan-2015,2843194-IS1244970,"1,108.33",ADARE INSPIRED COMMUNICATIONS.,
Resources,Legal & Democratic Services,Supplies and Services,340001,Postages,07-Jan-2015,2843194-IS1245281,"1,103.81",ADARE INSPIRED COMMUNICATIONS.,
Children and Adult Services,Public Health,Third Party Payments,460803,Contract Payments,07-Jan-2015,2843195-0000000426,"108,108.25",AGE UK COUNTY DURHAM.,
Neighbourhood Services,Technical Services,Supplies and Services,304221,Equipment and Materials,07-Jan-2015,2843197-20628351,"7,363.12",AGGREGATE INDUSTRIES UK LTD.,
Neighbourhood Services,Technical Services,Supplies and Services,304221,Equipment and Materials,07-Jan-2015,2843197-20634229,"7,344.52",AGGREGATE INDUSTRIES UK LTD.,
Neighbourhood Services,Technical Services,Supplies and Services,304221,Equipment and Materials,07-Jan-2015,2843197-20639958,"6,090.88",AGGREGATE INDUSTRIES UK LTD.,
Neighbourhood Services,Technical Services,Supplies and Services,304221,Equipment and Materials,07-Jan-2015,2843197-20645764,"7,696.68",AGGREGATE INDUSTRIES UK LTD.,
Neighbourhood Services,Technical Services,Supplies and Services,304221,Equipment and Materials,07-Jan-2015,2843197-20761218,"1,044.48",AGGREGATE INDUSTRIES UK LTD.,
Neighbourhood Services,Technical Services,Supplies and Services,304221,Equipment and Materials,07-Jan-2015,2843197-20767341,"1,012.70",AGGREGATE INDUSTRIES UK LTD.,
Neighbourhood Services,Technical Services,Supplies and Services,304221,Equipment and Materials,07-Jan-2015,2843197-20773708,925.98,AGGREGATE INDUSTRIES UK LTD.,
Neighbourhood Services,Technical Services,Supplies and Services,304221,Equipment and Materials,07-Jan-2015,2843197-20773709,"1,067.64",AGGREGATE INDUSTRIES UK LTD.,
Neighbourhood Services,Technical Services,Supplies and Services,304221,Equipment and Materials,07-Jan-2015,2843197-20794507,513.56,AGGREGATE INDUSTRIES UK LTD.,
Neighbourhood Services,Technical Services,Supplies and Services,304221,Equipment and Materials,07-Jan-2015,2843197-20800388,"2,744.00",AGGREGATE INDUSTRIES UK LTD.,
Neighbourhood Services,Technical Services,Supplies and Services,304221,Equipment and Materials,07-Jan-2015,2843197-20826055,562.48,AGGREGATE INDUSTRIES UK LTD.,
Neighbourhood Services,Technical Services,Supplies and Services,304221,Equipment and Materials,07-Jan-2015,2843197-20826056,571.75,AGGREGATE INDUSTRIES UK LTD.,
Children and Adult Services,Education,Transport,230007,Contract Hire,07-Jan-2015,2843198-SAS1214ESH,675.00,AIRPORT CARS DURHAM,
Children and Adult Services,Head of Adults,Transport,230005,Contract Hire,07-Jan-2015,2843198-SAS1214NCL,"1,275.00",AIRPORT CARS DURHAM,
Children and Adult Services,Education,Transport,230006,Contract Hire,07-Jan-2015,2843199-388029,570.00,ALAN SOUTHERN T/A ALANS TAXIS PELTON FELL.,
Children and Adult Services,Education,Transport,230008,Contract Hire,07-Jan-2015,2843199-388129,750.00,ALAN SOUTHERN T/A ALANS TAXIS PELTON FELL.,
Children and Adult Services,Education,Transport,230008,Contract Hire,07-Jan-2015,2843199-388229,"1,117.50",ALAN SOUTHERN T/A ALANS TAXIS PELTON FELL.,
Dedicated Schools Grant,Dedicated Schools Grant,Transport,230201,Contract Hire,07-Jan-2015,2843206-RI0001384227,808.16,ARVAL UK LTD.,
Children and Adult Services,Public Health,Third Party Payments,460803,Contract Payments,07-Jan-2015,2843209-DTPB/00000002,"2,150.04",ASDA PHARMACY.,
Neighbourhood Services,Culture & Sport,Supplies and Services,312013,Newspapers Books and Periodicals,07-Jan-2015,2843210-4501226,"1,292.80",ASKEWS & HOLTS LIBRARY SERVICES LTD.,
Neighbourhood Services,Culture & Sport,Supplies and Services,312013,Newspapers Books and Periodicals,07-Jan-2015,2843210-4501380,"1,030.20",ASKEWS & HOLTS LIBRARY SERVICES LTD.,
Neighbourhood Services,Culture & Sport,Supplies and Services,312013,Newspapers Books and Periodicals,07-Jan-2015,2843210-4501381,"1,026.54",ASKEWS & HOLTS LIBRARY SERVICES LTD.,
Neighbourhood Services,Culture & Sport,Supplies and Services,312013,Newspapers Books and Periodicals,07-Jan-2015,2843210-4504323,539.75,ASKEWS & HOLTS LIBRARY SERVICES LTD.,
Neighbourhood Services,Culture & Sport,Supplies and Services,312017,Newspapers Books and Periodicals,07-Jan-2015,2843210-4504805,781.81,ASKEWS & HOLTS LIBRARY SERVICES LTD.,
Neighbourhood Services,Culture & Sport,Supplies and Services,312017,Newspapers Books and Periodicals,07-Jan-2015,2843210-4504835,690.22,ASKEWS & HOLTS LIBRARY SERVICES LTD.,
Neighbourhood Services,Culture & Sport,Supplies and Services,312013,Newspapers Books and Periodicals,07-Jan-2015,2843210-4511575,841.62,ASKEWS & HOLTS LIBRARY SERVICES LTD.,
Neighbourhood Services,Culture & Sport,Supplies and Services,312013,Newspapers Books and Periodicals,07-Jan-2015,2843210-4511656,"1,010.79",ASKEWS & HOLTS LIBRARY SERVICES LTD.,
Neighbourhood Services,Culture & Sport,Supplies and Services,312013,Newspapers Books and Periodicals,07-Jan-2015,2843210-4511739,525.09,ASKEWS & HOLTS LIBRARY SERVICES LTD.,
Neighbourhood Services,Culture & Sport,Supplies and Services,312013,Newspapers Books and Periodicals,07-Jan-2015,2843210-4511832,565.00,ASKEWS & HOLTS LIBRARY SERVICES LTD.,
Children and Adult Services,Education,Transport,230008,Contract Hire,07-Jan-2015,2843211-445,"1,050.00",AT TAXIS LTD.,
Children and Adult Services,Education,Transport,230008,Contract Hire,07-Jan-2015,2843211-448,885.00,AT TAXIS LTD.,
Neighbourhood Services,Technical Services,Supplies and Services,338027,Services,07-Jan-2015,2843212-14040447,"7,800.00",ATKINS GLOBAL.,
Children and Adult Services,Education,Transport,230008,Contract Hire,07-Jan-2015,2843213-DCC2DEC14,"1,952.13",ATLAS TAXIS BISHOP AUCKLAND.,
Children and Adult Services,Education,Transport,230008,Contract Hire,07-Jan-2015,2843213-DCC4DEC14,"1,575.00",ATLAS TAXIS BISHOP AUCKLAND.,
Children and Adult Services,Education,Transport,230008,Contract Hire,07-Jan-2015,2843213-DCC5DEC14,"1,425.00",ATLAS TAXIS BISHOP AUCKLAND.,
Children and Adult Services,Education,Transport,230008,Contract Hire,07-Jan-2015,2843213-DCC7DEC14,"1,275.00",ATLAS TAXIS BISHOP AUCKLAND.,
Children and Adult Services,Education,Transport,230007,Contract Hire,07-Jan-2015,2843214-03227,613.00,ATLAS TAXIS CONSETT.,
Children and Adult Services,Education,Transport,230006,Contract Hire,07-Jan-2015,2843214-03229,"1,077.00",ATLAS TAXIS CONSETT.,
Children and Adult Services,Education,Transport,230007,Contract Hire,07-Jan-2015,2843214-03231,660.00,ATLAS TAXIS CONSETT.,
Neighbourhood Services,Direct Services,Third Party Payments,430100,Rendered by Private Contractors,07-Jan-2015,2843216-28947,"2,579.00",AYCLIFFE FABRICATIONS LTD.,
Regeneration & Economic Development,Economic Development and Housing,Supplies and Services,384700,Miscellaneous Expenses,07-Jan-2015,2843218-RED-01-2015-042,"1,000.00",BAR FACTORS LTD.,
Neighbourhood Services,Culture & Sport,Supplies and Services,304040,Equipment and Materials,07-Jan-2015,2843220-30711,679.00,BAYDALE CONTROL SYSTEMS LTD.,
Children and Adult Services,Education,Transport,230008,Contract Hire,07-Jan-2015,2843222-39,"1,080.00",BEELINE TAXIS.,
Neighbourhood Services,Direct Services,Third Party Payments,430100,Rendered by Private Contractors,07-Jan-2015,2843223-INV/5111,624.55,BELL CONTROL SOLUTIONS LTD.,
Children and Adult Services,Education,Transport,230008,Contract Hire,07-Jan-2015,2843226-109,960.00,BG TAXIS.,
Children and Adult Services,Commissioning inc Supporting People,Supplies and Services,384700,Miscellaneous Expenses,07-Jan-2015,2843228-CAS-01-2015-007,"5,000.00",BRANDON CARRSIDE YOUTH & COMMUNITY PROJECT.,
Regeneration & Economic Development,Transport and Contracted Services,Third Party Payments,460160,Contract Payments,07-Jan-2015,2843233-39910,694.00,BRITISH PARKING ASSOCIATION.,
Neighbourhood Services,Direct Services,Transport,230005,Contract Hire,07-Jan-2015,2843237-NEW8115156,628.40,BURNT TREE GROUP LTD.,
Children and Adult Services,Education,Transport,230008,Contract Hire,07-Jan-2015,2843243-BIL0052,"1,200.00",CA MUSGROVE.,
Resources,I.C.T. Services,Supplies and Services,344033,Telephones,07-Jan-2015,2843244-UK10/012015/9686,"3,694.68",CABLE & WIRELESS UK.,
Neighbourhood Services,Culture & Sport,Supplies and Services,324001,Provisions,07-Jan-2015,2843248-841048621,919.71,CARLSBERG UK LTD.,
Children and Adult Services,Education,Transport,230007,Contract Hire,07-Jan-2015,2843249-1002786,"7,416.80",CARMEL COLLEGE.,
Children and Adult Services,Education,Transport,230008,Contract Hire,07-Jan-2015,2843252-87,"1,125.00",CASTLE CARS.,
Children and Adult Services,Education,Transport,230008,Contract Hire,07-Jan-2015,2843254-4-DEC2014,910.00,CHAPMAN TRAVEL.,
Neighbourhood Services,Direct Services,Supplies and Services,304221,Equipment and Materials,07-Jan-2015,2843255-134106,"2,160.00",CHAS LONG & SON (AGGREGATES) LTD.,
Neighbourhood Services,Direct Services,Supplies and Services,304221,Equipment and Materials,07-Jan-2015,2843255-134107,"1,760.00",CHAS LONG & SON (AGGREGATES) LTD.,
Children and Adult Services,Education,Transport,230008,Contract Hire,07-Jan-2015,2843258-20/2014,"1,360.00",CHRIS`S TAXI.,
Neighbourhood Services,Technical Services,Stock,926004,Stock,07-Jan-2015,2843260-90133361,"14,537.84",CLEVELAND POTASH LTD.,
Neighbourhood Services,Technical Services,Stock,926004,Stock,07-Jan-2015,2843260-90133362,"5,428.01",CLEVELAND POTASH LTD.,
Children and Adult Services,Education,Transport,230008,Contract Hire,07-Jan-2015,2843263-14-SC15,900.00,CLUBMAN CABS.,
Children and Adult Services,Childrens Services,Third Party Payments,479101,Purchase of Care,07-Jan-2015,2843264-3910005306,"1,383.53",CO DURHAM & DARLINGTON NHS FOUNDATION TRUST.,
Children and Adult Services,Childrens Services,Third Party Payments,479101,Purchase of Care,07-Jan-2015,2843264-3910005765,"1,501.65",CO DURHAM & DARLINGTON NHS FOUNDATION TRUST.,
Resources,Legal & Democratic Services,Supplies and Services,338057,Services,07-Jan-2015,2843264-3910005869,"1,766.50",CO DURHAM & DARLINGTON NHS FOUNDATION TRUST.,
Resources,Legal & Democratic Services,Supplies and Services,338057,Services,07-Jan-2015,2843264-3910005870,"4,200.00",CO DURHAM & DARLINGTON NHS FOUNDATION TRUST.,
Children and Adult Services,Head of Adults,Supplies and Services,338370,Services,07-Jan-2015,2843264-3910005988,"89,094.96",CO DURHAM & DARLINGTON NHS FOUNDATION TRUST.,
Children and Adult Services,Education,Transport,230007,Contract Hire,07-Jan-2015,2843266-C/8473,"4,438.00",COCHRANES T/A KELVIN TRAVEL.,
Children and Adult Services,Education,Transport,230007,Contract Hire,07-Jan-2015,2843266-C/8474,"1,799.00",COCHRANES T/A KELVIN TRAVEL.,
Children and Adult Services,Education,Transport,230007,Contract Hire,07-Jan-2015,2843266-C/8475,"1,939.00",COCHRANES T/A KELVIN TRAVEL.,
Children and Adult Services,Education,Transport,230007,Contract Hire,07-Jan-2015,2843266-C/8476,"3,720.00",COCHRANES T/A KELVIN TRAVEL.,
Children and Adult Services,Education,Transport,230006,Contract Hire,07-Jan-2015,2843267-0001381,786.00,COLORS TAXIS LTD.,
Children and Adult Services,Education,Transport,230008,Contract Hire,07-Jan-2015,2843267-0001382,675.00,COLORS TAXIS LTD.,
Children and Adult Services,Education,Transport,230008,Contract Hire,07-Jan-2015,2843267-0001383,600.00,COLORS TAXIS LTD.,
Children and Adult Services,Education,Transport,230007,Contract Hire,07-Jan-2015,2843268-6035/1214,540.00,COLVIN`S CABS.,
Neighbourhood Services,Culture & Sport,Supplies and Services,384540,Miscellaneous Expenses,07-Jan-2015,2843269-SNE009723,"1,550.00",COMMUNICORP UK.,
Children and Adult Services,Education,Transport,230008,Contract Hire,07-Jan-2015,2843270-532,"1,088.00",CONNORS MINI BUSES.,
Children and Adult Services,Education,Transport,230008,Contract Hire,07-Jan-2015,2843270-533,990.00,CONNORS MINI BUSES.,
Children and Adult Services,Education,Transport,230008,Contract Hire,07-Jan-2015,2843270-534,"1,288.00",CONNORS MINI BUSES.,
Children and Adult Services,Education,Transport,230008,Contract Hire,07-Jan-2015,2843270-535,"1,110.00",CONNORS MINI BUSES.,
Children and Adult Services,Education,Transport,230007,Contract Hire,07-Jan-2015,2843272-DCC/4029/DEC14,"1,485.00",COUNTY COACHES.,
Children and Adult Services,Commissioning inc Supporting People,Supplies and Services,384700,Miscellaneous Expenses,07-Jan-2015,2843275-CAS-01-2015-005,"6,175.00",CREATIVE RECOVERY COMMUNITY ASSOCIATION.,
Children and Adult Services,Public Health,Third Party Payments,460803,Contract Payments,07-Jan-2015,2843277-SINV3056,"4,166.66",CSV COMMUNITY SERVICE VOLUNTEERS.,
Children and Adult Services,Education,Transport,230008,Contract Hire,07-Jan-2015,2843282-53,900.00,D CROOK T/A CK TAXIS.,
Children and Adult Services,Education,Transport,230008,Contract Hire,07-Jan-2015,2843283-DI201412,660.00,D&I TAXIS.,
Children and Adult Services,Education,Transport,230008,Contract Hire,07-Jan-2015,2843284-1371,826.00,DA TAXIS.,
Children and Adult Services,Education,Transport,230008,Contract Hire,07-Jan-2015,2843284-1372-W057,"1,245.00",DA TAXIS.,
Children and Adult Services,Education,Transport,230008,Contract Hire,07-Jan-2015,2843284-1372-W074,825.00,DA TAXIS.,
Children and Adult Services,Education,Transport,230008,Contract Hire,07-Jan-2015,2843284-1373,720.00,DA TAXIS.,
Children and Adult Services,Education,Transport,230008,Contract Hire,07-Jan-2015,2843285-095,945.00,DA TRAVEL.,
Children and Adult Services,Education,Transport,230008,Contract Hire,07-Jan-2015,2843285-096,825.00,DA TRAVEL.,
Children and Adult Services,Education,Transport,230008,Contract Hire,07-Jan-2015,2843285-099,"1,005.00",DA TRAVEL.,
Children and Adult Services,Education,Transport,230008,Contract Hire,07-Jan-2015,2843286-ITSDEC1401,"1,500.00",DALELINK PRIVATE HIRE.,
Regeneration & Economic Development,Economic Development and Housing,Cap Exp on Grants & Other Financial Assistance (REFCUS),918401,Capital grants,07-Jan-2015,2843287-RED-01-2015-044,"5,653.85",REDACTED - PAYMENT TO INDIVIDUAL,
Children and Adult Services,Childrens Services,Employees,080025,Agency Staff,07-Jan-2015,2843288-324371,"63,643.40",DE POEL MANAGED SERVICES LTD.,
Regeneration & Economic Development,RED Departmental Support Costs,Supplies and Services,338001,Services,07-Jan-2015,2843296-4777,950.00,DUNELM GEOTECHNICAL & ENVIRONMENTAL LTD.,
Children and Adult Services,Commissioning inc Supporting People,Supplies and Services,384700,Miscellaneous Expenses,07-Jan-2015,2843298-CAS-01-2015-006,"10,000.00",DURHAM CHRISTIAN PARTNERSHIP.,
Dedicated Schools Grant,Dedicated Schools Grant,Central Support and Capital,689997,Unclassified,07-Jan-2015,2843301-CAS-12-2014-107,"2,903.83",EASINGTON ACADEMY.,
Neighbourhood Services,Direct Services,Supplies and Services,304259,Equipment and Materials,07-Jan-2015,2843302-4120558,"1,814.40",EAST RIDING HORTICULTURE LTD.,
Resources,Legal & Democratic Services,Supplies and Services,338057,Services,07-Jan-2015,2843305-1245,827.60,ELYSIAN PATHOLOGY SERVICES LTD.,
Children and Adult Services,Childrens Services,Supplies and Services,384491,Miscellaneous Expenses,07-Jan-2015,2843306-14C/WL/169TEACHING,"1,200.00",EMERALD NURSERY.,
Neighbourhood Services,Projects and Business services,Third Party Payments,430120,Rendered by Private Contractors,07-Jan-2015,2843312-S1NV8672078,"3,662.98",FINNING (UK) LTD.,
Neighbourhood Services,Projects and Business services,Third Party Payments,430120,Rendered by Private Contractors,07-Jan-2015,2843312-SINV8672080,922.96,FINNING (UK) LTD.,
Neighbourhood Services,Direct Services,Supplies and Services,304221,Equipment and Materials,07-Jan-2015,2843313-1501-214566,611.85,FLAME HEATING SPARES LTD.,
Regeneration & Economic Development,Spatial Policy Planning Assets & Environment,Supplies and Services,338066,Services,07-Jan-2015,2843318-2014-002,"1,000.00",REDACTED - PAYMENT TO INDIVIDUAL,
Children and Adult Services,Public Health,Third Party Payments,460803,Contract Payments,07-Jan-2015,2843322-FNCW/00000002,"2,492.40",G WHITFIELD LTD.,
Children and Adult Services,Education,Transport,230006,Contract Hire,07-Jan-2015,2843323-004,588.00,GAIL MADDISON T/A CENTRAL TAXIS.,
Neighbourhood Services,Technical Services,Stock,926900,Stock in hand-Inventory system,07-Jan-2015,2843333-06/537326,503.84,GREENHAM TRADING LTD.,
Children and Adult Services,Childrens Services,Supplies and Services,384871,Miscellaneous Expenses,07-Jan-2015,2843338-MENSSEAHAM002,"4,750.00",HARBOUR SUPPORT SERVICES.,
Neighbourhood Services,Technical Services,Third Party Payments,460350,Contract Payments,07-Jan-2015,2843339-4371,"1,596.50",HAWTHORN PLANT HIRE.,
Children and Adult Services,Childrens Services,Third Party Payments,425019,Rendered by Voluntary Organisations,07-Jan-2015,2843343-01DUR,"9,230.76",HORTON ESTABLISHMENTS LTD.,
Children and Adult Services,Childrens Services,Third Party Payments,425023,Rendered by Voluntary Organisations,07-Jan-2015,2843343-02DUR,"80,000.00",HORTON ESTABLISHMENTS LTD.,
Children and Adult Services,Education,Transfer Payments,510026,School Children,07-Jan-2015,2843344-16667,"1,419.75",HOUSE OF EDEN CHILDRENS NURSERY.,
Children and Adult Services,Public Health,Supplies and Services,338027,Services,07-Jan-2015,2843346-140727/7312/GB,"2,955.00",HOWARTH LITCHFIELD PARTNERSHIP LTD.,
Neighbourhood Services,Technical Services,Employees,080025,Agency Staff,07-Jan-2015,2843356-B225H002-015,"1,068.11",JACOBS UK LTD.,
Neighbourhood Services,Technical Services,Employees,080025,Agency Staff,07-Jan-2015,2843356-B225H002-017,"6,109.45",JACOBS UK LTD.,
Neighbourhood Services,Technical Services,Employees,080025,Agency Staff,07-Jan-2015,2843356-B225H002-018,"11,130.70",JACOBS UK LTD.,
Neighbourhood Services,Technical Services,Employees,080025,Agency Staff,07-Jan-2015,2843356-B225H002-022,"6,669.53",JACOBS UK LTD.,
Children and Adult Services,Education,Transport,230008,Contract Hire,07-Jan-2015,2843357-2345,"1,401.90",JEFF ANDERSON COACHES LTD.,
Children and Adult Services,Education,Transport,230008,Contract Hire,07-Jan-2015,2843357-2346,"1,443.90",JEFF ANDERSON COACHES LTD.,
Children and Adult Services,Education,Transport,230007,Contract Hire,07-Jan-2015,2843357-2347,"1,417.35",JEFF ANDERSON COACHES LTD.,
Neighbourhood Services,Technical Services,Supplies and Services,304221,Equipment and Materials,07-Jan-2015,2843360-00096405,"4,390.96",JOBLING PURSER LTD.,
Neighbourhood Services,Technical Services,Supplies and Services,304358,Equipment and Materials,07-Jan-2015,2843361-525,868.00,JOHN DOBSON PLANT HIRE LTD.,
Neighbourhood Services,Technical Services,Supplies and Services,304358,Equipment and Materials,07-Jan-2015,2843361-528,"1,279.20",JOHN DOBSON PLANT HIRE LTD.,
Regeneration & Economic Development,Spatial Policy Planning Assets & Environment,Supplies and Services,338066,Services,07-Jan-2015,2843362-214,680.00,JOHN VAN BREDA T/A BIODIVERSE IT.,
Neighbourhood Services,Projects and Business services,Third Party Payments,430100,Rendered by Private Contractors,07-Jan-2015,2843363-037290,535.85,JOHN WADE (HAULAGE) LTD.,
RED HRA,HRA Capital,Construction Work,908105,Construction work,07-Jan-2015,2843364-212927,"5,255.78",JOINERY & TIMBER CREATIONS (65) LTD.,
Neighbourhood Services,Technical Services,Supplies and Services,304221,Equipment and Materials,07-Jan-2015,2843366-BII152450,"1,600.08",JT DOVE LTD.,
Neighbourhood Services,Technical Services,Supplies and Services,304221,Equipment and Materials,07-Jan-2015,2843366-CNI21152/D,"4,480.00",JT DOVE LTD.,
Neighbourhood Services,Technical Services,Stock,926900,Stock in hand-Inventory system,07-Jan-2015,2843366-STI412271,"1,001.17",JT DOVE LTD.,
Neighbourhood Services,Direct Services,Supplies and Services,304221,Equipment and Materials,07-Jan-2015,2843366-STI412646,984.00,JT DOVE LTD.,
Neighbourhood Services,Technical Services,Stock,926900,Stock in hand-Inventory system,07-Jan-2015,2843366-STI413010,"2,198.81",JT DOVE LTD.,
Neighbourhood Services,Technical Services,Stock,926900,Stock in hand-Inventory system,07-Jan-2015,2843366-STI413142,"1,550.32",JT DOVE LTD.,
Children and Adult Services,Head of Adults,Transport,230005,Contract Hire,07-Jan-2015,2843368-WV079010,"1,190.00",KEITH HAMMOND T/A FERRYHILL VILLAGE TRAVEL.,
Children and Adult Services,Head of Adults,Transport,230005,Contract Hire,07-Jan-2015,2843369-021214,"1,275.00",KEVIN EDMUNDSON.,
Neighbourhood Services,Technical Services,Supplies and Services,304221,Equipment and Materials,07-Jan-2015,2843373-9032061582,643.88,LAFARGE TARMAC TRADING LTD.,
Neighbourhood Services,Direct Services,Transport,230005,Contract Hire,07-Jan-2015,2843380-4352874,"1,275.00",LEEDS COMMERCIAL LTD.,
Children and Adult Services,Public Health,Third Party Payments,460803,Contract Payments,07-Jan-2015,2843381-INV002586,"1,288.00",LEVEL 10 PRINT MANAGEMENT LTD.,
Children and Adult Services,Public Health,Third Party Payments,460803,Contract Payments,07-Jan-2015,2843382-73,"7,000.00",LIBERTY FROM ADDICTION.,
Children and Adult Services,Public Health,Third Party Payments,460803,Contract Payments,07-Jan-2015,2843382-74,"10,000.00",LIBERTY FROM ADDICTION.,
RED HRA,Housing Revenue Account,Supplies and Services,338027,Services,07-Jan-2015,2843387-IN521671,600.00,LITEWHITE LTD T/A BLUMILK.,
RED HRA,Housing Revenue Account,Supplies and Services,338027,Services,07-Jan-2015,2843387-IN521675,540.00,LITEWHITE LTD T/A BLUMILK.,
RED HRA,Housing Revenue Account,Supplies and Services,338027,Services,07-Jan-2015,2843387-IN521676,"2,100.00",LITEWHITE LTD T/A BLUMILK.,
Children and Adult Services,Public Health,Third Party Payments,460803,Contract Payments,07-Jan-2015,2843389-FQVV/00000001,"2,987.51",LLOYDS PHARMACY.,
Children and Adult Services,Public Health,Third Party Payments,460803,Contract Payments,07-Jan-2015,2843389-FWF67/NOV14/SC,588.00,LLOYDS PHARMACY.,
Neighbourhood Services,Technical Services,Supplies and Services,304358,Equipment and Materials,07-Jan-2015,2843393-14A,"2,541.83",M & E & MR WALTON.,
Children and Adult Services,Education,Transport,230008,Contract Hire,07-Jan-2015,2843394-4,"1,050.00",MALCOLM CARR T/A CARLY CABS.,
Children and Adult Services,Education,Transport,230008,Contract Hire,07-Jan-2015,2843396-121401,"1,800.00",MARK & JOHN CHISHOLM T/A (CHEVRON).,
Dedicated Schools Grant,Dedicated Schools Grant,Transport,230010,Contract Hire,07-Jan-2015,2843396-121402,"1,620.00",MARK & JOHN CHISHOLM T/A (CHEVRON).,
Children and Adult Services,Education,Transport,230008,Contract Hire,07-Jan-2015,2843396-121403,980.00,MARK & JOHN CHISHOLM T/A (CHEVRON).,
Dedicated Schools Grant,Dedicated Schools Grant,Transport,230010,Contract Hire,07-Jan-2015,2843396-121404,"1,600.00",MARK & JOHN CHISHOLM T/A (CHEVRON).,
Children and Adult Services,Education,Transport,230008,Contract Hire,07-Jan-2015,2843396-121405,870.00,MARK & JOHN CHISHOLM T/A (CHEVRON).,
Children and Adult Services,Education,Transport,230008,Contract Hire,07-Jan-2015,2843396-121406,712.50,MARK & JOHN CHISHOLM T/A (CHEVRON).,
Dedicated Schools Grant,Dedicated Schools Grant,Transport,230010,Contract Hire,07-Jan-2015,2843396-121408,"1,330.00",MARK & JOHN CHISHOLM T/A (CHEVRON).,
Children and Adult Services,Education,Transport,230008,Contract Hire,07-Jan-2015,2843399-09,"1,190.00",MAURICE & SONS.,
Regeneration & Economic Development,Transport and Contracted Services,Vehicles Equipment Furniture and Fittings,912529,Purchase-equipment,07-Jan-2015,2843401-5943,"3,175.40",MIKO ENGINEERING LTD.,
RED HRA,Housing Revenue Account,Premises,105003,HRA Repair & Maintenance,07-Jan-2015,2843405-212330,"9,583.14",MITIE PROPERTY SERVICES (UK) LTD.,
Children and Adult Services,Head of Adults,Transport,230005,Contract Hire,07-Jan-2015,2843409-EDB12-14,855.00,MR CT WALKER T/A COLIN`S TAXIS.,
Children and Adult Services,Education,Transport,230008,Contract Hire,07-Jan-2015,2843409-MEAD12-14,"1,612.25",MR CT WALKER T/A COLIN`S TAXIS.,
Children and Adult Services,Education,Transport,230008,Contract Hire,07-Jan-2015,2843409-WAL1/12-14,"1,798.20",MR CT WALKER T/A COLIN`S TAXIS.,
Children and Adult Services,Education,Transport,230008,Contract Hire,07-Jan-2015,2843409-WAL2/12-14,"1,710.00",MR CT WALKER T/A COLIN`S TAXIS.,
Children and Adult Services,Education,Transport,230008,Contract Hire,07-Jan-2015,2843409-WINDS12-14,"2,307.90",MR CT WALKER T/A COLIN`S TAXIS.,
Children and Adult Services,Education,Transport,230008,Contract Hire,07-Jan-2015,2843412-78X-25-51,938.00,MR GS ANDERSON.,
Children and Adult Services,Education,Transport,230006,Contract Hire,07-Jan-2015,2843412-79Y-26-52,686.00,MR GS ANDERSON.,
Children and Adult Services,Head of Adults,Transfer Payments,515201,Social Services Clients,07-Jan-2015,2843413-CAS-12-2014-059/2,501.03,REDACTED - PAYMENT TO INDIVIDUAL,
Dedicated Schools Grant,Dedicated Schools Grant,Transport,230010,Contract Hire,07-Jan-2015,2843418-43,830.00,MRS ANNE BOWMAN T/A ANNES CARS.,
Neighbourhood Services,Direct Services,Transport,230005,Contract Hire,07-Jan-2015,2843432-98010,"1,495.48",ND BROWN LTD.,
Children and Adult Services,Childrens Services,Supplies and Services,340001,Postages,07-Jan-2015,2843434-CAS-01-2015-009,900.00,NEOPOST LTD CREDIFON RCB ACCOUNT.,
Children and Adult Services,Education,Income,740298,Other Income,07-Jan-2015,2843436-CAS-01-2015-010,"1,055.00",NEW COLLEGE ACADEMIES TRUST - CONSETT ACADEMY.,
Children and Adult Services,Education,Vehicles Equipment Furniture and Fittings,912529,Purchase-equipment,07-Jan-2015,2843438-10396820,625.97,NISBETS PLC.,
Dedicated Schools Grant,Dedicated Schools Grant,Third Party Payments,440080,Other Third Party Payments,07-Jan-2015,2843439-0000018860,"7,761.00",NORTH EAST AUTISM SOCIETY.,
Regeneration & Economic Development,Strategy Programmes and Performance,Supplies and Services,384899,Miscellaneous Expenses,07-Jan-2015,2843441-FEDF026/1,"14,400.00",NORTHERN CRUSHING LTD.,
Neighbourhood Services,Direct Services,Supplies and Services,304221,Equipment and Materials,07-Jan-2015,2843442-14183,"1,850.00",NORTHERN DRIVES & CONTROLS LTD.,
Neighbourhood Services,Direct Services,Supplies and Services,304221,Equipment and Materials,07-Jan-2015,2843442-14184,"1,850.00",NORTHERN DRIVES & CONTROLS LTD.,
Regeneration & Economic Development,Economic Development and Housing,Construction Work,908105,Construction work,07-Jan-2015,2843443-NEI-EXP-01-2015-013,744.00,NORTHERN GAS NETWORKS LTD.,
Regeneration & Economic Development,Spatial Policy Planning Assets & Environment,Construction Work,908105,Construction work,07-Jan-2015,2843444-NEI-EXP-01-2015-012,"9,587.00",NORTHERN POWERGRID (NORTHEAST) LTD.,
Children and Adult Services,Education,Income,740298,Other Income,07-Jan-2015,2843455-CAS-01-2015-011,"6,131.00",PARK VIEW ACADEMY.,
Children and Adult Services,Education,Transport,230008,Contract Hire,07-Jan-2015,2843456-SC-022,"1,200.00",PAUL BURRELL T/A PAUL BURRELL TAXIS.,
Children and Adult Services,Head of Adults,Transport,230005,Contract Hire,07-Jan-2015,2843459-0350,506.00,PETER`S PRIVATE HIRE/PETER BEST.,
Resources,I.C.T. Services,Supplies and Services,342033,Computers and Communications,07-Jan-2015,2843460-OP/I743471,"3,184.48",PHOENIX SOFTWARE LTD.,
Dedicated Schools Grant,Dedicated Schools Grant,Supplies and Services,304639,Equipment and Materials,07-Jan-2015,2843461-2591093149,"1,080.00",PHONAK UK LTD.,
Neighbourhood Services,Culture & Sport,Premises,145009,Cleaning and Domestic Supplies,07-Jan-2015,2843462-61526191,556.66,PHS GROUP PLC.,
RED HRA,HRA Capital,Construction Work,908105,Construction work,07-Jan-2015,2843464-212342,"4,240.87",PLUMBING TRADE SUPPLIES LTD.,
Neighbourhood Services,Direct Services,Supplies and Services,304221,Equipment and Materials,07-Jan-2015,2843465-211917,"7,797.66",PLUMBING TRADE SUPPLIES LTD.,
Neighbourhood Services,Direct Services,Transport,230005,Contract Hire,07-Jan-2015,2843468-INV/25310,945.00,PREMIER TRUCK HIRE LTD.,
Regeneration & Economic Development,Economic Development and Housing,Supplies and Services,384700,Miscellaneous Expenses,07-Jan-2015,2843472-RED-01-2015-043,"1,000.00",R & R BEARINGS LTD.,
Children and Adult Services,Public Health,Supplies and Services,384199,Miscellaneous Expenses,07-Jan-2015,2843473-20013,"1,064.50",R ONEILL.,
Neighbourhood Services,Culture & Sport,Supplies and Services,324001,Provisions,07-Jan-2015,2843475-0000002305,"1,450.80",RAMSIDE EVENT CATERING.,
Neighbourhood Services,Direct Services,Third Party Payments,430100,Rendered by Private Contractors,07-Jan-2015,2843482-0477,"7,470.00",S & R LANDSCAPES.,
Neighbourhood Services,Direct Services,Third Party Payments,430100,Rendered by Private Contractors,07-Jan-2015,2843482-0478,"4,589.47",S & R LANDSCAPES.,
Children and Adult Services,Head of Adults,Supplies and Services,384871,Miscellaneous Expenses,07-Jan-2015,2843484-CAS-01-2015-013,"3,600.00",SBMVA TRAINING.,
RED HRA,HRA Capital,Construction Work,908105,Construction work,07-Jan-2015,2843489-80632,"1,560.00",SGS MIS ENVIRONMENTAL LTD.,
Children and Adult Services,Education,Vehicles Equipment Furniture and Fittings,912529,Purchase-equipment,07-Jan-2015,2843493-7374,"9,963.86",SIGMA CATERING EQUIPMENT LTD.,
Neighbourhood Services,Technical Services,Stock,926900,Stock in hand-Inventory system,07-Jan-2015,2843496-185632,"1,040.40",SNAPFAST.,
Neighbourhood Services,Technical Services,Stock,926900,Stock in hand-Inventory system,07-Jan-2015,2843496-185655,"6,233.76",SNAPFAST.,
Dedicated Schools Grant,Dedicated Schools Grant,Supplies and Services,332047,Printing Stationery and Gen Off Exps,07-Jan-2015,2843505-7040922,721.01,SUPPLIES TEAM LTD.,
Neighbourhood Services,Direct Services,Supplies and Services,304221,Equipment and Materials,07-Jan-2015,2843508-0000074903,566.53,TA PLASTIC SUPPLIES LTD.,
Resources,I.C.T. Services,Supplies and Services,344033,Telephones,07-Jan-2015,2843509-05234045,"2,413.92",TALKTALK BUSINESS.,
Neighbourhood Services,Direct Services,Transport,210057,Repair and Maintenance of Vehicles,07-Jan-2015,2843519-352706,588.62,THOMPSON COMMERCIALS LTD.,
RED HRA,HRA Capital,Construction Work,908105,Construction work,07-Jan-2015,2843523-I2014/302,880.00,TODD MILBURN PARTNERSHIP LTD.,
Neighbourhood Services,Direct Services,Supplies and Services,304221,Equipment and Materials,07-Jan-2015,2843526-3276AHC033,537.78,TRAVIS PERKINS TRADING CO LTD.,
Regeneration & Economic Development,Transport and Contracted Services,Supplies and Services,304245,Equipment and Materials,07-Jan-2015,2843528-10254407,844.50,TUNSTALL HEALTHCARE (UK) LTD.,
Regeneration & Economic Development,Economic Development and Housing,Employees,040149,Recruitment Instruction and Training,07-Jan-2015,2843531-91314748,"1,840.00",UNIVERSITY OF NORTHUMBRIA.,
Neighbourhood Services,Projects and Business services,Third Party Payments,430121,Rendered by Private Contractors,07-Jan-2015,2843535-16302,"1,084.00",VIRIDIAN SYSTEMS LTD.,
Neighbourhood Services,Direct Services,Transport,230005,Contract Hire,07-Jan-2015,2843540-38430,750.00,W MARLEY AGRICULTURAL CONTRACTORS LTD.,
Resources,Legal & Democratic Services,Supplies and Services,372009,Subscriptions,07-Jan-2015,2843545-1101334361,931.70,WOLTERS KLUWER (UK) LTD.,
Children and Adult Services,Education,Third Party Payments,440999,Other Third Party Payments,07-Jan-2015,2843547-NV14-478,"10,035.90",YMS TRAINING LTD.,
RED HRA,HRA Capital,Construction Work,908105,Construction work,07-Jan-2015,2843549-33012,"1,388.68",YWC GROUP LTD.,
RED HRA,HRA Capital,Construction Work,908105,Construction work,07-Jan-2015,2843549-33013,714.18,YWC GROUP LTD.,
RED HRA,HRA Capital,Construction Work,908105,Construction work,07-Jan-2015,2843549-33015,594.00,YWC GROUP LTD.,
Children and Adult Services,Education,Transport,230007,Contract Hire,08-Jan-2015,2843552-A33/SM,525.00,AABAT TAXIS.,
Neighbourhood Services,Technical Services,Employees,080025,Agency Staff,08-Jan-2015,2843556-28208072,"8,552.66",AECOM LTD.,
Neighbourhood Services,Direct Services,Supplies and Services,384199,Miscellaneous Expenses,08-Jan-2015,2843565-4443,"2,433.00",ALPHA GRAPHICS.,
Regeneration & Economic Development,Economic Development and Housing,Supplies and Services,336005,Advertising,08-Jan-2015,2843566-0405-1002,"1,674.47",AMBER ARCH LTD.,
Neighbourhood Services,Projects and Business services,Fees,901002,Professional fees,08-Jan-2015,2843573-14040420,"10,156.60",ATKINS GLOBAL.,
Children and Adult Services,Education,Transport,230008,Contract Hire,08-Jan-2015,2843574-DCC5NOV14,"1,900.00",ATLAS TAXIS BISHOP AUCKLAND.,
Children and Adult Services,Education,Transport,230008,Contract Hire,08-Jan-2015,2843580-1368,"1,935.00",BOBBY DOVE.,
Assistant Chief Executive,Partnerships & Community Engagement Div.,Cap Exp on Grants & Other Financial Assistance (REFCUS),918004,Contributions to other bodies,08-Jan-2015,2843583,"11,000.00",BRANDON & BYSHOTTLES PARISH COUNCIL.,
Neighbourhood Services,Technical Services,Employees,040149,Recruitment Instruction and Training,08-Jan-2015,2843585-1474,500.00,BRITISH PEST CONTROL ASSOCIATION.,
Assistant Chief Executive,Policy & Communications Division,Supplies and Services,312010,Newspapers Books and Periodicals,08-Jan-2015,2843586-5818208,"2,257.65",BRITISH TELECOMMUNICATIONS PLC.,
Regeneration & Economic Development,Spatial Policy Planning Assets & Environment,Premises,155001,Insurance of Premises,08-Jan-2015,2843589-139894,"1,718.63",BURROW HUMPHREYS LTD.,
Regeneration & Economic Development,Transport and Contracted Services,Construction Work,908105,Construction work,08-Jan-2015,2843590-NO22011,"2,168.78",BUS SHELTERS LTD.,
Regeneration & Economic Development,Transport and Contracted Services,Construction Work,908105,Construction work,08-Jan-2015,2843590-NO22022,"2,542.78",BUS SHELTERS LTD.,
Children and Adult Services,Head of Adults,Supplies and Services,338366,Services,08-Jan-2015,2843592-21105,"6,024.40",CARE ABILITY.,
Assistant Chief Executive,Partnerships & Community Engagement Div.,Transfer Payments,525030,Other,08-Jan-2015,2843594-VOUCHER14AB-SPEN005,"13,235.00",CHILDREN NORTH EAST.,
Resources,Centrally Administered Costs,Supplies and Services,384199,Miscellaneous Expenses,08-Jan-2015,2843597-C/BC130178,"20,541.66",CIVICA UK LTD.,
Children and Adult Services,Head of Adults,Supplies and Services,338370,Services,08-Jan-2015,2843599-3910005982,"3,344.75",CO DURHAM & DARLINGTON NHS FOUNDATION TRUST.,
Children and Adult Services,Head of Adults,Third Party Payments,479101,Purchase of Care,08-Jan-2015,2843599-3910005983,"7,159.50",CO DURHAM & DARLINGTON NHS FOUNDATION TRUST.,
Children and Adult Services,Head of Adults,Supplies and Services,338370,Services,08-Jan-2015,2843599-3910005985,"47,685.00",CO DURHAM & DARLINGTON NHS FOUNDATION TRUST.,
Children and Adult Services,Head of Adults,Supplies and Services,384619,Miscellaneous Expenses,08-Jan-2015,2843599-3910005987,"7,023.25",CO DURHAM & DARLINGTON NHS FOUNDATION TRUST.,
Children and Adult Services,Head of Adults,Supplies and Services,338370,Services,08-Jan-2015,2843599-3910005998,"74,978.00",CO DURHAM & DARLINGTON NHS FOUNDATION TRUST.,
Neighbourhood Services,Technical Services,Third Party Payments,430100,Rendered by Private Contractors,08-Jan-2015,2843602-I14P1653,"3,032.08",COLAS LTD.,
Neighbourhood Services,Technical Services,Supplies and Services,304221,Equipment and Materials,08-Jan-2015,2843605-00387004,"2,910.40",CONSETT STEEL SERVICES LTD.,
Neighbourhood Services,Technical Services,Supplies and Services,304221,Equipment and Materials,08-Jan-2015,2843605-00387005,"2,910.40",CONSETT STEEL SERVICES LTD.,
Children and Adult Services,Childrens Services,Supplies and Services,324500,Provisions,08-Jan-2015,2843609-13553,"12,212.76",CREATIVE MANAGEMENT SERVICES LTD.,
Children and Adult Services,Education,Transport,230008,Contract Hire,08-Jan-2015,2843618-1370,900.00,DA TAXIS.,
Children and Adult Services,Education,Transport,230008,Contract Hire,08-Jan-2015,2843619-097,"1,125.00",DA TRAVEL.,
Children and Adult Services,Education,Transport,230008,Contract Hire,08-Jan-2015,2843619-098,656.50,DA TRAVEL.,
Assistant Chief Executive,Partnerships & Community Engagement Div.,Transfer Payments,525030,Other,08-Jan-2015,2843620-VOUCHER14AB-EDRC001SGF006,"2,800.00",REDACTED - PAYMENT TO INDIVIDUAL,
Children and Adult Services,Education,Transport,230008,Contract Hire,08-Jan-2015,2843621-2369,"1,400.00",DAVES MINIBUSES.,
Children and Adult Services,Education,Transport,230008,Contract Hire,08-Jan-2015,2843621-2370,"1,125.00",DAVES MINIBUSES.,
Children and Adult Services,Education,Transport,230008,Contract Hire,08-Jan-2015,2843621-2372,"1,140.00",DAVES MINIBUSES.,
Children and Adult Services,Education,Transport,230008,Contract Hire,08-Jan-2015,2843621-2374,"1,275.00",DAVES MINIBUSES.,
Children and Adult Services,Education,Transport,230008,Contract Hire,08-Jan-2015,2843621-2375,637.50,DAVES MINIBUSES.,
Children and Adult Services,Education,Transport,230008,Contract Hire,08-Jan-2015,2843622-66,"1,750.00",DAVES TAXIS.,
Children and Adult Services,Education,Transport,230008,Contract Hire,08-Jan-2015,2843622-67,"1,120.00",DAVES TAXIS.,
Neighbourhood Services,Direct Services,Supplies and Services,304221,Equipment and Materials,08-Jan-2015,2843624-12378,"1,950.00",DCM PREMIER PLAY SURFACES.,
Children and Adult Services,Education,Transport,230008,Contract Hire,08-Jan-2015,2843625-1214/001,"1,050.00",DCM TAXIS.,
Children and Adult Services,Education,Construction Work,908105,Construction work,08-Jan-2015,2843627-DCC002,"2,067.80",DNA PROTEC LTD.,
Resources,Legal & Democratic Services,Supplies and Services,338057,Services,08-Jan-2015,2843629-NOVEMBER14U,"1,064.80",DR SREE MUSSUNOOR.,
Assistant Chief Executive,Partnerships & Community Engagement Div.,Transfer Payments,525030,Other,08-Jan-2015,2843632-VOUCHER14AB-DCTY007SGF04,"2,000.00",DURHAM POINTERS.,
Regeneration & Economic Development,Spatial Policy Planning Assets & Environment,Supplies and Services,338099,Services,08-Jan-2015,2843633-14182,"1,200.00",DURHAM WILDLIFE TRUST LTD.,
Neighbourhood Services,Technical Services,Stock,926900,Stock in hand-Inventory system,08-Jan-2015,2843636-059-156051,700.00,EDMUNDSON ELECTRICAL LTD.,
Children and Adult Services,Head of Adults,Supplies and Services,308011,Furniture,08-Jan-2015,2843639-18122014,"2,260.00",ELMOLINE LTD.,
Children and Adult Services,Head of Adults,Supplies and Services,308013,Furniture,08-Jan-2015,2843639-18122014MGH,"1,592.00",ELMOLINE LTD.,
Resources,Legal & Democratic Services,Supplies and Services,338057,Services,08-Jan-2015,2843640-1258,677.60,ELYSIAN PATHOLOGY SERVICES LTD.,
Children and Adult Services,Education,Transport,230007,Contract Hire,08-Jan-2015,2843641-0634,675.00,EN ROUTE TRAVEL.,
Children and Adult Services,Education,Transport,230008,Contract Hire,08-Jan-2015,2843641-0635,"1,120.00",EN ROUTE TRAVEL.,
Neighbourhood Services,Technical Services,Supplies and Services,304259,Equipment and Materials,08-Jan-2015,2843643-OP/I284656,"1,406.50",FLEMING & CO (MACHINERY) LTD.,
Neighbourhood Services,Technical Services,Stock,926900,Stock in hand-Inventory system,08-Jan-2015,2843643-OP/I284794,"1,104.07",FLEMING & CO (MACHINERY) LTD.,
Children and Adult Services,Education,Transport,230007,Contract Hire,08-Jan-2015,2843644-4293-DECEMBER2014,660.00,FONACAB.,
Neighbourhood Services,Direct Services,Premises,120037,Energy Costs,08-Jan-2015,2843645-2015004114,"1,049.18",FOREVER FUELS LTD,
Children and Adult Services,Childrens Services,Transport,230007,Contract Hire,08-Jan-2015,2843648-1602,"1,050.00",GEM TRAVEL.,
Assistant Chief Executive,Partnerships & Community Engagement Div.,Transfer Payments,525030,Other,08-Jan-2015,2843653-VOUCHER14AB-EDRC001SGF010,"3,555.00",GROUNDWORK NORTH EAST.,
Neighbourhood Services,Direct Services,Third Party Payments,430100,Rendered by Private Contractors,08-Jan-2015,2843655-2728/INVNO1,"175,086.18",H MALONE & SONS LTD.,
Neighbourhood Services,Technical Services,Third Party Payments,460350,Contract Payments,08-Jan-2015,2843656-4380,"6,722.25",HAWTHORN PLANT HIRE.,
Children and Adult Services,Education,Transport,230008,Contract Hire,08-Jan-2015,2843657-184,"1,050.00",HEPWORTHS LUXURY TRAVEL.,
Children and Adult Services,Education,Transport,230008,Contract Hire,08-Jan-2015,2843657-185,840.00,HEPWORTHS LUXURY TRAVEL.,
Children and Adult Services,Education,Transport,230007,Contract Hire,08-Jan-2015,2843659-011936,"1,000.00",HODGSONS COACH OPERATORS LTD.,
Children and Adult Services,Education,Transport,230007,Contract Hire,08-Jan-2015,2843659-011941,"1,500.00",HODGSONS COACH OPERATORS LTD.,
Children and Adult Services,Education,Transport,230007,Contract Hire,08-Jan-2015,2843659-011943,"5,475.00",HODGSONS COACH OPERATORS LTD.,
Children and Adult Services,Education,Transport,230007,Contract Hire,08-Jan-2015,2843659-011944,"2,430.00",HODGSONS COACH OPERATORS LTD.,
Children and Adult Services,Education,Transport,230007,Contract Hire,08-Jan-2015,2843659-011945,"1,470.00",HODGSONS COACH OPERATORS LTD.,
Children and Adult Services,Education,Transport,230007,Contract Hire,08-Jan-2015,2843659-011947,750.00,HODGSONS COACH OPERATORS LTD.,
Children and Adult Services,Education,Transport,230007,Contract Hire,08-Jan-2015,2843659-011948,750.00,HODGSONS COACH OPERATORS LTD.,
Children and Adult Services,Education,Transport,230007,Contract Hire,08-Jan-2015,2843659-011949,750.00,HODGSONS COACH OPERATORS LTD.,
Children and Adult Services,Education,Transport,230007,Contract Hire,08-Jan-2015,2843662-F1281,577.20,HUNTER BROTHERS (TANTOBIE) LTD.,
Assistant Chief Executive,Partnerships & Community Engagement Div.,Cap Exp on Grants & Other Financial Assistance (REFCUS),918004,Contributions to other bodies,08-Jan-2015,2843663,500.00,HUNWICK CRICKET CLUB.,
Children and Adult Services,Education,Construction Work,908105,Construction work,08-Jan-2015,2843666-DURH/0581,"31,076.83",INSPIREDSPACES DURHAM LTD.,
Children and Adult Services,Education,Construction Work,908105,Construction work,08-Jan-2015,2843666-DURH/0582,"40,197.15",INSPIREDSPACES DURHAM LTD.,
Children and Adult Services,Childrens Services,Supplies and Services,384964,Miscellaneous Expenses,08-Jan-2015,2843668-ITL3660,580.92,ITL NORTH EAST LTD.,
Neighbourhood Services,Technical Services,Employees,080025,Agency Staff,08-Jan-2015,2843669-B225H002-013,"10,735.71",JACOBS UK LTD.,
Neighbourhood Services,Technical Services,Employees,080025,Agency Staff,08-Jan-2015,2843669-B225H002-014,638.60,JACOBS UK LTD.,
Neighbourhood Services,Technical Services,Employees,080025,Agency Staff,08-Jan-2015,2843669-B225H002-016,"1,087.68",JACOBS UK LTD.,
Neighbourhood Services,Technical Services,Employees,080025,Agency Staff,08-Jan-2015,2843669-B225H002-019,"7,448.46",JACOBS UK LTD.,
Neighbourhood Services,Technical Services,Employees,080025,Agency Staff,08-Jan-2015,2843669-B225H002-021,"6,105.33",JACOBS UK LTD.,
Children and Adult Services,Education,Transport,230008,Contract Hire,08-Jan-2015,2843672-18/12/14A,"1,500.00",JL EBDON.,
Children and Adult Services,Education,Transport,230008,Contract Hire,08-Jan-2015,2843672-18/12/14B,"1,040.00",JL EBDON.,
Children and Adult Services,Education,Transport,230008,Contract Hire,08-Jan-2015,2843672-18/12/14C,900.00,JL EBDON.,
Children and Adult Services,Education,Transport,230008,Contract Hire,08-Jan-2015,2843672-18/12/14D,"1,050.00",JL EBDON.,
Children and Adult Services,Education,Transport,230008,Contract Hire,08-Jan-2015,2843672-18/12/14E,750.00,JL EBDON.,
Children and Adult Services,Education,Transport,230008,Contract Hire,08-Jan-2015,2843672-18/12/14F,"1,092.00",JL EBDON.,
Children and Adult Services,Education,Transport,230006,Contract Hire,08-Jan-2015,2843672-18/12/14G,534.00,JL EBDON.,
Children and Adult Services,Education,Transport,230008,Contract Hire,08-Jan-2015,2843673-2014/27,672.00,JM HUMBLE COACH HIRE.,
Dedicated Schools Grant,Dedicated Schools Grant,Transport,230010,Contract Hire,08-Jan-2015,2843673-2014/28,810.00,JM HUMBLE COACH HIRE.,
Children and Adult Services,Education,Transport,230008,Contract Hire,08-Jan-2015,2843682-S007026,"1,634.00",KEITH HAMMOND T/A FERRYHILL VILLAGE TRAVEL.,
Children and Adult Services,Education,Transport,230008,Contract Hire,08-Jan-2015,2843682-W131004,652.50,KEITH HAMMOND T/A FERRYHILL VILLAGE TRAVEL.,
Neighbourhood Services,Technical Services,Supplies and Services,342051,Computers and Communications,08-Jan-2015,2843684-2015215,"2,511.00",KEYSOFT SOLUTIONS LTD.,
Neighbourhood Services,Direct Services,Third Party Payments,430100,Rendered by Private Contractors,08-Jan-2015,2843686-15001,"10,983.50",LANGUARD LTD.,
Dedicated Schools Grant,Dedicated Schools Grant,Supplies and Services,304259,Equipment and Materials,08-Jan-2015,2843691-0000036298,"4,260.20",LIBERATOR LTD.,
Dedicated Schools Grant,Dedicated Schools Grant,Transport,230010,Contract Hire,08-Jan-2015,2843696-121411,988.00,MARK & JOHN CHISHOLM T/A (CHEVRON).,
Neighbourhood Services,Technical Services,Stock,926900,Stock in hand-Inventory system,08-Jan-2015,2843697-219020,"9,925.00",MARWOOD ELECTRICAL CO LTD.,
Neighbourhood Services,Culture & Sport,Supplies and Services,384199,Miscellaneous Expenses,08-Jan-2015,2843700-MGNMC301120142,"1,200.00",MENISHA GELA.,
Children and Adult Services,Education,Transport,230008,Contract Hire,08-Jan-2015,2843704-E046004,"1,680.00",MISS KA SUTHERLAND T/A FERRYHILL TRAVEL TAXI & MINIBUS HIRE.,
Children and Adult Services,Education,Transport,230007,Contract Hire,08-Jan-2015,2843708-4,580.00,MR BW YOUNG T/A ESH TAXIS.,
Children and Adult Services,Education,Transport,230008,Contract Hire,08-Jan-2015,2843709-038A,"1,201.20",MR GN ROBBINS T/A GNR MINIBUS HIRE.,
Children and Adult Services,Education,Transport,230008,Contract Hire,08-Jan-2015,2843709-039A,"1,459.50",MR GN ROBBINS T/A GNR MINIBUS HIRE.,
RED HRA,HRA Centrally Managed,Creditors,952191,Creditor-HRA-rents-refunds,08-Jan-2015,2843710-DVHR00162,"1,399.82",REDACTED - PAYMENT TO INDIVIDUAL,
Children and Adult Services,Education,Transport,230009,Contract Hire,08-Jan-2015,2843711-030,"1,975.00",MR JG HOWARTH.,
Children and Adult Services,Education,Transport,230009,Contract Hire,08-Jan-2015,2843711-031,"1,575.00",MR JG HOWARTH.,
Children and Adult Services,Education,Transport,230008,Contract Hire,08-Jan-2015,2843713-248,"1,050.00",MR LEE ANDERSON.,
Children and Adult Services,Public Health,Supplies and Services,384155,Miscellaneous Expenses,08-Jan-2015,2843722-1000042554,"61,441.75",NHS BUSINESS SERVICES AUTHORITY.,
Neighbourhood Services,Direct Services,Supplies and Services,304221,Equipment and Materials,08-Jan-2015,2843723-1435092,"3,252.00",NORTHERN TOOLS & ACCESSORIES.,
Neighbourhood Services,Direct Services,Supplies and Services,304221,Equipment and Materials,08-Jan-2015,2843723-1442128,720.00,NORTHERN TOOLS & ACCESSORIES.,
Neighbourhood Services,Direct Services,Third Party Payments,430100,Rendered by Private Contractors,08-Jan-2015,2843730-417,821.00,PARAMOUNT CEILINGS & PARTITIONS.,
Neighbourhood Services,Direct Services,Third Party Payments,430100,Rendered by Private Contractors,08-Jan-2015,2843730-419,632.00,PARAMOUNT CEILINGS & PARTITIONS.,
Neighbourhood Services,Direct Services,Third Party Payments,430100,Rendered by Private Contractors,08-Jan-2015,2843730-454,"4,660.00",PARAMOUNT CEILINGS & PARTITIONS.,
Children and Adult Services,Education,Fees,901002,Professional fees,08-Jan-2015,2843731-11698,875.00,PATRICK PARSONS CONSULTING ENGINEERS.,
Children and Adult Services,Childrens Services,Premises,145050,Cleaning and Domestic Supplies,08-Jan-2015,2843732-61763021,760.70,PHS GROUP PLC.,
Neighbourhood Services,Culture & Sport,Premises,145009,Cleaning and Domestic Supplies,08-Jan-2015,2843733-61863121,556.66,PHS GROUP PLC.,
Regeneration & Economic Development,Strategy Programmes and Performance,Supplies and Services,384899,Miscellaneous Expenses,08-Jan-2015,2843734-FEDF025/2FINAL,"2,031.04",PLANTS R ROSS.,
Resources,I.C.T. Services,Supplies and Services,332029,Printing Stationery and Gen Off Exps,08-Jan-2015,2843738-610906,"7,547.00",POTTS PRINTERS LTD.,
Resources,I.C.T. Services,Supplies and Services,332029,Printing Stationery and Gen Off Exps,08-Jan-2015,2843738-611300,"2,552.00",POTTS PRINTERS LTD.,
Resources,I.C.T. Services,Supplies and Services,304245,Equipment and Materials,08-Jan-2015,2843739-7458552,585.48,PREMIER PAPER GROUP LTD.,
Resources,I.C.T. Services,Construction Work,908105,Construction work,08-Jan-2015,2843748-INV-0318,"3,818.60",REDWOOD CABLE PROJECTS.,
Neighbourhood Services,Direct Services,Supplies and Services,304259,Equipment and Materials,08-Jan-2015,2843749-00011867,"1,360.00",ROBERT ACTON PRODUCT DEVELOPMENTS.,
Resources,Legal & Democratic Services,Fees,901002,Professional fees,08-Jan-2015,2843750-7458,900.00,ROBERTSON SIMPSON LTD.,
Assistant Chief Executive,Partnerships & Community Engagement Div.,Cap Exp on Grants & Other Financial Assistance (REFCUS),918004,Contributions to other bodies,08-Jan-2015,2843754-VOUCHER14AB-EDRC001SGF002,"3,575.00",SEDGEFIELD AREA & SURROUNDING COMMUNITIES.,
Resources,I.C.T. Services,Employees,040149,Recruitment Instruction and Training,08-Jan-2015,2843761-14-016,"1,835.00",SILVERTHORN ASSOCIATES LTD.,
Resources,I.C.T. Services,Vehicles Equipment Furniture and Fittings,912701,Computer equipment,08-Jan-2015,2843763-INV01059366,"17,022.00",SOFTCAT LTD.,
Neighbourhood Services,Culture & Sport,Premises,145023,Cleaning and Domestic Supplies,08-Jan-2015,2843768-0000000491,735.00,ST JOHN`S SCHOOL & SIXTH FORM COLLEGE A CATHOLIC ACADEMY.,
Children and Adult Services,Education,Transport,230007,Contract Hire,08-Jan-2015,2843771-4,675.00,STEVEN DODDS T/A SD TAXIS.,
Neighbourhood Services,Direct Services,Supplies and Services,304221,Equipment and Materials,08-Jan-2015,2843781-1438203,"1,023.55",T CROSSLING & CO LTD.,
Dedicated Schools Grant,Dedicated Schools Grant,Employees,080025,Agency Staff,08-Jan-2015,2843782-952575,"3,588.87",TEACHING PERSONNEL LTD.,
Neighbourhood Services,Direct Services,Supplies and Services,304259,Equipment and Materials,08-Jan-2015,2843783-138166,588.00,TECALEMIT GARAGE EQUIPMENT CO LTD.,
Neighbourhood Services,EnvironmentHealth & Consumer Protection,Supplies and Services,336005,Advertising,08-Jan-2015,2843787-TJ5493332,"1,130.00",THINK JESSICA.,
Neighbourhood Services,Technical Services,Stock,926900,Stock in hand-Inventory system,08-Jan-2015,2843788-N/IN137091,545.77,THOMAS OWEN & SONS (NEWCASTLE) LTD.,
Assistant Chief Executive,Partnerships & Community Engagement Div.,Transfer Payments,525030,Other,08-Jan-2015,2843795,500.00,TOW LAW COMMUNITY ASSOCIATION.,
Regeneration & Economic Development,Economic Development and Housing,Supplies and Services,384199,Miscellaneous Expenses,08-Jan-2015,2843798-HS/4602,800.00,TRAVMEDIA (UK) LTD.,
Assistant Chief Executive,Partnerships & Community Engagement Div.,Transfer Payments,525030,Other,08-Jan-2015,2843799-VOUCHER14AB-EDRC001SGF011,"3,642.00",TRIMDON GRANGE COMMUNITY CENTRE.,
Resources,Financial Services,Supplies and Services,338045,Services,08-Jan-2015,2843800-000107173,"7,125.00",TURNER & TOWNSEND LLP.,
Neighbourhood Services,Technical Services,Supplies and Services,338027,Services,08-Jan-2015,2843800-000184728,"2,300.00",TURNER & TOWNSEND LLP.,
Neighbourhood Services,Culture & Sport,Supplies and Services,384956,Miscellaneous Expenses,08-Jan-2015,2843801-UKAPPL/93328,"1,225.80",UKACTIVE FORMERLY FITNESS INDUSTRY ASSOCIATION.,
Neighbourhood Services,Culture & Sport,Supplies and Services,324001,Provisions,08-Jan-2015,2843804-90781,950.00,W DIXON T/A THE DIXON AGENCY.,
RED HRA,HRA Capital,Construction Work,908105,Construction work,08-Jan-2015,2843806-2014/938,500.00,WEARDALE FLOORING.,
Neighbourhood Services,Culture & Sport,Supplies and Services,304259,Equipment and Materials,08-Jan-2015,2843811-4373,536.00,WOODCRAFT UK.,
Neighbourhood Services,Direct Services,Third Party Payments,430100,Rendered by Private Contractors,08-Jan-2015,2843815-33017,"1,100.56",YWC GROUP LTD.,
Neighbourhood Services,Direct Services,Supplies and Services,304259,Equipment and Materials,09-Jan-2015,2843817-161345,"1,409.80",(PASS) PORTABLE APPLIANCE SAFETY SERVICES LTD.,
Neighbourhood Services,Direct Services,Supplies and Services,304259,Equipment and Materials,09-Jan-2015,2843817-161347,"1,754.74",(PASS) PORTABLE APPLIANCE SAFETY SERVICES LTD.,
Children and Adult Services,Education,Transport,230006,Contract Hire,09-Jan-2015,2843838-A24/SB,882.00,AABAT TAXIS.,
Children and Adult Services,Education,Transport,230008,Contract Hire,09-Jan-2015,2843838-A25/SC,825.00,AABAT TAXIS.,
Children and Adult Services,Education,Transport,230008,Contract Hire,09-Jan-2015,2843838-A26/SD,882.00,AABAT TAXIS.,
Children and Adult Services,Education,Transport,230008,Contract Hire,09-Jan-2015,2843838-A27/SE,"1,110.00",AABAT TAXIS.,
Children and Adult Services,Education,Transport,230008,Contract Hire,09-Jan-2015,2843838-A308/SH,611.00,AABAT TAXIS.,
Children and Adult Services,Education,Transport,230007,Contract Hire,09-Jan-2015,2843838-A31/SK,"1,388.60",AABAT TAXIS.,
Children and Adult Services,Education,Transport,230007,Contract Hire,09-Jan-2015,2843838-A35/SP,660.00,AABAT TAXIS.,
Children and Adult Services,Education,Transport,230008,Contract Hire,09-Jan-2015,2843838-A39/AC,558.00,AABAT TAXIS.,
Children and Adult Services,Education,Transport,230008,Contract Hire,09-Jan-2015,2843839-12/2/14,885.00,ABA TAXIS.,
Children and Adult Services,Education,Transport,230008,Contract Hire,09-Jan-2015,2843840-0222,"1,378.00",ABC & OUSTON CABS.,
Children and Adult Services,Education,Transport,230008,Contract Hire,09-Jan-2015,2843840-0223,855.00,ABC & OUSTON CABS.,
Children and Adult Services,Education,Transport,230008,Contract Hire,09-Jan-2015,2843840-0225,"1,380.00",ABC & OUSTON CABS.,
Children and Adult Services,Education,Transport,230008,Contract Hire,09-Jan-2015,2843840-0226,"1,422.00",ABC & OUSTON CABS.,
Children and Adult Services,Education,Transport,230008,Contract Hire,09-Jan-2015,2843841-1-30/11/2014,"1,320.00",ABLE NOVAK TAXIS.,
Neighbourhood Services,Technical Services,Employees,040149,Recruitment Instruction and Training,09-Jan-2015,2843843-11902,915.00,ACAD.,
Children and Adult Services,Childrens Services,Third Party Payments,425040,Rendered by Voluntary Organisations,09-Jan-2015,2843845-14/1622,"3,100.00",ACORN HOUSE (FOSTERING SERVICES) LTD.,
Neighbourhood Services,Culture & Sport,Supplies and Services,384700,Miscellaneous Expenses,09-Jan-2015,2843847-NEI-EXP-2015-015,"5,500.00",ACTIVE NORTHUMBERLAND.,
Neighbourhood Services,Technical Services,Supplies and Services,304221,Equipment and Materials,09-Jan-2015,2843853-20826053,832.16,AGGREGATE INDUSTRIES UK LTD.,
Neighbourhood Services,Technical Services,Supplies and Services,304221,Equipment and Materials,09-Jan-2015,2843853-20829899,"1,375.34",AGGREGATE INDUSTRIES UK LTD.,
Neighbourhood Services,Technical Services,Supplies and Services,304221,Equipment and Materials,09-Jan-2015,2843853-20830356,"1,246.20",AGGREGATE INDUSTRIES UK LTD.,
Children and Adult Services,Education,Transport,230007,Contract Hire,09-Jan-2015,2843856-036,"1,064.00",ALANS TAXIS BARNARD CASTLE.,
Neighbourhood Services,Projects and Business services,Supplies and Services,338027,Services,09-Jan-2015,2843859-HL175481,"1,040.34",ALCONTROL LABORATORIES.,
Neighbourhood Services,Projects and Business services,Supplies and Services,338027,Services,09-Jan-2015,2843859-HL176006,"1,230.71",ALCONTROL LABORATORIES.,
Children and Adult Services,Education,Transport,230007,Contract Hire,09-Jan-2015,2843864-TX1467,"7,513.20",ALSTON ROAD GARAGE.,
Children and Adult Services,Education,Transport,230007,Contract Hire,09-Jan-2015,2843864-TX1468,"4,342.34",ALSTON ROAD GARAGE.,
Neighbourhood Services,Technical Services,Stock,926900,Stock in hand-Inventory system,09-Jan-2015,2843881-923640129,"4,926.40",ARCO LTD.,
Children and Adult Services,Education,Supplies and Services,312009,Newspapers Books and Periodicals,09-Jan-2015,2843889-4530732,538.76,ASKEWS & HOLTS LIBRARY SERVICES LTD.,
Children and Adult Services,Education,Transport,230008,Contract Hire,09-Jan-2015,2843892-446,"1,038.00",AT TAXIS LTD.,
Children and Adult Services,Education,Transport,230008,Contract Hire,09-Jan-2015,2843892-447,712.80,AT TAXIS LTD.,
Children and Adult Services,Education,Transport,230008,Contract Hire,09-Jan-2015,2843907-459,778.40,BEELINE MINI BUSES.,
Children and Adult Services,Education,Transport,230008,Contract Hire,09-Jan-2015,2843907-460,"1,125.00",BEELINE MINI BUSES.,
Children and Adult Services,Education,Transport,230007,Contract Hire,09-Jan-2015,2843909-DJ42261214,"3,360.00",BELL BROTHERS TRAVEL.,
Assistant Chief Executive,Partnerships & Community Engagement Div.,Cap Exp on Grants & Other Financial Assistance (REFCUS),918004,Contributions to other bodies,09-Jan-2015,2843914-ACE-01-2015-013,"5,110.91",BIFFA WASTE SERVICES LTD.,
Children and Adult Services,Education,Transport,230008,Contract Hire,09-Jan-2015,2843919-DEC14,525.00,BL TAXIS.,
Children and Adult Services,Education,Supplies and Services,342007,Computers and Communications,09-Jan-2015,2843920-1181534,"1,200.00",BLACKBOARD INTERNATIONAL BV.,
Regeneration & Economic Development,Economic Development and Housing,Supplies and Services,384899,Miscellaneous Expenses,09-Jan-2015,2843922-RED-01-2015-060,"4,829.83",BLAIZE.,
Children and Adult Services,Education,Transport,230008,Contract Hire,09-Jan-2015,2843924-1367,966.00,BOBBY DOVE.,
Children and Adult Services,Education,Transport,230007,Contract Hire,09-Jan-2015,2843925-34A,525.00,BOBS TAXIS.,
Neighbourhood Services,Projects and Business services,Supplies and Services,338027,Services,09-Jan-2015,2843927-4191840,506.00,BOND DICKINSON LLP.,
Neighbourhood Services,Direct Services,Supplies and Services,304221,Equipment and Materials,09-Jan-2015,2843935-150229,"1,440.00",BRAMBLEDOWN LANDSCAPE SERVICES LTD.,
Regeneration & Economic Development,Spatial Policy Planning Assets & Environment,Premises,120009,Energy Costs,09-Jan-2015,2843941-704195440,"1,234.77",BRITISH GAS BUSINESS.,
Regeneration & Economic Development,Transport and Contracted Services,Supplies and Services,304245,Equipment and Materials,09-Jan-2015,2843951-021979,"3,295.00",BUDDI.,
Children and Adult Services,Education,Transport,230008,Contract Hire,09-Jan-2015,2843954-DECEMBER2014,948.00,BURNDALE PRIVATE HIRE.,
Children and Adult Services,Education,Transport,230006,Contract Hire,09-Jan-2015,2843956-F56804-31/12/2014,528.00,C & R TAXIS.,
Dedicated Schools Grant,Dedicated Schools Grant,Transport,230010,Contract Hire,09-Jan-2015,2843956-P04804-31/12/2014,745.00,C & R TAXIS.,
Children and Adult Services,Education,Transport,230008,Contract Hire,09-Jan-2015,2843956-W01104,735.00,C & R TAXIS.,
Neighbourhood Services,Technical Services,Stock,926900,Stock in hand-Inventory system,09-Jan-2015,2843961-851500037,"2,616.00",CARLISLE CONSTRUCTION MATERIALS LTD.,
Children and Adult Services,Childrens Services,Third Party Payments,425040,Rendered by Voluntary Organisations,09-Jan-2015,2843975-10530,"3,011.34",CHILDRENS FAMILY TRUST.,
Children and Adult Services,Childrens Services,Third Party Payments,425040,Rendered by Voluntary Organisations,09-Jan-2015,2843975-10531,"3,100.00",CHILDRENS FAMILY TRUST.,
Children and Adult Services,Education,Transport,230008,Contract Hire,09-Jan-2015,2843976-KJ0258,"1,271.00",CHIPPERS TAXIS.,
Regeneration & Economic Development,Economic Development and Housing,Cap Exp on Grants & Other Financial Assistance (REFCUS),918401,Capital grants,09-Jan-2015,2843979-RED-01-2015-056,"5,000.00",REDACTED - PAYMENT TO INDIVIDUAL,
Children and Adult Services,Head of Adults,Third Party Payments,479101,Purchase of Care,09-Jan-2015,2843992-3910005981,"5,250.00",CO DURHAM & DARLINGTON NHS FOUNDATION TRUST.,
Children and Adult Services,Head of Adults,Supplies and Services,384619,Miscellaneous Expenses,09-Jan-2015,2843992-3910005986,"7,363.25",CO DURHAM & DARLINGTON NHS FOUNDATION TRUST.,
Children and Adult Services,Childrens Services,Third Party Payments,486044,Service Level Agreements,09-Jan-2015,2843992-3980007497,"2,372.00",CO DURHAM & DARLINGTON NHS FOUNDATION TRUST.,
Children and Adult Services,Education,Transport,230008,Contract Hire,09-Jan-2015,2844035-WO62-31/12/2014,585.00,D IRVING T/A BJ TAXIS.,
Neighbourhood Services,Direct Services,Transport,230005,Contract Hire,09-Jan-2015,2844045-678068,815.43,DAWSONRENTALS VANS LTD.,
Neighbourhood Services,Direct Services,Transport,230005,Contract Hire,09-Jan-2015,2844045-678070,504.00,DAWSONRENTALS VANS LTD.,
Children and Adult Services,Head of Adults,Cap Exp on Grants & Other Financial Assistance (REFCUS),918401,Capital grants,09-Jan-2015,2844053-CAS-01-2015-004,"1,190.00",DERWENTSIDE MIND.,
Regeneration & Economic Development,Economic Development and Housing,Cap Exp on Grants & Other Financial Assistance (REFCUS),918401,Capital grants,09-Jan-2015,2844060-RED-01-2015-053,"3,440.24",DJ TUCKER LTD.,
Children and Adult Services,Education,Transport,230007,Contract Hire,09-Jan-2015,2844070-20263,"1,942.50",DURHAM CITY COACHES.,
Regeneration & Economic Development,Transport and Contracted Services,Third Party Payments,430100,Rendered by Private Contractors,09-Jan-2015,2844074-231214,"3,453.00",DURHAM MARKETS CO.,
Regeneration & Economic Development,Spatial Policy Planning Assets & Environment,Supplies and Services,384159,Miscellaneous Expenses,09-Jan-2015,2844078-131,"7,207.20",EAGLE SECURITY BISHOP AUCKLAND LTD.,
RED HRA,HRA Capital,Construction Work,908105,Construction work,09-Jan-2015,2844082-SINV/00003532,"2,093.35",EAST DURHAM HOMES.,
RED HRA,HRA Capital,Construction Work,908105,Construction work,09-Jan-2015,2844082-SINV/00003533,"13,406.65",EAST DURHAM HOMES.,
RED HRA,HRA Capital,Construction Work,908105,Construction work,09-Jan-2015,2844082-SINV/00003534,"1,295.62",EAST DURHAM HOMES.,
RED HRA,HRA Capital,Other Expenses,914001,Other capital expenses,09-Jan-2015,2844082-SINV/00003535,"7,855.90",EAST DURHAM HOMES.,
RED HRA,HRA Capital,Construction Work,908105,Construction work,09-Jan-2015,2844082-SINV/00003536,"13,852.95",EAST DURHAM HOMES.,
RED HRA,HRA Capital,Construction Work,908105,Construction work,09-Jan-2015,2844082-SINV/00003537,"1,734.05",EAST DURHAM HOMES.,
RED HRA,HRA Capital,Construction Work,908105,Construction work,09-Jan-2015,2844082-SINV/00003538,"41,958.88",EAST DURHAM HOMES.,
RED HRA,HRA Capital,Construction Work,908105,Construction work,09-Jan-2015,2844082-SINV/00003539,"13,146.16",EAST DURHAM HOMES.,
RED HRA,HRA Capital,Construction Work,908105,Construction work,09-Jan-2015,2844082-SINV/00003540,"2,624.90",EAST DURHAM HOMES.,
RED HRA,HRA Capital,Construction Work,908105,Construction work,09-Jan-2015,2844082-SINV/00003541,"107,724.22",EAST DURHAM HOMES.,
Children and Adult Services,Childrens Services,Third Party Payments,425040,Rendered by Voluntary Organisations,09-Jan-2015,2844113-0000053686,"3,232.99",FIVE RIVERS CHILD CARE LTD.,
Neighbourhood Services,Direct Services,Supplies and Services,304221,Equipment and Materials,09-Jan-2015,2844114-1501-214716,566.77,FLAME HEATING SPARES LTD.,
Neighbourhood Services,Technical Services,Stock,926900,Stock in hand-Inventory system,09-Jan-2015,2844115-OP/I285363,975.49,FLEMING & CO (MACHINERY) LTD.,
Children and Adult Services,Childrens Services,Third Party Payments,425040,Rendered by Voluntary Organisations,09-Jan-2015,2844120-630139476,"4,079.43",FOSTER CARE ASSOCIATES LTD.,
Children and Adult Services,Childrens Services,Third Party Payments,425040,Rendered by Voluntary Organisations,09-Jan-2015,2844120-630139616,"4,079.43",FOSTER CARE ASSOCIATES LTD.,
Children and Adult Services,Childrens Services,Third Party Payments,425040,Rendered by Voluntary Organisations,09-Jan-2015,2844120-630139944,"4,079.43",FOSTER CARE ASSOCIATES LTD.,
Children and Adult Services,Childrens Services,Third Party Payments,425040,Rendered by Voluntary Organisations,09-Jan-2015,2844120-630140034,"4,079.43",FOSTER CARE ASSOCIATES LTD.,
Children and Adult Services,Childrens Services,Third Party Payments,425040,Rendered by Voluntary Organisations,09-Jan-2015,2844120-630140109,"4,079.43",FOSTER CARE ASSOCIATES LTD.,
Children and Adult Services,Childrens Services,Third Party Payments,425040,Rendered by Voluntary Organisations,09-Jan-2015,2844120-630140128,"4,079.43",FOSTER CARE ASSOCIATES LTD.,
Children and Adult Services,Childrens Services,Third Party Payments,425040,Rendered by Voluntary Organisations,09-Jan-2015,2844120-630140447,"4,162.68",FOSTER CARE ASSOCIATES LTD.,
Children and Adult Services,Childrens Services,Third Party Payments,425040,Rendered by Voluntary Organisations,09-Jan-2015,2844121-11921,820.00,FOSTER CARES LTD.,
Children and Adult Services,Childrens Services,Third Party Payments,425040,Rendered by Voluntary Organisations,09-Jan-2015,2844121-11944,"1,180.00",FOSTER CARES LTD.,
Children and Adult Services,Childrens Services,Third Party Payments,425040,Rendered by Voluntary Organisations,09-Jan-2015,2844121-11949,820.00,FOSTER CARES LTD.,
Children and Adult Services,Childrens Services,Third Party Payments,425040,Rendered by Voluntary Organisations,09-Jan-2015,2844121-11952,760.00,FOSTER CARES LTD.,
Children and Adult Services,Childrens Services,Third Party Payments,425040,Rendered by Voluntary Organisations,09-Jan-2015,2844121-11964,730.00,FOSTER CARES LTD.,
Children and Adult Services,Childrens Services,Third Party Payments,425040,Rendered by Voluntary Organisations,09-Jan-2015,2844121-11967,730.00,FOSTER CARES LTD.,
Children and Adult Services,Childrens Services,Third Party Payments,425040,Rendered by Voluntary Organisations,09-Jan-2015,2844121-11973,820.00,FOSTER CARES LTD.,
Children and Adult Services,Childrens Services,Third Party Payments,425040,Rendered by Voluntary Organisations,09-Jan-2015,2844121-11974,730.00,FOSTER CARES LTD.,
Children and Adult Services,Childrens Services,Third Party Payments,425040,Rendered by Voluntary Organisations,09-Jan-2015,2844121-11996,"1,180.00",FOSTER CARES LTD.,
Children and Adult Services,Childrens Services,Third Party Payments,425040,Rendered by Voluntary Organisations,09-Jan-2015,2844121-12001,820.00,FOSTER CARES LTD.,
Children and Adult Services,Childrens Services,Third Party Payments,425040,Rendered by Voluntary Organisations,09-Jan-2015,2844121-12004,760.00,FOSTER CARES LTD.,
Children and Adult Services,Childrens Services,Third Party Payments,425040,Rendered by Voluntary Organisations,09-Jan-2015,2844121-12016,730.00,FOSTER CARES LTD.,
Children and Adult Services,Childrens Services,Third Party Payments,425040,Rendered by Voluntary Organisations,09-Jan-2015,2844121-12019,730.00,FOSTER CARES LTD.,
Children and Adult Services,Childrens Services,Third Party Payments,425040,Rendered by Voluntary Organisations,09-Jan-2015,2844121-12025,820.00,FOSTER CARES LTD.,
Children and Adult Services,Childrens Services,Third Party Payments,425040,Rendered by Voluntary Organisations,09-Jan-2015,2844121-12026,730.00,FOSTER CARES LTD.,
Children and Adult Services,Childrens Services,Third Party Payments,425040,Rendered by Voluntary Organisations,09-Jan-2015,2844121-12046,"1,180.00",FOSTER CARES LTD.,
Children and Adult Services,Childrens Services,Third Party Payments,425040,Rendered by Voluntary Organisations,09-Jan-2015,2844121-12051,820.00,FOSTER CARES LTD.,
Children and Adult Services,Childrens Services,Third Party Payments,425040,Rendered by Voluntary Organisations,09-Jan-2015,2844121-12054,760.00,FOSTER CARES LTD.,
Children and Adult Services,Childrens Services,Third Party Payments,425040,Rendered by Voluntary Organisations,09-Jan-2015,2844121-12066,730.00,FOSTER CARES LTD.,
Children and Adult Services,Childrens Services,Third Party Payments,425040,Rendered by Voluntary Organisations,09-Jan-2015,2844121-12069,730.00,FOSTER CARES LTD.,
Children and Adult Services,Childrens Services,Third Party Payments,425040,Rendered by Voluntary Organisations,09-Jan-2015,2844121-12075,820.00,FOSTER CARES LTD.,
Children and Adult Services,Childrens Services,Third Party Payments,425040,Rendered by Voluntary Organisations,09-Jan-2015,2844121-12076,730.00,FOSTER CARES LTD.,
RED HRA,Housing Revenue Account,Supplies and Services,352001,Conference Expenses,09-Jan-2015,2844135-GDC/14/164,"7,720.68",GERALD DAVIES CONSULTING LTD.,
Regeneration & Economic Development,Spatial Policy Planning Assets & Environment,Supplies and Services,338099,Services,09-Jan-2015,2844150-0000010125,"2,401.18",GROUNDWORK NORTH EAST.,
Neighbourhood Services,Direct Services,Supplies and Services,304259,Equipment and Materials,09-Jan-2015,2844153-034063,507.00,HAGS-SMP LTD.,
Children and Adult Services,Education,Transport,230007,Contract Hire,09-Jan-2015,2844162-HT151,"1,500.00",HARRY`S TAXI`S.,
Children and Adult Services,Education,Transport,230008,Contract Hire,09-Jan-2015,2844162-HT152,"1,260.00",HARRY`S TAXI`S.,
Children and Adult Services,Education,Transport,230007,Contract Hire,09-Jan-2015,2844162-HT153,600.00,HARRY`S TAXI`S.,
Children and Adult Services,Education,Transport,230008,Contract Hire,09-Jan-2015,2844162-HT154,"1,980.00",HARRY`S TAXI`S.,
Children and Adult Services,Education,Transport,230008,Contract Hire,09-Jan-2015,2844172-26,980.00,HENRYS TAXIS.,
Children and Adult Services,Education,Transport,230007,Contract Hire,09-Jan-2015,2844177-011939,810.00,HODGSONS COACH OPERATORS LTD.,
Children and Adult Services,Education,Transport,230007,Contract Hire,09-Jan-2015,2844177-011940,900.00,HODGSONS COACH OPERATORS LTD.,
Children and Adult Services,Education,Transport,230007,Contract Hire,09-Jan-2015,2844177-011942,"1,275.00",HODGSONS COACH OPERATORS LTD.,
Dedicated Schools Grant,Dedicated Schools Grant,Transfer Payments,510032,School Children,09-Jan-2015,2844184-CAS-01-2015-012,"4,628.26",HOWLETCH & SHOTTON CHILDCARE LTD.,
Children and Adult Services,Education,Transport,230007,Contract Hire,09-Jan-2015,2844186-F1279,"1,287.00",HUNTER BROTHERS (TANTOBIE) LTD.,
Children and Adult Services,Education,Transport,230008,Contract Hire,09-Jan-2015,2844187-IR1412005,"1,960.00",I & R EXECUTIVE TRAVEL.,
Children and Adult Services,Education,Transport,230008,Contract Hire,09-Jan-2015,2844187-IR1412006,"1,120.00",I & R EXECUTIVE TRAVEL.,
Resources,I.C.T. Services,Supplies and Services,342033,Computers and Communications,09-Jan-2015,2844195-2163219,653.40,INSIGHT DIRECT (UK) LTD.,
Neighbourhood Services,Culture & Sport,Vehicles Equipment Furniture and Fittings,912701,Computer equipment,09-Jan-2015,2844195-2168000,750.12,INSIGHT DIRECT (UK) LTD.,
Neighbourhood Services,Culture & Sport,Vehicles Equipment Furniture and Fittings,912701,Computer equipment,09-Jan-2015,2844195-2168562,500.08,INSIGHT DIRECT (UK) LTD.,
Neighbourhood Services,Technical Services,Third Party Payments,460109,Contract Payments,09-Jan-2015,2844196-INS1061,"6,480.00",INSPECTORATE LTD T/A ROCH NDT SERVICES.,
Neighbourhood Services,Technical Services,Third Party Payments,460109,Contract Payments,09-Jan-2015,2844196-INS1063,"12,640.00",INSPECTORATE LTD T/A ROCH NDT SERVICES.,
Neighbourhood Services,Technical Services,Third Party Payments,460109,Contract Payments,09-Jan-2015,2844196-INS1067,"9,640.00",INSPECTORATE LTD T/A ROCH NDT SERVICES.,
Neighbourhood Services,Technical Services,Stock,926900,Stock in hand-Inventory system,09-Jan-2015,2844197-473565,"2,424.80",INSTARMAC GROUP PLC.,
Children and Adult Services,Childrens Services,Third Party Payments,425017,Rendered by Voluntary Organisations,09-Jan-2015,2844199-INV-0313,"6,981.39",INTERACT CARE LTD.,
Children and Adult Services,Childrens Services,Third Party Payments,425018,Rendered by Voluntary Organisations,09-Jan-2015,2844199-INV-0314,"16,160.92",INTERACT CARE LTD.,
Regeneration & Economic Development,Economic Development and Housing,Employees,040149,Recruitment Instruction and Training,09-Jan-2015,2844203-9022,579.00,IT TRAINING SOLUTIONS LTD.,
Children and Adult Services,Education,Transport,230008,Contract Hire,09-Jan-2015,2844208-0004,825.00,JA SHORT.,
Neighbourhood Services,Technical Services,Third Party Payments,460053,Contract Payments,09-Jan-2015,2844209-10868,594.01,JACK COUPE & SONS LTD T/A COUPE LINE.,
Neighbourhood Services,Technical Services,Third Party Payments,460053,Contract Payments,09-Jan-2015,2844209-10875,731.11,JACK COUPE & SONS LTD T/A COUPE LINE.,
Regeneration & Economic Development,Transport and Contracted Services,Other Expenses,914001,Other capital expenses,09-Jan-2015,2844209-10923,622.30,JACK COUPE & SONS LTD T/A COUPE LINE.,
Neighbourhood Services,Technical Services,Third Party Payments,460053,Contract Payments,09-Jan-2015,2844209-16088,"1,396.14",JACK COUPE & SONS LTD T/A COUPE LINE.,
Children and Adult Services,Education,Transport,230006,Contract Hire,09-Jan-2015,2844210-0078,704.00,JACKSON`S TAXI.,
Children and Adult Services,Education,Transport,230008,Contract Hire,09-Jan-2015,2844211-71,700.00,JACK`S TAXIS.,
Dedicated Schools Grant,Dedicated Schools Grant,Transport,230010,Contract Hire,09-Jan-2015,2844212-L026D,770.00,JAFFAS TAXIS.,
Children and Adult Services,Education,Transport,230008,Contract Hire,09-Jan-2015,2844214-M113-19/12/2014,870.00,JAMY`S TAXIS.,
RED HRA,HRA Capital,Construction Work,908105,Construction work,09-Jan-2015,2844218-17622,"1,183.38",JDP CONTRACTING SERVICES LTD.,
Children and Adult Services,Education,Transport,230008,Contract Hire,09-Jan-2015,2844219-NUM633,"1,200.00",JDS PRIVATE HIRE DURHAM.,
Children and Adult Services,Education,Transport,230008,Contract Hire,09-Jan-2015,2844219-NUM634,"1,140.00",JDS PRIVATE HIRE DURHAM.,
Children and Adult Services,Education,Transport,230008,Contract Hire,09-Jan-2015,2844219-NUM635,960.00,JDS PRIVATE HIRE DURHAM.,
Children and Adult Services,Education,Transport,230008,Contract Hire,09-Jan-2015,2844219-NUM636,"1,071.00",JDS PRIVATE HIRE DURHAM.,
Children and Adult Services,Education,Transport,230008,Contract Hire,09-Jan-2015,2844219-NUM637,676.00,JDS PRIVATE HIRE DURHAM.,
Children and Adult Services,Education,Transport,230008,Contract Hire,09-Jan-2015,2844219-NUM639,"1,950.00",JDS PRIVATE HIRE DURHAM.,
Children and Adult Services,Education,Transport,230009,Contract Hire,09-Jan-2015,2844219-NUM640,784.00,JDS PRIVATE HIRE DURHAM.,
Children and Adult Services,Education,Transport,230008,Contract Hire,09-Jan-2015,2844219-NUM641,945.00,JDS PRIVATE HIRE DURHAM.,
Children and Adult Services,Education,Transport,230008,Contract Hire,09-Jan-2015,2844219-NUM643,"1,875.00",JDS PRIVATE HIRE DURHAM.,
Children and Adult Services,Education,Transport,230008,Contract Hire,09-Jan-2015,2844219-NUM644,750.00,JDS PRIVATE HIRE DURHAM.,
Children and Adult Services,Education,Transport,230008,Contract Hire,09-Jan-2015,2844219-NUM645,900.00,JDS PRIVATE HIRE DURHAM.,
Children and Adult Services,Education,Transport,230008,Contract Hire,09-Jan-2015,2844220-2344,"1,546.90",JEFF ANDERSON COACHES LTD.,
Neighbourhood Services,Technical Services,Stock,926900,Stock in hand-Inventory system,09-Jan-2015,2844230-NI026720,"6,290.00",JOHN MACLEAN & SONS ELECTRICAL (DINGWALL) LTD.,
Neighbourhood Services,Technical Services,Premises,150015,Apportioned Exps of Operational Blds,09-Jan-2015,2844231-1411452,808.45,JOHN NIXON LTD.,
Children and Adult Services,Education,Transport,230008,Contract Hire,09-Jan-2015,2844232-73,"1,665.00",JOHNS TAXIS (CHESTER LE STREET).,
Children and Adult Services,Education,Transport,230008,Contract Hire,09-Jan-2015,2844234-M0364,735.00,JOVIAL PRIVATE HIRE.,
Children and Adult Services,Education,Transport,230008,Contract Hire,09-Jan-2015,2844234-N0304,"1,245.00",JOVIAL PRIVATE HIRE.,
Children and Adult Services,Education,Transport,230007,Contract Hire,09-Jan-2015,2844234-SJPS10,930.00,JOVIAL PRIVATE HIRE.,
Neighbourhood Services,Direct Services,Supplies and Services,304221,Equipment and Materials,09-Jan-2015,2844236-BAI234280,615.62,JT DOVE LTD.,
Neighbourhood Services,Technical Services,Supplies and Services,304221,Equipment and Materials,09-Jan-2015,2844236-CNI21202/D,556.90,JT DOVE LTD.,
Neighbourhood Services,Culture & Sport,Supplies and Services,304083,Equipment and Materials,09-Jan-2015,2844238-OO10739,653.84,JUSTWIPE LTD T/A ONLY OILCLOTHS.,
Regeneration & Economic Development,Spatial Policy Planning Assets & Environment,Supplies and Services,384540,Miscellaneous Expenses,09-Jan-2015,2844242-5442,"1,190.00",KINGFISHER MEDIA LTD.,
Regeneration & Economic Development,Economic Development and Housing,Cap Exp on Grants & Other Financial Assistance (REFCUS),918401,Capital grants,09-Jan-2015,2844249-RED-01-2015-052,"2,029.25",L & M  BUILDING SOLUTIONS LTD.,
Neighbourhood Services,Technical Services,Supplies and Services,304221,Equipment and Materials,09-Jan-2015,2844251-9032052123,682.80,LAFARGE TARMAC TRADING LTD.,
Neighbourhood Services,Technical Services,Supplies and Services,304221,Equipment and Materials,09-Jan-2015,2844251-9032056951,"1,152.23",LAFARGE TARMAC TRADING LTD.,
Dedicated Schools Grant,Dedicated Schools Grant,Transfer Payments,510032,School Children,09-Jan-2015,2844281-CAS-01-2015-018,737.30,LYNNE MCGUIGAN.,
Neighbourhood Services,Direct Services,Supplies and Services,304221,Equipment and Materials,09-Jan-2015,2844285-827/037137,673.60,MAGNET LTD.,
Neighbourhood Services,Direct Services,Supplies and Services,304221,Equipment and Materials,09-Jan-2015,2844285-827/037154,571.28,MAGNET LTD.,
Neighbourhood Services,Direct Services,Supplies and Services,304221,Equipment and Materials,09-Jan-2015,2844285-827/037177,661.93,MAGNET LTD.,
Neighbourhood Services,Direct Services,Supplies and Services,304221,Equipment and Materials,09-Jan-2015,2844285-827/037178,724.44,MAGNET LTD.,
Neighbourhood Services,Direct Services,Supplies and Services,304221,Equipment and Materials,09-Jan-2015,2844285-827/037187,558.16,MAGNET LTD.,
Neighbourhood Services,Direct Services,Supplies and Services,304221,Equipment and Materials,09-Jan-2015,2844285-827/037285,677.61,MAGNET LTD.,
Neighbourhood Services,Direct Services,Supplies and Services,304221,Equipment and Materials,09-Jan-2015,2844285-827/037286,557.71,MAGNET LTD.,
Neighbourhood Services,Direct Services,Supplies and Services,304221,Equipment and Materials,09-Jan-2015,2844285-827/037350,732.30,MAGNET LTD.,
Neighbourhood Services,Direct Services,Supplies and Services,304221,Equipment and Materials,09-Jan-2015,2844285-827/037352,542.30,MAGNET LTD.,
Neighbourhood Services,Direct Services,Supplies and Services,304221,Equipment and Materials,09-Jan-2015,2844285-827/037429,728.14,MAGNET LTD.,
Neighbourhood Services,Direct Services,Supplies and Services,304221,Equipment and Materials,09-Jan-2015,2844285-827/037454,584.12,MAGNET LTD.,
Neighbourhood Services,Direct Services,Supplies and Services,304221,Equipment and Materials,09-Jan-2015,2844285-827/037455,616.47,MAGNET LTD.,
RED HRA,HRA Centrally Managed,Creditors,952184,Creditor-tenants contents insurance,09-Jan-2015,2844294-6430614,"2,532.39",MARSH LTD UK.,
RED HRA,HRA Centrally Managed,Creditors,952184,Creditor-tenants contents insurance,09-Jan-2015,2844294-6447551,"2,538.84",MARSH LTD UK.,
Neighbourhood Services,Technical Services,Supplies and Services,304221,Equipment and Materials,09-Jan-2015,2844295-ZBB0747107,"3,880.00",MARSHALLS MONO LTD.,
Regeneration & Economic Development,Spatial Policy Planning Assets & Environment,Supplies and Services,338099,Services,09-Jan-2015,2844296-849,677.00,MARTIN AVERY.,
RED HRA,Housing Revenue Account,Supplies and Services,338013,Services,09-Jan-2015,2844301-1011795,"2,550.00",MAZARS LLP.,
Children and Adult Services,Education,Transport,230007,Contract Hire,09-Jan-2015,2844317-1193-DECEMBER2014,600.00,MR A CHAPMAN T/A ALAN`S TAXIS CHESTER LE ST.,
Children and Adult Services,Education,Transport,230006,Contract Hire,09-Jan-2015,2844320-70-DECEMBER2014,"1,206.00",MR DAVID CULLEN.,
Children and Adult Services,Education,Transport,230008,Contract Hire,09-Jan-2015,2844328-2837,750.00,MR S BOWERS.,
Children and Adult Services,Education,Transport,230008,Contract Hire,09-Jan-2015,2844328-2839,"1,140.00",MR S BOWERS.,
Children and Adult Services,Education,Transport,230008,Contract Hire,09-Jan-2015,2844328-2840,"1,350.00",MR S BOWERS.,
Regeneration & Economic Development,Economic Development and Housing,Cap Exp on Grants & Other Financial Assistance (REFCUS),918401,Capital grants,09-Jan-2015,2844339-RED-01-2015-049,"3,337.00",NEIL BELL PLUMBERS HEATING & GAS INS.,
Regeneration & Economic Development,Economic Development and Housing,Cap Exp on Grants & Other Financial Assistance (REFCUS),918401,Capital grants,09-Jan-2015,2844339-RED-01-2015-050,"3,977.00",NEIL BELL PLUMBERS HEATING & GAS INS.,
Regeneration & Economic Development,Economic Development and Housing,Supplies and Services,340001,Postages,09-Jan-2015,2844340-RED-01-2015-055,"1,000.00",NEOPOST LTD CREDIFON RCB ACCOUNT.,
Children and Adult Services,Childrens Services,Supplies and Services,384199,Miscellaneous Expenses,09-Jan-2015,2844349-48348453,"1,059.10",NHS PROPERTY SERVICES LTD.,
Dedicated Schools Grant,Dedicated Schools Grant,Third Party Payments,425005,Rendered by Voluntary Organisations,09-Jan-2015,2844354-0000019753,"13,991.40",NORTH EAST AUTISM SOCIETY.,
Dedicated Schools Grant,Dedicated Schools Grant,Third Party Payments,425005,Rendered by Voluntary Organisations,09-Jan-2015,2844354-0000019763,"15,670.90",NORTH EAST AUTISM SOCIETY.,
Dedicated Schools Grant,Dedicated Schools Grant,Third Party Payments,425005,Rendered by Voluntary Organisations,09-Jan-2015,2844354-0000019764,"23,928.89",NORTH EAST AUTISM SOCIETY.,
Dedicated Schools Grant,Dedicated Schools Grant,Third Party Payments,425005,Rendered by Voluntary Organisations,09-Jan-2015,2844354-0000019778,"11,752.79",NORTH EAST AUTISM SOCIETY.,
Children and Adult Services,Childrens Services,Supplies and Services,384638,Miscellaneous Expenses,09-Jan-2015,2844354-0000019813,792.00,NORTH EAST AUTISM SOCIETY.,
Children and Adult Services,Childrens Services,Supplies and Services,384638,Miscellaneous Expenses,09-Jan-2015,2844354-0000019815,648.00,NORTH EAST AUTISM SOCIETY.,
Children and Adult Services,Childrens Services,Supplies and Services,384638,Miscellaneous Expenses,09-Jan-2015,2844354-0000019816,648.00,NORTH EAST AUTISM SOCIETY.,
Children and Adult Services,Childrens Services,Supplies and Services,384638,Miscellaneous Expenses,09-Jan-2015,2844354-0000019818,607.50,NORTH EAST AUTISM SOCIETY.,
Children and Adult Services,Childrens Services,Supplies and Services,384638,Miscellaneous Expenses,09-Jan-2015,2844354-0000019819,"1,152.00",NORTH EAST AUTISM SOCIETY.,
Children and Adult Services,Childrens Services,Supplies and Services,384638,Miscellaneous Expenses,09-Jan-2015,2844354-0000019822,648.00,NORTH EAST AUTISM SOCIETY.,
Children and Adult Services,Childrens Services,Supplies and Services,384638,Miscellaneous Expenses,09-Jan-2015,2844354-0000019853,"1,284.75",NORTH EAST AUTISM SOCIETY.,
Children and Adult Services,Childrens Services,Supplies and Services,384638,Miscellaneous Expenses,09-Jan-2015,2844354-0000019854,895.50,NORTH EAST AUTISM SOCIETY.,
Children and Adult Services,Childrens Services,Supplies and Services,384638,Miscellaneous Expenses,09-Jan-2015,2844354-0000019855,551.25,NORTH EAST AUTISM SOCIETY.,
Children and Adult Services,Childrens Services,Supplies and Services,384638,Miscellaneous Expenses,09-Jan-2015,2844354-0000019856,771.75,NORTH EAST AUTISM SOCIETY.,
Children and Adult Services,Childrens Services,Supplies and Services,384638,Miscellaneous Expenses,09-Jan-2015,2844354-0000019857,"1,311.75",NORTH EAST AUTISM SOCIETY.,
Children and Adult Services,Childrens Services,Supplies and Services,384638,Miscellaneous Expenses,09-Jan-2015,2844354-0000019858,"3,838.50",NORTH EAST AUTISM SOCIETY.,
Children and Adult Services,Childrens Services,Supplies and Services,384638,Miscellaneous Expenses,09-Jan-2015,2844354-0000019864,504.00,NORTH EAST AUTISM SOCIETY.,
Neighbourhood Services,Direct Services,Third Party Payments,430100,Rendered by Private Contractors,09-Jan-2015,2844360-DI20204892,"1,132.21",NORTHERN POWERGRID (NORTHEAST) LTD.,
RED HRA,Housing Revenue Account,Supplies and Services,358002,Housing Revenue Account,09-Jan-2015,2844362-163943,"1,875.00",NORTHGATE INFORMATION SOLUTIONS UK LTD.,
Neighbourhood Services,Technical Services,Stock,926900,Stock in hand-Inventory system,09-Jan-2015,2844383-XL130172,"3,800.00",PARK ELECTRICAL DISTRIBUTORS LTD.,
Neighbourhood Services,Technical Services,Stock,926900,Stock in hand-Inventory system,09-Jan-2015,2844383-XL130646,840.00,PARK ELECTRICAL DISTRIBUTORS LTD.,
Neighbourhood Services,Technical Services,Stock,926900,Stock in hand-Inventory system,09-Jan-2015,2844383-XL131233,840.00,PARK ELECTRICAL DISTRIBUTORS LTD.,
Neighbourhood Services,Technical Services,Stock,926900,Stock in hand-Inventory system,09-Jan-2015,2844383-XL131928,840.00,PARK ELECTRICAL DISTRIBUTORS LTD.,
Regeneration & Economic Development,Economic Development and Housing,Construction Work,908105,Construction work,09-Jan-2015,2844386-4354,"1,250.00",PAUL EVANS SURVEYING LTD.,
Children and Adult Services,Education,Supplies and Services,312009,Newspapers Books and Periodicals,09-Jan-2015,2844394-1530143,722.47,PETERS LTD.,
Children and Adult Services,Education,Supplies and Services,312009,Newspapers Books and Periodicals,09-Jan-2015,2844394-1530144,549.11,PETERS LTD.,
Neighbourhood Services,EnvironmentHealth & Consumer Protection,Third Party Payments,430100,Rendered by Private Contractors,09-Jan-2015,2844396-172,550.00,PETE`S REMOVALS & CLEARANCES.,
Children and Adult Services,Childrens Services,Third Party Payments,440062,Other Third Party Payments,09-Jan-2015,2844402-12876,"1,056.26",PHYSIOTHERAPY FOR YOU.,
Resources,I.C.T. Services,Supplies and Services,332029,Printing Stationery and Gen Off Exps,09-Jan-2015,2844415-611733,670.00,POTTS PRINTERS LTD.,
Regeneration & Economic Development,Economic Development and Housing,Supplies and Services,338078,Services,09-Jan-2015,2844433-4645,"4,788.91",QW SECURITY LTD.,
Neighbourhood Services,Technical Services,Supplies and Services,384110,Miscellaneous Expenses,09-Jan-2015,2844434-2014/0544,"2,000.00",RAB CONSULTANTS LTD.,
Children and Adult Services,Childrens Services,Third Party Payments,486021,Service Level Agreements,09-Jan-2015,2844441-3143,"40,200.00",REACH OUT CARE SUPPORT SERVICES LTD.,
Resources,I.C.T. Services,Construction Work,908105,Construction work,09-Jan-2015,2844442-INV-0335,"2,341.60",REDWOOD CABLE PROJECTS.,
Children and Adult Services,Public Health,Third Party Payments,460803,Contract Payments,09-Jan-2015,2844444-5964,"30,050.00",RELAX KIDS.,
Regeneration & Economic Development,Economic Development and Housing,Supplies and Services,384899,Miscellaneous Expenses,09-Jan-2015,2844454-RED-01-2015-059,"2,400.00",ROMALDKIRK PARISH COUNCIL.,
Neighbourhood Services,Culture & Sport,Supplies and Services,384199,Miscellaneous Expenses,09-Jan-2015,2844465-0115,660.00,SALLYANNE FLEMONS.,
Neighbourhood Services,Technical Services,Supplies and Services,304221,Equipment and Materials,09-Jan-2015,2844494-714517624281,728.92,SIG TRADING LTD.,
Neighbourhood Services,Technical Services,Supplies and Services,342033,Computers and Communications,09-Jan-2015,2844513-OP/L942738,592.00,SPECIALIST COMPUTER CENTRES PLC.,
Resources,I.C.T. Services,Vehicles Equipment Furniture and Fittings,912701,Computer equipment,09-Jan-2015,2844513-OP/L946248,728.10,SPECIALIST COMPUTER CENTRES PLC.,
Children and Adult Services,Childrens Services,Supplies and Services,384638,Miscellaneous Expenses,09-Jan-2015,2844518-SI-439,"7,213.99",SPORT WORKS LTD.,
Children and Adult Services,Childrens Services,Third Party Payments,425040,Rendered by Voluntary Organisations,09-Jan-2015,2844520-1151205,"3,100.00",ST CUTHBERTS CARE.,
Children and Adult Services,Commissioning inc Supporting People,Third Party Payments,473111,Purchase of Care,09-Jan-2015,2844522-2540,"40,347.36",ST MARGARETS CENTRE.,
Children and Adult Services,Childrens Services,Third Party Payments,425040,Rendered by Voluntary Organisations,09-Jan-2015,2844543-156765,910.00,SWIIS FOSTER CARE LTD.,
Children and Adult Services,Childrens Services,Third Party Payments,425040,Rendered by Voluntary Organisations,09-Jan-2015,2844543-156767,"1,075.00",SWIIS FOSTER CARE LTD.,
Children and Adult Services,Childrens Services,Third Party Payments,425040,Rendered by Voluntary Organisations,09-Jan-2015,2844543-157044,891.90,SWIIS FOSTER CARE LTD.,
Children and Adult Services,Childrens Services,Third Party Payments,425040,Rendered by Voluntary Organisations,09-Jan-2015,2844543-157045,"1,208.00",SWIIS FOSTER CARE LTD.,
Children and Adult Services,Childrens Services,Third Party Payments,425040,Rendered by Voluntary Organisations,09-Jan-2015,2844543-157377,891.90,SWIIS FOSTER CARE LTD.,
Children and Adult Services,Childrens Services,Third Party Payments,425040,Rendered by Voluntary Organisations,09-Jan-2015,2844543-157378,"1,069.00",SWIIS FOSTER CARE LTD.,
Children and Adult Services,Education,Income,740298,Other Income,09-Jan-2015,2844559-CAS-01-2015-016,"1,516.00",TEESDALE EDUCATION TRUST.,
Children and Adult Services,Childrens Services,Third Party Payments,425040,Rendered by Voluntary Organisations,09-Jan-2015,2844572-000137,"6,540.00",THE FOSTERING COMPANY NE LTD.,
Children and Adult Services,Central/Other,Debtors,930133,Debtor ISIS Out of Hours - Home Care,09-Jan-2015,2844573-D009,"8,333.33",HOMECARE SUPPORT LTD T/A THE HUMAN SUPPORT GROUP.,
Neighbourhood Services,Technical Services,Stock,926900,Stock in hand-Inventory system,09-Jan-2015,2844586-N/IN137094,"1,477.32",THOMAS OWEN & SONS (NEWCASTLE) LTD.,
Neighbourhood Services,Technical Services,Stock,926900,Stock in hand-Inventory system,09-Jan-2015,2844586-N/IN137095,"3,427.19",THOMAS OWEN & SONS (NEWCASTLE) LTD.,
Regeneration & Economic Development,Economic Development and Housing,Cap Exp on Grants & Other Financial Assistance (REFCUS),918401,Capital grants,09-Jan-2015,2844587-RED-01-2015-047,"1,877.00",THYSSENKRUPP ENCASA A DIVISION OF THYSSENKRUPP ACCESS LTD.,
Regeneration & Economic Development,Economic Development and Housing,Cap Exp on Grants & Other Financial Assistance (REFCUS),918401,Capital grants,09-Jan-2015,2844587-RED-01-2015-048,"4,545.00",THYSSENKRUPP ENCASA A DIVISION OF THYSSENKRUPP ACCESS LTD.,
Neighbourhood Services,Direct Services,Supplies and Services,304221,Equipment and Materials,09-Jan-2015,2844592-101760,"2,105.30",TOMMY WARDLE.,
Regeneration & Economic Development,Economic Development and Housing,Cap Exp on Grants & Other Financial Assistance (REFCUS),918401,Capital grants,09-Jan-2015,2844595-RED-01-2015-051,"6,214.00",TORONTO ELECTRICAL SERVICES & TESTING (TEST).,
Regeneration & Economic Development,Economic Development and Housing,Cap Exp on Grants & Other Financial Assistance (REFCUS),918401,Capital grants,09-Jan-2015,2844597-RED-01-2015-045,"3,898.50",TOTAL HYGIENE LTD.,
Children and Adult Services,Childrens Services,Supplies and Services,352001,Conference Expenses,09-Jan-2015,2844602-869,650.00,TRAINING LADDER LTD.,
Regeneration & Economic Development,Spatial Policy Planning Assets & Environment,Income,720190,Fees and Charges,09-Jan-2015,2844611-RED-01-2015-063,"1,155.00",TYNE MANAGEMENT LTD.,
Neighbourhood Services,Technical Services,Supplies and Services,304221,Equipment and Materials,09-Jan-2015,2844612-143528,820.96,TYNEDALE ROADSTONE LTD.,
Neighbourhood Services,Culture & Sport,Supplies and Services,304403,Equipment and Materials,09-Jan-2015,2844617-9100058547,"4,960.00",UNIVERSITY OF NEWCASTLE UPON TYNE.,
Neighbourhood Services,Culture & Sport,Supplies and Services,384540,Miscellaneous Expenses,09-Jan-2015,2844630-3106,702.00,VISIT COUNTY DURHAM.,
Children and Adult Services,Childrens Services,Supplies and Services,384638,Miscellaneous Expenses,09-Jan-2015,2844637-16DECEMBER2014,"4,850.00",WEAR MENCAP.,
Children and Adult Services,Childrens Services,Supplies and Services,384638,Miscellaneous Expenses,09-Jan-2015,2844637-18DECEMBER2014TUSN,871.50,WEAR MENCAP.,
Children and Adult Services,Childrens Services,Supplies and Services,384638,Miscellaneous Expenses,09-Jan-2015,2844637-18DECEMBER2014USB,"4,850.00",WEAR MENCAP.,
Neighbourhood Services,Direct Services,Premises,150015,Apportioned Exps of Operational Blds,09-Jan-2015,2844640-373942,506.30,WERNICK HIRE LTD.,
Neighbourhood Services,Direct Services,Premises,150015,Apportioned Exps of Operational Blds,09-Jan-2015,2844640-373943,516.30,WERNICK HIRE LTD.,
Neighbourhood Services,Culture & Sport,Supplies and Services,384700,Miscellaneous Expenses,09-Jan-2015,2844643-SLINV/00000154,"1,740.25",WESTFIRST LTD.,
Children and Adult Services,Education,Transfer Payments,510028,School Children,09-Jan-2015,2844644-CAS-01-2015-019,"3,235.63",WHEATLEY HILL COMMUNITY NURSERY LTD.,
Neighbourhood Services,Technical Services,Stock,926900,Stock in hand-Inventory system,09-Jan-2015,2844647-18485043,672.60,WOLSELEY UK LTD.,
Neighbourhood Services,Technical Services,Stock,926900,Stock in hand-Inventory system,09-Jan-2015,2844647-18486241,848.22,WOLSELEY UK LTD.,
RED HRA,Housing Revenue Account,Supplies and Services,342007,Computers and Communications,09-Jan-2015,2844649-DCC67,"1,475.00",WYNYARD IT & CONSULTANCY SERVICES LT.,
Regeneration & Economic Development,Strategy Programmes and Performance,Employees,040149,Recruitment Instruction and Training,09-Jan-2015,2844653-SSL011794,743.40,XTREME LEARNING LTD.,
Children and Adult Services,Education,Transport,230006,Contract Hire,12-Jan-2015,2844665-518,504.00,A BARKER.,
Children and Adult Services,Education,Transport,230008,Contract Hire,12-Jan-2015,2844666-A220759,"1,140.00",A MURRAY TRAVEL.,
Dedicated Schools Grant,Dedicated Schools Grant,Transport,230010,Contract Hire,12-Jan-2015,2844667-A38/SW,672.00,AABAT TAXIS.,
Children and Adult Services,Education,Transport,230008,Contract Hire,12-Jan-2015,2844672-27/14,780.00,ADVANCE TRAVEL.,
Regeneration & Economic Development,Transport and Contracted Services,Fees,901002,Professional fees,12-Jan-2015,2844673-28205053,"53,615.47",AECOM LTD.,
Neighbourhood Services,Technical Services,Supplies and Services,304221,Equipment and Materials,12-Jan-2015,2844675-20694264,833.33,AGGREGATE INDUSTRIES UK LTD.,
Neighbourhood Services,Technical Services,Supplies and Services,304221,Equipment and Materials,12-Jan-2015,2844675-20785725,567.90,AGGREGATE INDUSTRIES UK LTD.,
Neighbourhood Services,Technical Services,Supplies and Services,304221,Equipment and Materials,12-Jan-2015,2844675-20830359,"3,071.48",AGGREGATE INDUSTRIES UK LTD.,
Neighbourhood Services,Direct Services,Supplies and Services,384540,Miscellaneous Expenses,12-Jan-2015,2844678-UK14-4515,"2,990.00",ALVERN MEDIA.,
Children and Adult Services,Education,Transport,230007,Contract Hire,12-Jan-2015,2844681-52,560.00,ANDY CABS.,
Children and Adult Services,Education,Transport,230008,Contract Hire,12-Jan-2015,2844688-DCC6DEC14,"2,448.00",ATLAS TAXIS BISHOP AUCKLAND.,
Children and Adult Services,Education,Transport,230006,Contract Hire,12-Jan-2015,2844689-03228,"1,036.60",ATLAS TAXIS CONSETT.,
Regeneration & Economic Development,Economic Development and Housing,Supplies and Services,368008,Incentives to Industrialists,12-Jan-2015,2844691-1409,"1,591.76",AUTO ITEMS LTD.,
Children and Adult Services,Education,Transport,230008,Contract Hire,12-Jan-2015,2844694-01901214,770.00,AVALON TAXIS.,
Children and Adult Services,Education,Transport,230008,Contract Hire,12-Jan-2015,2844703-10,"1,200.00",BEELINE PRIVATE HIRE.,
Children and Adult Services,Education,Transport,230008,Contract Hire,12-Jan-2015,2844703-9,825.00,BEELINE PRIVATE HIRE.,
Regeneration & Economic Development,Spatial Policy Planning Assets & Environment,Supplies and Services,372009,Subscriptions,12-Jan-2015,2844709-617549,"3,127.37",BM TRADA CERTIFICATION LTD.,
Children and Adult Services,Education,Transport,230008,Contract Hire,12-Jan-2015,2844716-BZ00130,"1,092.00",BREZ`S TAXIS.,
Children and Adult Services,Education,Transport,230008,Contract Hire,12-Jan-2015,2844716-BZ00131,552.00,BREZ`S TAXIS.,
Children and Adult Services,Public Health,Premises,120009,Energy Costs,12-Jan-2015,2844717-580130455,"1,425.17",BRITISH GAS BUSINESS.,
Children and Adult Services,Education,Third Party Payments,440999,Other Third Party Payments,12-Jan-2015,2844727-009,"9,604.18",CAPITAL 4 TRAINING LTD,
Children and Adult Services,Head of Adults,Supplies and Services,338366,Services,12-Jan-2015,2844728-21283,"4,702.78",CARE ABILITY.,
Neighbourhood Services,Culture & Sport,Supplies and Services,324117,Provisions,12-Jan-2015,2844729-841011592,663.14,CARLSBERG UK LTD.,
Children and Adult Services,Education,Supplies and Services,384199,Miscellaneous Expenses,12-Jan-2015,2844739,"2,609.25",CHILDS PLAY PRIVATE NURSERY.,
Assistant Chief Executive,Partnerships & Community Engagement Div.,Supplies and Services,384086,Miscellaneous Expenses,12-Jan-2015,2844740-VOUCHER14NB-4TOG020,"3,750.00",CHILTON COMMUNITY COLLEGE.,
Children and Adult Services,Education,Transport,230007,Contract Hire,12-Jan-2015,2844744-44688,"1,050.00",CJ GRIERSON.,
Children and Adult Services,Education,Transport,230007,Contract Hire,12-Jan-2015,2844744-44689,"3,600.00",CJ GRIERSON.,
Children and Adult Services,Head of Adults,Third Party Payments,479101,Purchase of Care,12-Jan-2015,2844751-3910005881,"21,072.75",CO DURHAM & DARLINGTON NHS FOUNDATION TRUST.,
Children and Adult Services,Childrens Services,Transfer Payments,515207,Social Services Clients,12-Jan-2015,2844765-412171,550.00,CRIMDON PONYWORLD.,
Children and Adult Services,Public Health,Third Party Payments,460803,Contract Payments,12-Jan-2015,2844766-TVDA00137,"10,000.00",CRUSE BEREAVEMENT CARE.,
Children and Adult Services,Head of Adults,Transfer Payments,515209,Social Services Clients,12-Jan-2015,2844776-CAS-01-2015-026,840.00,REDACTED - PAYMENT TO INDIVIDUAL,
RED HRA,HRA Capital,Construction Work,908105,Construction work,12-Jan-2015,2844779-213479,"2,927.98",DELTA ELECTRICAL & MECHANICAL SERVICES.,
Children and Adult Services,Head of Adults,Third Party Payments,473101,Purchase of Care,12-Jan-2015,2844785-16328,"27,157.33",DONCASTER DEAF TRUST.,
Neighbourhood Services,Direct Services,Third Party Payments,430100,Rendered by Private Contractors,12-Jan-2015,2844786-9100703161,"1,100.00",DORMA UK LTD.,
Children and Adult Services,Childrens Services,Supplies and Services,338044,Services,12-Jan-2015,2844791-21072014,"1,016.40",DR TRACEY TYLER.,
Children and Adult Services,Education,Supplies and Services,338094,Services,12-Jan-2015,2844801-3073,"1,995.00",EASTLEA COMMUNITY ASSOCIATION.,
Regeneration & Economic Development,Spatial Policy Planning Assets & Environment,Supplies and Services,384199,Miscellaneous Expenses,12-Jan-2015,2844802-433,"2,100.00",ECO ENTERPRISES LTD.,
Resources,Human Resources,Vehicles Equipment Furniture and Fittings,912701,Computer equipment,12-Jan-2015,2844804-ECL004-DCC02,"4,000.00",EDALE CONSULTING LTD.,
Children and Adult Services,Public Health,Premises,120009,Energy Costs,12-Jan-2015,2844809-H10DCC3D70,769.79,EON UK PLC.,
Assistant Chief Executive,Partnerships & Community Engagement Div.,Supplies and Services,384085,Miscellaneous Expenses,12-Jan-2015,2844810-BONA06-14BELD06-14,"1,000.00",ESH WINNING CRICKET CLUB.,
Neighbourhood Services,Technical Services,Third Party Payments,430100,Rendered by Private Contractors,12-Jan-2015,2844812-23996,"4,466.00",F & R JACKSON LTD.,
Children and Adult Services,Public Health,Third Party Payments,460803,Contract Payments,12-Jan-2015,2844813-FK668/NOVEMBER/2014/SC,520.00,FARAH CHEMISTS LTD.,
Assistant Chief Executive,Partnerships & Community Engagement Div.,Cap Exp on Grants & Other Financial Assistance (REFCUS),918004,Contributions to other bodies,12-Jan-2015,2844817-VOUCHER14NB-4TOG011,"55,010.00",FERRYHILL TOWN COUNCIL.,
Children and Adult Services,Childrens Services,Third Party Payments,425040,Rendered by Voluntary Organisations,12-Jan-2015,2844824-630139307,"4,180.58",FOSTER CARE ASSOCIATES LTD.,
Children and Adult Services,Childrens Services,Third Party Payments,425040,Rendered by Voluntary Organisations,12-Jan-2015,2844824-630139460,"4,292.69",FOSTER CARE ASSOCIATES LTD.,
Children and Adult Services,Childrens Services,Third Party Payments,425040,Rendered by Voluntary Organisations,12-Jan-2015,2844824-630139646,"4,079.43",FOSTER CARE ASSOCIATES LTD.,
Children and Adult Services,Childrens Services,Third Party Payments,425040,Rendered by Voluntary Organisations,12-Jan-2015,2844824-630139731,"4,079.43",FOSTER CARE ASSOCIATES LTD.,
Children and Adult Services,Childrens Services,Third Party Payments,425040,Rendered by Voluntary Organisations,12-Jan-2015,2844824-630140428,"4,162.68",FOSTER CARE ASSOCIATES LTD.,
Children and Adult Services,Childrens Services,Third Party Payments,425040,Rendered by Voluntary Organisations,12-Jan-2015,2844825-11939,730.00,FOSTER CARES LTD.,
Children and Adult Services,Childrens Services,Third Party Payments,425040,Rendered by Voluntary Organisations,12-Jan-2015,2844825-11953,730.00,FOSTER CARES LTD.,
Children and Adult Services,Childrens Services,Third Party Payments,425040,Rendered by Voluntary Organisations,12-Jan-2015,2844825-11991,730.00,FOSTER CARES LTD.,
Children and Adult Services,Childrens Services,Third Party Payments,425040,Rendered by Voluntary Organisations,12-Jan-2015,2844825-12005,730.00,FOSTER CARES LTD.,
Children and Adult Services,Childrens Services,Third Party Payments,425040,Rendered by Voluntary Organisations,12-Jan-2015,2844825-12041,730.00,FOSTER CARES LTD.,
Children and Adult Services,Childrens Services,Third Party Payments,425040,Rendered by Voluntary Organisations,12-Jan-2015,2844825-12055,730.00,FOSTER CARES LTD.,
Children and Adult Services,Education,Transport,230008,Contract Hire,12-Jan-2015,2844826-004/2014,"1,050.00",FRANK ATKINSON T/A FJ MINIBUS TRAVEL.,
Children and Adult Services,Education,Transport,230008,Contract Hire,12-Jan-2015,2844826-026,"1,875.00",FRANK ATKINSON T/A FJ MINIBUS TRAVEL.,
Neighbourhood Services,Technical Services,Supplies and Services,304357,Equipment and Materials,12-Jan-2015,2844832-DCC211214,"15,251.23",GAP GROUP LTD.,
Children and Adult Services,Education,Transport,230007,Contract Hire,12-Jan-2015,2844833-16952,"2,085.00",GARNETTS LTD (COACHES).,
Children and Adult Services,Education,Transport,230007,Contract Hire,12-Jan-2015,2844833-16953,"2,834.00",GARNETTS LTD (COACHES).,
Children and Adult Services,Education,Transport,230007,Contract Hire,12-Jan-2015,2844833-16954,"8,925.00",GARNETTS LTD (COACHES).,
Children and Adult Services,Education,Transport,230007,Contract Hire,12-Jan-2015,2844833-16955,"13,335.00",GARNETTS LTD (COACHES).,
Children and Adult Services,Education,Transport,230007,Contract Hire,12-Jan-2015,2844833-16956,"1,935.00",GARNETTS LTD (COACHES).,
Children and Adult Services,Education,Transport,230007,Contract Hire,12-Jan-2015,2844833-16957,"2,385.00",GARNETTS LTD (COACHES).,
Children and Adult Services,Education,Transport,230007,Contract Hire,12-Jan-2015,2844833-16958,"5,805.00",GARNETTS LTD (COACHES).,
Children and Adult Services,Education,Transport,230007,Contract Hire,12-Jan-2015,2844836-1601,"1,924.20",GEM TRAVEL.,
RED HRA,HRA Capital,Construction Work,908105,Construction work,12-Jan-2015,2844837-SIGN/00000430,"67,775.44",GENTOO CONSTRUCTION LTD.,
Children and Adult Services,Education,Transport,230008,Contract Hire,12-Jan-2015,2844844-W082/026,"1,212.00",GMC TAXIS NORTH EAST.,
Children and Adult Services,Education,Transport,230008,Contract Hire,12-Jan-2015,2844844-W084/026,"1,320.00",GMC TAXIS NORTH EAST.,
Regeneration & Economic Development,Transport and Contracted Services,Third Party Payments,430106,Rendered by Private Contractors,12-Jan-2015,2844845-46607,"67,411.66",GO GATESHEAD LTD.,
Dedicated Schools Grant,Dedicated Schools Grant,Transport,230010,Contract Hire,12-Jan-2015,2844847-GT012,834.00,GORDON`S TAXIS.,
Children and Adult Services,Education,Transport,230007,Contract Hire,12-Jan-2015,2844850-193V,"1,872.00",GRAHAMS MOTOR SERVICES.,
Children and Adult Services,Education,Transport,230007,Contract Hire,12-Jan-2015,2844850-206V,"3,536.00",GRAHAMS MOTOR SERVICES.,
Children and Adult Services,Childrens Services,Supplies and Services,384871,Miscellaneous Expenses,12-Jan-2015,2844857-MENSSEAHAM003,"4,750.00",HARBOUR SUPPORT SERVICES.,
Neighbourhood Services,Technical Services,Third Party Payments,430100,Rendered by Private Contractors,12-Jan-2015,2844865-2337,"15,410.79",HIGHWAY CONSTRUCTION SERVICES LTD.,
RED HRA,Housing Revenue Account,Supplies and Services,372009,Subscriptions,12-Jan-2015,2844872-1102131,528.00,HOUSING SYSTEMS LTD.,
Neighbourhood Services,Technical Services,Employees,040149,Recruitment Instruction and Training,12-Jan-2015,2844874-1328,600.00,HSF TRAINING LTD.,
Assistant Chief Executive,Partnerships & Community Engagement Div.,Supplies and Services,384086,Miscellaneous Expenses,12-Jan-2015,2844875-VOUCHER12NB-EDUR107,"6,000.00",HUTTON HENRY COMMUNITY ASSOCIATION.,
Neighbourhood Services,Projects and Business services,Third Party Payments,430113,Rendered by Private Contractors,12-Jan-2015,2844876-W150730,"278,058.67",HW MARTIN WASTE LTD.,
Children and Adult Services,Education,Transport,230008,Contract Hire,12-Jan-2015,2844879-15,900.00,IAN SHEPLEY T/A SHEPPA`S TAXIS.,
Children and Adult Services,Public Health,Third Party Payments,460803,Contract Payments,12-Jan-2015,2844884-FDH51/1114,930.00,INTRAHEALTH LTD.,
Regeneration & Economic Development,Transport and Contracted Services,Other Expenses,914001,Other capital expenses,12-Jan-2015,2844889-10956,692.12,JACK COUPE & SONS LTD T/A COUPE LINE.,
Assistant Chief Executive,Partnerships & Community Engagement Div.,Supplies and Services,384086,Miscellaneous Expenses,12-Jan-2015,2844891-VOUCHER14NB-3TWN010,"2,000.00",JACK DRUM ARTS LTD.,
Children and Adult Services,Childrens Services,Supplies and Services,324500,Provisions,12-Jan-2015,2844892-31122,845.25,JAMES FLETCHER LTD T/A JAMES FLETCHER MARQUEES.,
Neighbourhood Services,Direct Services,Third Party Payments,430100,Rendered by Private Contractors,12-Jan-2015,2844893-2691,841.94,JAMES INGLEFORD SCAFFOLDING LTD.,
Neighbourhood Services,Direct Services,Third Party Payments,430100,Rendered by Private Contractors,12-Jan-2015,2844893-2693,"5,192.85",JAMES INGLEFORD SCAFFOLDING LTD.,
Neighbourhood Services,Technical Services,Stock,926900,Stock in hand-Inventory system,12-Jan-2015,2844903-N1026753,"143,402.00",JOHN MACLEAN & SONS ELECTRICAL (DINGWALL) LTD.,
Neighbourhood Services,Technical Services,Supplies and Services,304221,Equipment and Materials,12-Jan-2015,2844903-NI026739,902.88,JOHN MACLEAN & SONS ELECTRICAL (DINGWALL) LTD.,
Neighbourhood Services,Direct Services,Third Party Payments,430100,Rendered by Private Contractors,12-Jan-2015,2844906-105561,"1,008.00",JOHNSON WRIGHT FLOORING LTD.,
RED HRA,HRA Capital,Construction Work,908105,Construction work,12-Jan-2015,2844907-210396,731.75,JOINERY & TIMBER CREATIONS (65) LTD.,
Neighbourhood Services,Technical Services,Stock,926900,Stock in hand-Inventory system,12-Jan-2015,2844909-STI413338,708.00,JT DOVE LTD.,
Children and Adult Services,Education,Transport,230007,Contract Hire,12-Jan-2015,2844911-DECEMBER2014,910.00,K & R TAXIS.,
Children and Adult Services,Education,Transport,230008,Contract Hire,12-Jan-2015,2844915-4/2014,"2,100.00",KD TAXIS.,
Children and Adult Services,Education,Transport,230008,Contract Hire,12-Jan-2015,2844918-011214,780.00,KEVIN EDMUNDSON.,
Children and Adult Services,Education,Transport,230008,Contract Hire,12-Jan-2015,2844924-4,700.00,KT TAXIS.,
Dedicated Schools Grant,Dedicated Schools Grant,Transport,230010,Contract Hire,12-Jan-2015,2844928-1032,"1,200.00",LD TAXIS.,
Children and Adult Services,Education,Transport,230006,Contract Hire,12-Jan-2015,2844928-1033,"1,110.00",LD TAXIS.,
Children and Adult Services,Education,Transport,230007,Contract Hire,12-Jan-2015,2844930-20990,"2,241.00",LEE`S COACHES LTD.,
Children and Adult Services,Education,Transport,230008,Contract Hire,12-Jan-2015,2844931-099,"1,176.00",LEE`S TAXIS.,
Children and Adult Services,Education,Transport,230008,Contract Hire,12-Jan-2015,2844931-100,798.00,LEE`S TAXIS.,
Regeneration & Economic Development,Transport and Contracted Services,Supplies and Services,384199,Miscellaneous Expenses,12-Jan-2015,2844935-3347,"123,310.00",LIVING STREETS.,
Children and Adult Services,Public Health,Third Party Payments,460803,Contract Payments,12-Jan-2015,2844937-6663CA111401,652.00,LLOYDS PHARMACY.,
Children and Adult Services,Education,Transport,230008,Contract Hire,12-Jan-2015,2844938-1963,"1,380.00",LOCAL TRANSPORT LTD.,
Children and Adult Services,Education,Transport,230008,Contract Hire,12-Jan-2015,2844938-1964,"1,064.00",LOCAL TRANSPORT LTD.,
Children and Adult Services,Education,Transport,230008,Contract Hire,12-Jan-2015,2844938-1965,560.00,LOCAL TRANSPORT LTD.,
Children and Adult Services,Childrens Services,Transport,230008,Contract Hire,12-Jan-2015,2844942-16,690.00,LUMLEY TAXIS.,
Children and Adult Services,Education,Transport,230008,Contract Hire,12-Jan-2015,2844943-71,"1,463.00",M BUTCHER.,
Neighbourhood Services,Technical Services,Stock,926900,Stock in hand-Inventory system,12-Jan-2015,2844945-0000880728,507.20,MAGDEN LTD.,
Neighbourhood Services,Technical Services,Stock,926900,Stock in hand-Inventory system,12-Jan-2015,2844945-0000882512,607.61,MAGDEN LTD.,
Neighbourhood Services,Technical Services,Third Party Payments,460350,Contract Payments,12-Jan-2015,2844947-4979,805.50,MAKEPEACE MOTORS.,
Neighbourhood Services,Technical Services,Third Party Payments,460350,Contract Payments,12-Jan-2015,2844947-4980,805.50,MAKEPEACE MOTORS.,
Neighbourhood Services,Technical Services,Third Party Payments,430100,Rendered by Private Contractors,12-Jan-2015,2844947-4988,"1,588.84",MAKEPEACE MOTORS.,
Children and Adult Services,Education,Transport,230007,Contract Hire,12-Jan-2015,2844947-4990,"1,544.89",MAKEPEACE MOTORS.,
Children and Adult Services,Education,Transport,230007,Contract Hire,12-Jan-2015,2844947-4991,"1,609.60",MAKEPEACE MOTORS.,
Children and Adult Services,Education,Transport,230007,Contract Hire,12-Jan-2015,2844947-4992,"1,437.60",MAKEPEACE MOTORS.,
Regeneration & Economic Development,Transport and Contracted Services,Supplies and Services,304259,Equipment and Materials,12-Jan-2015,2844948-0000152322,"3,262.84",MANGAR INTERNATIONAL LTD.,
Regeneration & Economic Development,Economic Development and Housing,Cap Exp on Grants & Other Financial Assistance (REFCUS),918401,Capital grants,12-Jan-2015,2844961-RED-01-2015-066,"2,257.69",REDACTED - PAYMENT TO INDIVIDUAL,
Neighbourhood Services,Projects and Business services,Supplies and Services,304357,Equipment and Materials,12-Jan-2015,2844963-13887,"3,000.00",MJ HICKEY PLANT HIRE & CONTRACTS LTD.,
Children and Adult Services,Education,Transport,230008,Contract Hire,12-Jan-2015,2844964-KDC011214,"1,813.00",MJ TIMNEY T/A KDC & C&M TAXIS.,
Children and Adult Services,Education,Transport,230007,Contract Hire,12-Jan-2015,2844969-003,742.50,MR A MILLWARD T/A SWISS CABS PRIVATE HIRE.,
Children and Adult Services,Education,Transport,230007,Contract Hire,12-Jan-2015,2844970-4295-DECEMBER2014,700.00,MR DAVID KING YIU LI T/A ABA LOCAL TAXIS LTD.,
Children and Adult Services,Education,Transport,230008,Contract Hire,12-Jan-2015,2844972-DSR/12/14,900.00,MR J AGAR T/A PARK TAXIS.,
Dedicated Schools Grant,Dedicated Schools Grant,Transport,230010,Contract Hire,12-Jan-2015,2844973-04,518.00,MR KJB BOWERY T/A KJB TAXIS.,
Children and Adult Services,Education,Transport,230008,Contract Hire,12-Jan-2015,2844974-4A-19/12/2014,"1,184.00",MR RAYMOND RENWICK.,
Children and Adult Services,Education,Transport,230008,Contract Hire,12-Jan-2015,2844974-4B-19/12/2014,735.00,MR RAYMOND RENWICK.,
Children and Adult Services,Education,Transport,230008,Contract Hire,12-Jan-2015,2844976-AA295,"2,025.00",MR T GUNN.,
Regeneration & Economic Development,Economic Development and Housing,Supplies and Services,368008,Incentives to Industrialists,12-Jan-2015,2844980-4708,930.00,MT AUDIO SYSTEMS.,
Children and Adult Services,Education,Transport,230007,Contract Hire,12-Jan-2015,2844982-153,540.00,N FORBES.,
Children and Adult Services,Childrens Services,Third Party Payments,425040,Rendered by Voluntary Organisations,12-Jan-2015,2844986-NFA124639,"3,232.99",NATIONAL FOSTERING AGENCY LTD.,
Children and Adult Services,Public Health,Third Party Payments,460803,Contract Payments,12-Jan-2015,2844990-1077,"30,717.75",NECA (SERVICES) LTD.,
Assistant Chief Executive,Partnerships & Community Engagement Div.,Cap Exp on Grants & Other Financial Assistance (REFCUS),918004,Contributions to other bodies,12-Jan-2015,2844995-VOUCHER14NB-MDUR009,"9,000.00",NEW BRANCEPETH VILLAGE HALL ASSOCIATION.,
Assistant Chief Executive,Partnerships & Community Engagement Div.,Supplies and Services,384085,Miscellaneous Expenses,12-Jan-2015,2844996-WATA14-14TEM13-14,"1,000.00",NEW COLLEGE ACADEMIES TRUST - CONSETT ACADEMY.,
Neighbourhood Services,Direct Services,Supplies and Services,384194,Miscellaneous Expenses,12-Jan-2015,2845005-1173,"2,125.00",NIRAMAX GROUP LTD.,
Neighbourhood Services,Direct Services,Supplies and Services,384194,Miscellaneous Expenses,12-Jan-2015,2845005-3121,"2,125.00",NIRAMAX GROUP LTD.,
Neighbourhood Services,Direct Services,Supplies and Services,384194,Miscellaneous Expenses,12-Jan-2015,2845005-4014,"2,125.00",NIRAMAX GROUP LTD.,
Neighbourhood Services,Direct Services,Supplies and Services,384194,Miscellaneous Expenses,12-Jan-2015,2845005-4839,"1,275.00",NIRAMAX GROUP LTD.,
Children and Adult Services,Education,Transport,230008,Contract Hire,12-Jan-2015,2845012-M0006354781,"1,520.00",NORTH TYNESIDE COUNCIL.,
Neighbourhood Services,Technical Services,Supplies and Services,304221,Equipment and Materials,12-Jan-2015,2845013-DI20204283,868.08,NORTHERN POWERGRID (NORTHEAST) LTD.,
Neighbourhood Services,Technical Services,Supplies and Services,304221,Equipment and Materials,12-Jan-2015,2845013-DI20204288,691.55,NORTHERN POWERGRID (NORTHEAST) LTD.,
Children and Adult Services,Education,Third Party Payments,440999,Other Third Party Payments,12-Jan-2015,2845015-DCC62,"10,813.77",NORTHERN RIGHTS COMMUNITY INTEREST COMPANY (CIC)..,
Resources,Financial Services,Supplies and Services,384199,Miscellaneous Expenses,12-Jan-2015,2845018-91327609,"7,761.25",NORTHGATE INFORMATION SOLUTIONS UK LTD.,
Children and Adult Services,Public Health,Third Party Payments,460802,Contract Payments,12-Jan-2015,2845019-7510056180,851.00,NORTHUMBRIA HEALTHCARE NHS FOUNDATION TRUST.,
Children and Adult Services,Childrens Services,Third Party Payments,425040,Rendered by Voluntary Organisations,12-Jan-2015,2845026-03428,"3,100.00",ORCHARD CARE (NORTH EAST) LTD.,
Children and Adult Services,Education,Transport,230008,Contract Hire,12-Jan-2015,2845027-5906,"1,312.50",OVERLANDER LTD.,
Neighbourhood Services,Direct Services,Supplies and Services,304221,Equipment and Materials,12-Jan-2015,2845029-556500,"1,800.00",P & N ASSOCIATES LTD.,
Assistant Chief Executive,Partnerships & Community Engagement Div.,Supplies and Services,336005,Advertising,12-Jan-2015,2845030-10371,562.00,PA PROMOTIONS LTD.,
Neighbourhood Services,Direct Services,Supplies and Services,304221,Equipment and Materials,12-Jan-2015,2845032-XL130517,631.45,PARK ELECTRICAL DISTRIBUTORS LTD.,
Children and Adult Services,Childrens Services,Supplies and Services,304259,Equipment and Materials,12-Jan-2015,2845033-21836848,"2,940.00",PARK RETAIL LTD.,
Children and Adult Services,Education,Supplies and Services,338099,Services,12-Jan-2015,2845034-117,"2,369.70",PATTINSON & MILBURN TRAINING LTD.,
Children and Adult Services,Childrens Services,Third Party Payments,425019,Rendered by Voluntary Organisations,12-Jan-2015,2845039-250914,"14,048.40",PEARTREE PROJECTS LTD.,
Dedicated Schools Grant,Dedicated Schools Grant,Third Party Payments,440080,Other Third Party Payments,12-Jan-2015,2845041-22847,"3,725.13",PERCY HEDLEY FOUNDATION.,
Dedicated Schools Grant,Dedicated Schools Grant,Third Party Payments,440080,Other Third Party Payments,12-Jan-2015,2845041-22908,"3,725.13",PERCY HEDLEY FOUNDATION.,
Dedicated Schools Grant,Dedicated Schools Grant,Third Party Payments,440080,Other Third Party Payments,12-Jan-2015,2845041-22909,"3,725.13",PERCY HEDLEY FOUNDATION.,
Dedicated Schools Grant,Dedicated Schools Grant,Third Party Payments,440080,Other Third Party Payments,12-Jan-2015,2845041-22910,"3,725.13",PERCY HEDLEY FOUNDATION.,
Children and Adult Services,Education,Transport,230008,Contract Hire,12-Jan-2015,2845042-472,960.00,PETERLEE EXECUTIVE CARS.,
Children and Adult Services,Education,Transport,230008,Contract Hire,12-Jan-2015,2845045-0346,"1,260.00",PETER`S PRIVATE HIRE/PETER BEST.,
Children and Adult Services,Education,Transport,230008,Contract Hire,12-Jan-2015,2845045-0347,784.00,PETER`S PRIVATE HIRE/PETER BEST.,
RED HRA,HRA Capital,Construction Work,908105,Construction work,12-Jan-2015,2845047-JI120092,"5,600.25",PICKERINGS EUROPE LTD.,
Neighbourhood Services,Direct Services,Supplies and Services,304221,Equipment and Materials,12-Jan-2015,2845049-213165,826.15,PLUMBING TRADE SUPPLIES LTD.,
Neighbourhood Services,Direct Services,Supplies and Services,304221,Equipment and Materials,12-Jan-2015,2845049-213166,"2,486.94",PLUMBING TRADE SUPPLIES LTD.,
Neighbourhood Services,Direct Services,Supplies and Services,304221,Equipment and Materials,12-Jan-2015,2845049-213168,"11,486.16",PLUMBING TRADE SUPPLIES LTD.,
Neighbourhood Services,Direct Services,Supplies and Services,304221,Equipment and Materials,12-Jan-2015,2845050-213420,"8,390.32",PLUMBING TRADE SUPPLIES LTD.,
